Body name,Service Area,Dept,Expenses Type,Detailed Expenses Type,Transaction number,Expense Code,Date,Amount,Capital/Revenue,Supplier Name,Supplier ID
WANDSWORTH COUNCIL,CS,,COMMUNICATIONS & COMP,I.T. EQUIPMENT & MAINTENANCE,1009121,100336210,04-Aug-16,138.00,Revenue,DANWOOD GROUP LTD,SP0002739
WANDSWORTH COUNCIL,CS,,COMMUNICATIONS & COMP,I.T. EQUIPMENT & MAINTENANCE,1009121,100336210,04-Aug-16,760.00,Revenue,DANWOOD GROUP LTD,SP0002739
WANDSWORTH COUNCIL,CS,,"REPAIRS, ALTERATIONS & MTCE","REPS, ALTS & MTCE-BUILDINGS",1024278,100410000,18-Aug-16,"1,975.00",Revenue,DEBA UK LTD,SP0005811
WANDSWORTH COUNCIL,CS,,"REPAIRS, ALTERATIONS & MTCE","REPS, ALTS & MTCE-BUILDINGS",1024145,100410000,18-Aug-16,"2,495.00",Revenue,A-LIST WINDOW CLEANG LTD T/A ACS WINDOWS,SP0006912
WANDSWORTH COUNCIL,CS,,"REPAIRS, ALTERATIONS & MTCE","REPS, ALTS & MTCE-BUILDINGS",1024145,100410000,18-Aug-16,"3,500.00",Revenue,A-LIST WINDOW CLEANG LTD T/A ACS WINDOWS,SP0006912
WANDSWORTH COUNCIL,CS,,SERVICES,CONSULTANTS FEES,1012788,100534200,09-Aug-16,"5,405.00",Revenue,JONES LANG LASALLE,SP0008111
WANDSWORTH COUNCIL,CS,,SERVICES,CONSULTANTS FEES,1013303,100534200,10-Aug-16,"2,323.03",Revenue,PINSENT MASONS,SP0008115
WANDSWORTH COUNCIL,CS,,SERVICES,CONSULTANTS FEES,1013303,100534200,10-Aug-16,3.00,Revenue,PINSENT MASONS,SP0008115
WANDSWORTH COUNCIL,CS,,SERVICES,CONSULTANTS FEES,1020969,10053420K0002P,23-Aug-16,"4,856.25",Revenue,TIBBALDS,SP0010872
WANDSWORTH COUNCIL,CS,,OTHER AGENCIES,HEALTHWATCH CONTRACT,1008213,102043830,02-Aug-16,"4,309.00",Revenue,WANDSWORTH CARE ALLIANCE,SP0008176
WANDSWORTH COUNCIL,CS,,PRINTING STAT & GEN OFFICE EXP,PRINTING REGISTRATION A FORM,1009530,103033440,16-Aug-16,"1,368.28",Revenue,BANNER MANAGED COMMUNICATION,SP0003555
WANDSWORTH COUNCIL,CS,,PRINTING STAT & GEN OFFICE EXP,PRINTING REGISTRATION A FORM,1022115,103033440,25-Aug-16,648.39,Revenue,BANNER MANAGED COMMUNICATION,SP0003555
WANDSWORTH COUNCIL,CS,,COMMUNICATIONS & COMP,COMMUNICATIONS - POSTAGE,1022096,103036000,17-Aug-16,"1,506.24",Revenue,ROYAL MAIL,SP0001067
WANDSWORTH COUNCIL,CS,,COMMUNICATIONS & COMP,COMMUNICATIONS - POSTAGE,1022103,103036000,17-Aug-16,"4,990.15",Revenue,ROYAL MAIL,SP0001067
WANDSWORTH COUNCIL,CS,,COMMUNICATIONS & COMP,COMMUNICATIONS - POSTAGE,1022104,103036000,17-Aug-16,"1,063.78",Revenue,ROYAL MAIL,SP0001067
WANDSWORTH COUNCIL,CS,,COMMUNICATIONS & COMP,COMMUNICATIONS - POSTAGE,1026737,103036000,25-Aug-16,"3,875.53",Revenue,ROYAL MAIL,SP0001067
WANDSWORTH COUNCIL,CS,,COMMUNICATIONS & COMP,COMMUNICATIONS - POSTAGE,1026737,103036000,25-Aug-16,32.48,Revenue,ROYAL MAIL,SP0001067
WANDSWORTH COUNCIL,CS,,"EQUIPMENT, FURNITURE & MATS",FLOWERS,1016712,103130170,12-Aug-16,646.00,Revenue,PATRICIA WONG,SP0002085
WANDSWORTH COUNCIL,PH,,HEALTH,GP LCS CONTRACTS,1009922,105041520,04-Aug-16,"1,189.00",Revenue,CHATFIELD HEALTH CARE,SP0002903
WANDSWORTH COUNCIL,PH,,HEALTH,GP LCS CONTRACTS,1027291,105041520,25-Aug-16,"2,890.00",Revenue,THURLEIGH ROAD PRACTICE H85114,SP0003310
WANDSWORTH COUNCIL,PH,,HEALTH,GP LCS CONTRACTS,1027290,105041520,25-Aug-16,"2,345.00",Revenue,GRAFTON MEDICAL PARTNERS Y02423,SP0008442
WANDSWORTH COUNCIL,PH,,HEALTH,EMERG HORMONAL CONTRACEPTION,1009779,105041670,04-Aug-16,299.00,Revenue,ABC PHARMACY FGT10,SP0008446
WANDSWORTH COUNCIL,PH,,HEALTH,GP CHLAMYDIA SCREENING LCS,1009922,105141540,04-Aug-16,270.00,Revenue,CHATFIELD HEALTH CARE,SP0002903
WANDSWORTH COUNCIL,PH,,HEALTH,GP CHLAMYDIA SCREENING LCS,1027291,105141540,25-Aug-16,20.00,Revenue,THURLEIGH ROAD PRACTICE H85114,SP0003310
WANDSWORTH COUNCIL,PH,,HEALTH,GP CHLAMYDIA SCREENING LCS,1027290,105141540,25-Aug-16,230.00,Revenue,GRAFTON MEDICAL PARTNERS Y02423,SP0008442
WANDSWORTH COUNCIL,PH,,HEALTH,HIV RAPID TESTING PILOT,1009922,105141710,04-Aug-16,60.00,Revenue,CHATFIELD HEALTH CARE,SP0002903
WANDSWORTH COUNCIL,PH,,HEALTH,HIV RAPID TESTING PILOT,1027290,105141710,25-Aug-16,45.00,Revenue,GRAFTON MEDICAL PARTNERS Y02423,SP0008442
WANDSWORTH COUNCIL,PH,,HEALTH,LOCALLY ENHANCED SERVICES,1009922,105341380,04-Aug-16,"2,208.98",Revenue,CHATFIELD HEALTH CARE,SP0002903
WANDSWORTH COUNCIL,PH,,HEALTH,LOCALLY ENHANCED SERVICES,1027291,105341380,25-Aug-16,"5,991.48",Revenue,THURLEIGH ROAD PRACTICE H85114,SP0003310
WANDSWORTH COUNCIL,PH,,HEALTH,LOCALLY ENHANCED SERVICES,1027290,105341380,25-Aug-16,"6,233.56",Revenue,GRAFTON MEDICAL PARTNERS Y02423,SP0008442
WANDSWORTH COUNCIL,PH,,HEALTH,GP LCS CONTRACTS,1009922,106341520,04-Aug-16,420.00,Revenue,CHATFIELD HEALTH CARE,SP0002903
WANDSWORTH COUNCIL,PH,,HEALTH,GP LCS CONTRACTS,1027290,106341520,25-Aug-16,70.00,Revenue,GRAFTON MEDICAL PARTNERS Y02423,SP0008442
WANDSWORTH COUNCIL,PH,,COMMUNICATIONS & COMP,I.T. EQUIPMENT & MAINTENANCE,1024775,107836210,22-Aug-16,"1,547.95",Revenue,DANWOOD GROUP LTD,SP0002739
WANDSWORTH COUNCIL,NGF HS,,SERVICES,HIPS,1018650,110034460,12-Aug-16,"1,620.00",Revenue,GORDON BROWN,SP0002176
WANDSWORTH COUNCIL,NGF CS,,"EQUIPMENT, FURNITURE & MATS",EQUIP.FURN & MATS-REPS & MTCE,1016262,111030010,10-Aug-16,548.25,Revenue,MWUK LTD T/A ALEXANDRA,SP0007033
WANDSWORTH COUNCIL,NGF CS,,PRIVATE,GENERAL CONTRACT WORK,1013551,111045370,08-Aug-16,752.50,Revenue,WINDOWFLOWERS LTD,SP0003089
WANDSWORTH COUNCIL,NGF CS,,PRIVATE,REFUSE COLLECTN & PEST CONTROL,1014577,111045500,09-Aug-16,"1,202.69",Revenue,SITA UK LTD,SP0000507
WANDSWORTH COUNCIL,NGF CS,,PRIVATE,REFUSE COLLECTN & PEST CONTROL,1014578,111045500,09-Aug-16,534.79,Revenue,SITA UK LTD,SP0000507
WANDSWORTH COUNCIL,NGF CS,,PRIVATE,REFUSE COLLECTN & PEST CONTROL,1018956,112145500,12-Aug-16,690.92,Revenue,SITA UK LTD,SP0000507
WANDSWORTH COUNCIL,NGF CS,,PRIVATE,REFUSE COLLECTN & PEST CONTROL,1018957,112945500,12-Aug-16,690.83,Revenue,SITA UK LTD,SP0000507
WANDSWORTH COUNCIL,NGF CS,,CLEANING & DOMESTIC SUPPLIES,CLEANING CONTRACT,1018651,113813020,11-Aug-16,"1,991.45",Revenue,PHS GROUP PLC,SP0001063
WANDSWORTH COUNCIL,NGF CS,,CLEANING & DOMESTIC SUPPLIES,CLEANING CONTRACT,1018652,113813020,11-Aug-16,"1,851.00",Revenue,PHS GROUP PLC,SP0001063
WANDSWORTH COUNCIL,NGF CS,,CLEANING & DOMESTIC SUPPLIES,CLEANING CONTRACT,1020973,113813020,16-Aug-16,605.25,Revenue,PHS GROUP PLC,SP0001063
WANDSWORTH COUNCIL,NGF CS,,CLEANING & DOMESTIC SUPPLIES,WINDOW CLEANING,1008090,113813060,02-Aug-16,"5,525.00",Revenue,PARKERS CLEANING CONTRACTORS LTD,SP0002677
WANDSWORTH COUNCIL,NGF CS,,SERVICES,SERVICES - GENERAL,1008076,114334870,11-Aug-16,650.00,Revenue,EVAC+CHAIR INTERNATIONAL LIMITED,SP0002817
WANDSWORTH COUNCIL,NGF CS,,COMMUNICATIONS & COMP,COMMUNICATIONS - POSTAGE,1008076,114336000,11-Aug-16,25.00,Revenue,EVAC+CHAIR INTERNATIONAL LIMITED,SP0002817
WANDSWORTH COUNCIL,NGF CS,FINANCE,"REPAIRS, ALTERATIONS & MTCE","REPS, ALTS & MTCE-BUILDINGS",1024624,115610000,19-Aug-16,194.03,Revenue,DEBA UK LTD,SP0005811
WANDSWORTH COUNCIL,NGF CS,FINANCE,"REPAIRS, ALTERATIONS & MTCE","REPS, ALTS & MTCE-BUILDINGS",1032703,115610000,31-Aug-16,194.03,Revenue,DEBA UK LTD,SP0005811
WANDSWORTH COUNCIL,NGF CS,FINANCE,"REPAIRS, ALTERATIONS & MTCE","REPS, ALTS & MTCE-BUILDINGS",1032704,115610000,31-Aug-16,194.03,Revenue,DEBA UK LTD,SP0005811
WANDSWORTH COUNCIL,NGF CS,,PRINTING STAT & GEN OFFICE EXP,PHOTOCOPYING,1014552,120133380,09-Aug-16,710.46,Revenue,DANWOOD GROUP LTD,SP0002739
WANDSWORTH COUNCIL,NGF CS,ADMINISTRATION,OTHER AGENCIES,DISBURSEMENTS,1031948,120643250,30-Aug-16,504.00,Revenue,Scott-Moncrieff & Associates,RG0000001
WANDSWORTH COUNCIL,NGF CS,,OTHER AGENCIES,DISBURSEMENTS,1030023,120643250,26-Aug-16,229.50,Revenue,HCL HANNE & CO SOLICITORS,SP0002443
WANDSWORTH COUNCIL,NGF CS,,OTHER AGENCIES,DISBURSEMENTS,1030023,120643250,26-Aug-16,"1,500.00",Revenue,HCL HANNE & CO SOLICITORS,SP0002443
WANDSWORTH COUNCIL,NGF CS,,OTHER AGENCIES,DISBURSEMENTS,1022114,120643250,17-Aug-16,"5,428.40",Revenue,ASHFORDS,SP0002634
WANDSWORTH COUNCIL,NGF CS,,OTHER AGENCIES,DISBURSEMENTS,1022114,120643250,17-Aug-16,769.00,Revenue,ASHFORDS,SP0002634
WANDSWORTH COUNCIL,NGF CS,,OTHER AGENCIES,DISBURSEMENTS,1012735,120643250,05-Aug-16,100.00,Revenue,SHARPE PRITCHARD LLP,SP0003677
WANDSWORTH COUNCIL,NGF CS,,OTHER AGENCIES,DISBURSEMENTS,1012735,120643250,05-Aug-16,"5,811.00",Revenue,SHARPE PRITCHARD LLP,SP0003677
WANDSWORTH COUNCIL,NGF CS,,OTHER AGENCIES,DISBURSEMENTS,1026734,120643250,25-Aug-16,"2,000.00",Revenue,CORNERSTONE BACS,SP0004477
WANDSWORTH COUNCIL,NGF CS,,OTHER AGENCIES,DISBURSEMENTS,1012177,120643250,04-Aug-16,752.82,Revenue,EXPERT IN MIND,SP0004491
WANDSWORTH COUNCIL,NGF CS,,OTHER AGENCIES,DISBURSEMENTS,1017845,120643250,11-Aug-16,700.00,Revenue,4 BRICK COURT MANAGEMENT LIMITED,SP0007380
WANDSWORTH COUNCIL,NGF CS,,OTHER AGENCIES,DISBURSEMENTS,1022060,120643250,17-Aug-16,500.00,Revenue,4 BRICK COURT MANAGEMENT LIMITED,SP0007380
WANDSWORTH COUNCIL,NGF CS,,OTHER AGENCIES,DISBURSEMENTS,1022061,120643250,18-Aug-16,500.00,Revenue,4 BRICK COURT MANAGEMENT LIMITED,SP0007380
WANDSWORTH COUNCIL,NGF CS,,OTHER AGENCIES,DISBURSEMENTS,1022062,120643250,17-Aug-16,650.00,Revenue,4 BRICK COURT MANAGEMENT LIMITED,SP0007380
WANDSWORTH COUNCIL,NGF CS,,OTHER AGENCIES,DISBURSEMENTS,1022063,120643250,17-Aug-16,"1,150.00",Revenue,4 BRICK COURT MANAGEMENT LIMITED,SP0007380
WANDSWORTH COUNCIL,NGF CS,,OTHER AGENCIES,DISBURSEMENTS,1024646,120643250,19-Aug-16,"1,200.00",Revenue,4 BRICK COURT MANAGEMENT LIMITED,SP0007380
WANDSWORTH COUNCIL,NGF CS,,OTHER AGENCIES,DISBURSEMENTS,1024655,120643250,19-Aug-16,"21,718.75",Revenue,4 BRICK COURT MANAGEMENT LIMITED,SP0007380
WANDSWORTH COUNCIL,NGF CS,,OTHER AGENCIES,DISBURSEMENTS,1024656,120643250,19-Aug-16,"11,390.00",Revenue,4 BRICK COURT MANAGEMENT LIMITED,SP0007380
WANDSWORTH COUNCIL,NGF CS,,OTHER AGENCIES,DISBURSEMENTS,1024664,120643250,19-Aug-16,550.00,Revenue,4 BRICK COURT MANAGEMENT LIMITED,SP0007380
WANDSWORTH COUNCIL,NGF CS,,OTHER AGENCIES,DISBURSEMENTS,1024665,120643250,19-Aug-16,570.00,Revenue,4 BRICK COURT MANAGEMENT LIMITED,SP0007380
WANDSWORTH COUNCIL,NGF CS,,OTHER AGENCIES,DISBURSEMENTS,1024666,120643250,19-Aug-16,575.00,Revenue,4 BRICK COURT MANAGEMENT LIMITED,SP0007380
WANDSWORTH COUNCIL,NGF CS,,OTHER AGENCIES,DISBURSEMENTS,1024667,120643250,19-Aug-16,700.00,Revenue,4 BRICK COURT MANAGEMENT LIMITED,SP0007380
WANDSWORTH COUNCIL,NGF CS,,OTHER AGENCIES,DISBURSEMENTS,1024668,120643250,19-Aug-16,500.00,Revenue,4 BRICK COURT MANAGEMENT LIMITED,SP0007380
WANDSWORTH COUNCIL,NGF CS,,OTHER AGENCIES,DISBURSEMENTS,1024669,120643250,19-Aug-16,800.00,Revenue,4 BRICK COURT MANAGEMENT LIMITED,SP0007380
WANDSWORTH COUNCIL,NGF CS,,OTHER AGENCIES,DISBURSEMENTS,1024670,120643250,19-Aug-16,550.00,Revenue,4 BRICK COURT MANAGEMENT LIMITED,SP0007380
WANDSWORTH COUNCIL,NGF CS,,OTHER AGENCIES,DISBURSEMENTS,1024671,120643250,19-Aug-16,"3,300.00",Revenue,4 BRICK COURT MANAGEMENT LIMITED,SP0007380
WANDSWORTH COUNCIL,NGF CS,,OTHER AGENCIES,DISBURSEMENTS,1024672,120643250,19-Aug-16,500.00,Revenue,4 BRICK COURT MANAGEMENT LIMITED,SP0007380
WANDSWORTH COUNCIL,NGF CS,,OTHER AGENCIES,DISBURSEMENTS,1024675,120643250,19-Aug-16,"1,025.00",Revenue,4 BRICK COURT MANAGEMENT LIMITED,SP0007380
WANDSWORTH COUNCIL,NGF CS,,OTHER AGENCIES,DISBURSEMENTS,1024677,120643250,19-Aug-16,800.00,Revenue,4 BRICK COURT MANAGEMENT LIMITED,SP0007380
WANDSWORTH COUNCIL,NGF CS,,OTHER AGENCIES,DISBURSEMENTS,1024728,120643250,22-Aug-16,500.00,Revenue,4 BRICK COURT MANAGEMENT LIMITED,SP0007380
WANDSWORTH COUNCIL,NGF CS,,OTHER AGENCIES,DISBURSEMENTS,1026736,120643250,23-Aug-16,500.00,Revenue,4 BRICK COURT MANAGEMENT LIMITED,SP0007380
WANDSWORTH COUNCIL,NGF CS,,OTHER AGENCIES,DISBURSEMENTS,1028392,120643250,26-Aug-16,500.00,Revenue,4 BRICK COURT MANAGEMENT LIMITED,SP0007380
WANDSWORTH COUNCIL,NGF CS,,OTHER AGENCIES,DISBURSEMENTS,1017844,120643250,11-Aug-16,"3,500.00",Revenue,11 KBW LTD,SP0008673
WANDSWORTH COUNCIL,NGF CS,,OTHER AGENCIES,DISBURSEMENTS,1028393,120643250,25-Aug-16,"1,000.00",Revenue,FIVE PAPER,SP0009057
WANDSWORTH COUNCIL,NGF CS,,OTHER AGENCIES,DISBURSEMENTS,1022065,120643250,17-Aug-16,794.00,Revenue,DR LIONEL BAILLY,SP0009154
WANDSWORTH COUNCIL,NGF CS,,OTHER AGENCIES,DISBURSEMENTS,1012180,120643250,04-Aug-16,"1,550.00",Revenue,DR JULET BUTLER T/A BUTLER CONSULTANCY L,SP0009243
WANDSWORTH COUNCIL,NGF CS,,OTHER AGENCIES,DISBURSEMENTS,1011740,120643250,04-Aug-16,500.00,Revenue,1 GARDEN COURT CHAMBERS,SP0009291
WANDSWORTH COUNCIL,NGF CS,,OTHER AGENCIES,DISBURSEMENTS,1012175,120643250,04-Aug-16,"2,099.99",Revenue,1 GARDEN COURT CHAMBERS,SP0009291
WANDSWORTH COUNCIL,NGF CS,,OTHER AGENCIES,DISBURSEMENTS,1011739,120643250,04-Aug-16,"1,000.00",Revenue,FOURTEEN,SP0009555
WANDSWORTH COUNCIL,NGF CS,,OTHER AGENCIES,DISBURSEMENTS,1017846,120643250,11-Aug-16,"1,140.00",Revenue,FOURTEEN,SP0009555
WANDSWORTH COUNCIL,NGF CS,,OTHER AGENCIES,DISBURSEMENTS,1022105,120643250,17-Aug-16,720.00,Revenue,DR CHRISTOPHER J B MCEVEDY,SP0010181
WANDSWORTH COUNCIL,NGF CS,,PRIVATE,CONTRACT 7 - VNEB LEGAL,1024638,120645540,22-Aug-16,"1,172.85",Revenue,WINCKWORTH SHERWOOD LLP,SP0006926
WANDSWORTH COUNCIL,NGF CS,,PRIVATE,CONTRACT 4- LITIGATION,1016257,120646160,10-Aug-16,"5,675.85",Revenue,ASHFORDS,SP0002634
WANDSWORTH COUNCIL,NGF CS,,PRIVATE,CONTRACT 4- LITIGATION,1022113,120646160,17-Aug-16,"2,934.85",Revenue,ASHFORDS,SP0002634
WANDSWORTH COUNCIL,NGF CS,,PRIVATE,CONTRACT 4- LITIGATION,1026555,120646160,23-Aug-16,"1,450.00",Revenue,SHARPE PRITCHARD LLP,SP0003677
WANDSWORTH COUNCIL,NGF CS,,PRIVATE,"CONTRACT 6- HWYS, PLAN ETC",1026554,120646170,23-Aug-16,737.50,Revenue,A S B LAW,SP0003196
WANDSWORTH COUNCIL,NGF CS,,PRIVATE,"CONTRACT 6- HWYS, PLAN ETC",1012760,120646170,05-Aug-16,"42,870.00",Revenue,SHARPE PRITCHARD LLP,SP0003677
WANDSWORTH COUNCIL,NGF CS,,PRIVATE,"CONTRACT 6- HWYS, PLAN ETC",1012789,120646170,05-Aug-16,"56,260.00",Revenue,SHARPE PRITCHARD LLP,SP0003677
WANDSWORTH COUNCIL,NGF CS,,COMMUNICATIONS & COMP,I.T. SOFTWARE,1022536,121136240,25-Aug-16,"2,770.00",Revenue,VIEWDATA COMPUTING LTD,SP0002721
WANDSWORTH COUNCIL,NGF CS,,PRINTING STAT & GEN OFFICE EXP,OUTWORK - WEB OFFSET,1015075,121333580,08-Aug-16,"10,551.31",Revenue,GARNETT DICKINSON PRINT LTD,SP0010495
WANDSWORTH COUNCIL,NGF CS,,PRINTING STAT & GEN OFFICE EXP,OUTWORK - LITHO,1015080,121333590,08-Aug-16,736.61,Revenue,HALSTAN & CO LTD,SP0001850
WANDSWORTH COUNCIL,NGF CS,,PRINTING STAT & GEN OFFICE EXP,OUTWORK - LITHO,1015090,121333590,08-Aug-16,"1,546.41",Revenue,KALL KWIK,SP0003093
WANDSWORTH COUNCIL,NGF CS,,PRINTING STAT & GEN OFFICE EXP,OUTWORK - LITHO,1022377,121333590,17-Aug-16,"1,325.49",Revenue,KALL KWIK,SP0003093
WANDSWORTH COUNCIL,NGF CS,,PRINTING STAT & GEN OFFICE EXP,OUTWORK - LITHO,1022379,121333590,17-Aug-16,453.39,Revenue,KALL KWIK,SP0003093
WANDSWORTH COUNCIL,NGF CS,,PRINTING STAT & GEN OFFICE EXP,OUTWORK - LITHO,1015081,121333590,08-Aug-16,756.00,Revenue,IMPRESS PRINT SERVICES LTD,SP0003209
WANDSWORTH COUNCIL,NGF CS,,PRINTING STAT & GEN OFFICE EXP,OUTWORK - LITHO,1015100,121333590,08-Aug-16,773.00,Revenue,SLS PRINT,SP0006470
WANDSWORTH COUNCIL,NGF CS,,PRINTING STAT & GEN OFFICE EXP,OUTWORK - LITHO,1015104,121333590,08-Aug-16,961.25,Revenue,SLS PRINT,SP0006470
WANDSWORTH COUNCIL,NGF CS,,PRINTING STAT & GEN OFFICE EXP,OUTWORK - LITHO,1015073,121333590,08-Aug-16,733.59,Revenue,DELTOR COMMUNICATIONS LTD,SP0007714
WANDSWORTH COUNCIL,NGF CS,,PRINTING STAT & GEN OFFICE EXP,OUTWORK - EXTERN NON FRAMEWORK,1015074,121333600,08-Aug-16,634.80,Revenue,DISPLAYS (UK) LTD,SP0010149
WANDSWORTH COUNCIL,NGF CS,,PRINTING STAT & GEN OFFICE EXP,URGENT PRINT CONTRACT,1015092,121333620,08-Aug-16,950.36,Revenue,KALL KWIK,SP0003093
WANDSWORTH COUNCIL,NGF CS,,PRINTING STAT & GEN OFFICE EXP,URGENT PRINT CONTRACT,1015093,121333620,08-Aug-16,561.56,Revenue,KALL KWIK,SP0003093
WANDSWORTH COUNCIL,NGF CS,,MISC,MISCELLANEOUS EXPENSES,1015094,121338500,08-Aug-16,950.40,Revenue,LONDON LETTERBOX MARKETING,SP0000546
WANDSWORTH COUNCIL,NGF CS,,MISC,MISCELLANEOUS EXPENSES,1015095,121338500,08-Aug-16,"1,925.00",Revenue,LONDON LETTERBOX MARKETING,SP0000546
WANDSWORTH COUNCIL,NGF CS,,MISC,MISCELLANEOUS EXPENSES,1015097,121338500,08-Aug-16,519.48,Revenue,LONDON LETTERBOX MARKETING,SP0000546
WANDSWORTH COUNCIL,NGF CDC,,PRINTING STAT & GEN OFFICE EXP,PUBLICITY,1012731,122033470,05-Aug-16,816.80,Revenue,DOTMAILER LTD,SP0006264
WANDSWORTH COUNCIL,NGF CS,,INDIRECT,HEALTH CARE,1019806,123200640,31-Aug-16,"10,502.03",Revenue,BUPA INSURANCE LIMITED,SP0008413
WANDSWORTH COUNCIL,NGF CS,,INDIRECT,HEALTH CARE,1019806,123200640,31-Aug-16,"110,547.08",Revenue,BUPA INSURANCE LIMITED,SP0008413
WANDSWORTH COUNCIL,NGF CS,,INDIRECT,CHILDCARE VOUCHERS,1017130,123200650,12-Aug-16,735.93,Revenue,COMPUTERSHARE VOUCHER SERVICES,SP0003037
WANDSWORTH COUNCIL,NGF CS,,INDIRECT,IN-SERVICE TRAINING-SLA,1012851,123200740,09-Aug-16,650.00,Revenue,MARY FOSTER CONSULTING,SP0008493
WANDSWORTH COUNCIL,NGF CS,,INDIRECT,TRAINING - EXTERNAL COURSES,1017855,123200770,12-Aug-16,"1,590.00",Revenue,UK CONSTRUCTION TRAINING LTD,SP0011139
WANDSWORTH COUNCIL,NGF CS,,PRINTING STAT & GEN OFFICE EXP,PRINTING AND STATIONERY,1026180,123233420,25-Aug-16,275.13,Revenue,DANWOOD GROUP LTD,SP0002739
WANDSWORTH COUNCIL,NGF CS,,PRINTING STAT & GEN OFFICE EXP,PRINTING AND STATIONERY,1026180,123233420,25-Aug-16,275.13,Revenue,DANWOOD GROUP LTD,SP0002739
WANDSWORTH COUNCIL,NGF CS,,SERVICES,OHS SESSIONAL DOCTOR,1021030,123234690,17-Aug-16,"3,944.16",Revenue,HJM ASSOCIATES,SP0003667
WANDSWORTH COUNCIL,NGF CS,,COMMUNICATIONS & COMP,I.T. SOFTWARE,1027958,123236240,25-Aug-16,"2,625.00",Revenue,AWAKEN LEARNING LTD,SP0008397
WANDSWORTH COUNCIL,NGF CS,,COMMUNICATIONS & COMP,I.T. SOFTWARE,1027958,123236240,25-Aug-16,475.00,Revenue,AWAKEN LEARNING LTD,SP0008397
WANDSWORTH COUNCIL,NGF CS,,COMMUNICATIONS & COMP,I.T. SOFTWARE,1027958,123236240,25-Aug-16,87.50,Revenue,AWAKEN LEARNING LTD,SP0008397
WANDSWORTH COUNCIL,NGF CS,,MISC,MISCELLANEOUS EXPENSES,1026486,123238500,25-Aug-16,"1,002.25",Revenue,EDENRED UK GROUP LTD,SP0000238
WANDSWORTH COUNCIL,NGF CS,,MISC,MISCELLANEOUS EXPENSES,1016266,123238500,12-Aug-16,808.28,Revenue,VOUCHER EXPRESS (HEMINGWAYS MARKETING SE,SP0000430
WANDSWORTH COUNCIL,NGF CS,,MISC,MISCELLANEOUS EXPENSES,1016266,123238500,12-Aug-16,147.22,Revenue,VOUCHER EXPRESS (HEMINGWAYS MARKETING SE,SP0000430
WANDSWORTH COUNCIL,NGF CDC,ADMINISTRATION,EXPENSES,EXPENSES - SUBSISTENCE,1031947,12413706K0211Q,30-Aug-16,600.00,Revenue,PILGRIM UNION CHURCH,RG0000001
WANDSWORTH COUNCIL,NGF CDC,ADMINISTRATION,EXPENSES,EXPENSES - SUBSISTENCE,1032631,12413706K0211Q,31-Aug-16,"1,200.00",Revenue,WANDSWORTH PRIMARY PLAY ASSOCIATION,SP0001090
WANDSWORTH COUNCIL,NGF CDC,ADMINISTRATION,EXPENSES,EXPENSES - SUBSISTENCE,1031633,12413706K0211Q,30-Aug-16,"1,100.00",Revenue,YAHWEH CHRISTIAN FELLOWSHIP,SP0002275
WANDSWORTH COUNCIL,NGF CDC,ADMINISTRATION,EXPENSES,EXPENSES - SUBSISTENCE,1031634,12413706K0211Q,30-Aug-16,770.00,Revenue,ST AUGUSTINES CHURCH,SP0008823
WANDSWORTH COUNCIL,PH,,MISC,MISCELLANEOUS EXPENSES,1027292,125038500,26-Aug-16,"26,505.97",Revenue,ROYAL BOROUGH OF KINGSTON-UPON-THAMES,SP0000445
WANDSWORTH COUNCIL,NGF CS,,INDIRECT,TRAINING - EXTERNAL COURSES,1013259,126000770,05-Aug-16,"1,995.00",Revenue,LEARNING TREE INTERNATIONAL LTD,SP0003426
WANDSWORTH COUNCIL,NGF CS,,INDIRECT,TRAINING - EXTERNAL COURSES,1013262,126000770,05-Aug-16,"1,995.00",Revenue,LEARNING TREE INTERNATIONAL LTD,SP0003426
WANDSWORTH COUNCIL,NGF CS,,"EQUIPMENT, FURNITURE & MATS",ADAPTATIONS - COUNCIL,1013561,126130020,09-Aug-16,"1,002.00",Revenue,SUNA COMMUNICATION LTD,SP0000491
WANDSWORTH COUNCIL,NGF CS,,"EQUIPMENT, FURNITURE & MATS",CCTV CONTROL ROOM DEVELOPMENT,1015601,126130030,09-Aug-16,"4,803.36",Revenue,VIRGIN MEDIA BUSINESS,SP0003737
WANDSWORTH COUNCIL,NGF CS,,"EQUIPMENT, FURNITURE & MATS",CCTV CONTROL ROOM DEVELOPMENT,1026731,126130030,23-Aug-16,"1,529.23",Revenue,VIRGIN MEDIA BUSINESS,SP0003737
WANDSWORTH COUNCIL,NGF CS,,"EQUIPMENT, FURNITURE & MATS",CCTV FIBRE RENTALS,1015657,126130040,09-Aug-16,"5,045.00",Revenue,VODAFONE CORPORATE,SP0001107
WANDSWORTH COUNCIL,NGF CS,,"EQUIPMENT, FURNITURE & MATS",CCTV MAINTENANCE,1003985,126130050,05-Aug-16,"78,379.80",Revenue,VODAFONE CORPORATE,SP0001107
WANDSWORTH COUNCIL,NGF CS,,"EQUIPMENT, FURNITURE & MATS",CCTV MAINTENANCE,1003985,126130050,05-Aug-16,306.15,Revenue,VODAFONE CORPORATE,SP0001107
WANDSWORTH COUNCIL,NGF CS,,"EQUIPMENT, FURNITURE & MATS",CONSUMABLES,1013280,126130080,05-Aug-16,"14,901.12",Revenue,BT PAYMENT SERVICES LTD,SP0001093
WANDSWORTH COUNCIL,NGF CS,,"EQUIPMENT, FURNITURE & MATS",CONSUMABLES,1015599,126130080,09-Aug-16,"2,144.32",Revenue,BT PAYMENT SERVICES LTD,SP0001093
WANDSWORTH COUNCIL,NGF CS,,"EQUIPMENT, FURNITURE & MATS","EQUIPMENT, FURNITURE & MATS",1022531,126330000,23-Aug-16,9.95,Revenue,INCOM TELECOMMUNICATIONS,SP0000568
WANDSWORTH COUNCIL,NGF CS,,"EQUIPMENT, FURNITURE & MATS","EQUIPMENT, FURNITURE & MATS",1022531,126330000,23-Aug-16,440.00,Revenue,INCOM TELECOMMUNICATIONS,SP0000568
WANDSWORTH COUNCIL,NGF CS,,"EQUIPMENT, FURNITURE & MATS","EQUIPMENT, FURNITURE & MATS",1009552,126330000,03-Aug-16,"3,375.00",Revenue,DAMOVO UK LTD,SP0000899
WANDSWORTH COUNCIL,NGF CS,,"EQUIPMENT, FURNITURE & MATS","EQUIPMENT, FURNITURE & MATS",1009553,126330000,03-Aug-16,"9,323.00",Revenue,DAMOVO UK LTD,SP0000899
WANDSWORTH COUNCIL,NGF CS,,"EQUIPMENT, FURNITURE & MATS","EQUIPMENT, FURNITURE & MATS",1012774,126330000,09-Aug-16,"1,850.00",Revenue,VOICE AND DATA,SP0001145
WANDSWORTH COUNCIL,NGF CS,,"EQUIPMENT, FURNITURE & MATS","EQUIPMENT, FURNITURE & MATS",1012774,126330000,09-Aug-16,40.00,Revenue,VOICE AND DATA,SP0001145
WANDSWORTH COUNCIL,NGF CS,,"EQUIPMENT, FURNITURE & MATS","EQUIPMENT, FURNITURE & MATS",1012774,126330000,09-Aug-16,600.00,Revenue,VOICE AND DATA,SP0001145
WANDSWORTH COUNCIL,NGF CS,,"EQUIPMENT, FURNITURE & MATS","EQUIPMENT, FURNITURE & MATS",1032275,126530000,31-Aug-16,781.50,Revenue,XMA LIMITED,SP0000625
WANDSWORTH COUNCIL,NGF CS,,"EQUIPMENT, FURNITURE & MATS","EQUIPMENT, FURNITURE & MATS",1017103,126530000,12-Aug-16,"5,155.40",Revenue,KELWAY UK LTD,SP0006327
WANDSWORTH COUNCIL,NGF CS,,"EQUIPMENT, FURNITURE & MATS","EQUIPMENT, FURNITURE & MATS",1017103,126530000,12-Aug-16,359.67,Revenue,KELWAY UK LTD,SP0006327
WANDSWORTH COUNCIL,NGF CS,,"EQUIPMENT, FURNITURE & MATS","EQUIPMENT, FURNITURE & MATS",1016634,126530000,16-Aug-16,"1,496.31",Revenue,SOFTWARE BOX LTD,SP0007589
WANDSWORTH COUNCIL,NGF CS,,"EQUIPMENT, FURNITURE & MATS","EQUIPMENT, FURNITURE & MATS",1027958,126530000,25-Aug-16,"2,625.00",Revenue,AWAKEN LEARNING LTD,SP0008397
WANDSWORTH COUNCIL,NGF CS,,"EQUIPMENT, FURNITURE & MATS","EQUIPMENT, FURNITURE & MATS",1027958,126530000,25-Aug-16,475.00,Revenue,AWAKEN LEARNING LTD,SP0008397
WANDSWORTH COUNCIL,NGF CS,,"EQUIPMENT, FURNITURE & MATS","EQUIPMENT, FURNITURE & MATS",1027958,126530000,25-Aug-16,87.50,Revenue,AWAKEN LEARNING LTD,SP0008397
WANDSWORTH COUNCIL,NGF CS,,"EQUIPMENT, FURNITURE & MATS","EQUIPMENT, FURNITURE & MATS",1017096,126630000,11-Aug-16,"3,320.00",Revenue,JADU LIMITED LCB,SP0003050
WANDSWORTH COUNCIL,NGF CS,,"EQUIPMENT, FURNITURE & MATS","EQUIPMENT, FURNITURE & MATS",1020966,126630000,17-Aug-16,"5,310.00",Revenue,JADU LIMITED LCB,SP0003050
WANDSWORTH COUNCIL,NGF CS,,"EQUIPMENT, FURNITURE & MATS","EQUIPMENT, FURNITURE & MATS",969809,126630000,18-Aug-16,"5,250.00",Revenue,EBASE TECHNOLOGY LTD,SP0006389
WANDSWORTH COUNCIL,NGF CS,,INDIRECT,TRAINING - EXTERNAL COURSES,1021024,126700770,17-Aug-16,750.00,Revenue,NORTHGATE PUBLIC SERVICES (UK) LTD,SP0000812
WANDSWORTH COUNCIL,NGF CS,,INDIRECT,TRAINING - EXTERNAL COURSES,1021025,126700770,17-Aug-16,750.00,Revenue,NORTHGATE PUBLIC SERVICES (UK) LTD,SP0000812
WANDSWORTH COUNCIL,NGF CS,,COMMUNICATIONS & COMP,I.T. SLA RECHARGE,1008216,126836230,04-Aug-16,"3,483.00",Revenue,QMATIC UK LTD,SP0000660
WANDSWORTH COUNCIL,NGF CS,,COMMUNICATIONS & COMP,I.T. SLA RECHARGE,1011259,126836230,04-Aug-16,"1,495.00",Revenue,JAYEX TECHNOLOGY LIMITED,SP0004734
WANDSWORTH COUNCIL,NGF CS,,COMMUNICATIONS & COMP,I.T. - SAFFRON,1012744,126836260,05-Aug-16,"14,555.00",Revenue,CIVICA UK LTD,SP0000394
WANDSWORTH COUNCIL,NGF CS,,COMMUNICATIONS & COMP,I.T. - SYSTEMS DEVELOPMENT,1009561,126836270,09-Aug-16,"36,477.88",Revenue,CIVICA UK LTD,SP0000394
WANDSWORTH COUNCIL,CS,,DIRECT2,AGENCY STAFF,1015129,128000510,09-Aug-16,"23,511.05",Revenue,MATRIX SCM LIMITED,SP0004572
WANDSWORTH COUNCIL,CS,,DIRECT2,AGENCY STAFF,1019644,128000510,17-Aug-16,"27,672.06",Revenue,MATRIX SCM LIMITED,SP0004572
WANDSWORTH COUNCIL,CS,,DIRECT2,AGENCY STAFF,1023521,128000510,22-Aug-16,"21,698.45",Revenue,MATRIX SCM LIMITED,SP0004572
WANDSWORTH COUNCIL,CS,,DIRECT2,AGENCY STAFF,1028348,128000510,26-Aug-16,"23,371.35",Revenue,MATRIX SCM LIMITED,SP0004572
WANDSWORTH COUNCIL,ASC,SOCIAL SERVICES,PRIVATE,ONE TO ONE CARE,1016830,130046220,09-Aug-16,573.43,Revenue,ST MARYS RESIDENTIAL HOME,SP0000215
WANDSWORTH COUNCIL,ASC,SOCIAL SERVICES,VOL ASS,SUPPORTED HOUSING PROGRAMME,1019247,130048030,12-Aug-16,198.72,Revenue,THE BRANDON TRUST,SP0005337
WANDSWORTH COUNCIL,ASC,SOCIAL SERVICES,VOL ASS,SUPPORTED HOUSING PROGRAMME,1019254,130048030,12-Aug-16,66.24,Revenue,THE BRANDON TRUST,SP0005337
WANDSWORTH COUNCIL,ASC,SOCIAL SERVICES,HIRE,HIRE - TRANSPORT,1019275,130220410,12-Aug-16,546.70,Revenue,HEALTHCARE & TRANSPORT SERVICES (HATS),SP0000012
WANDSWORTH COUNCIL,ASC,SOCIAL SERVICES,HIRE,HIRE - TRANSPORT,1021056,130220410,16-Aug-16,135.44,Revenue,BECKETT CORPORATION LTD T/A TINAS CARS,SP0000729
WANDSWORTH COUNCIL,ASC,SOCIAL SERVICES,HIRE,HIRE - TRANSPORT,1021057,130220410,16-Aug-16,547.43,Revenue,BECKETT CORPORATION LTD T/A TINAS CARS,SP0000729
WANDSWORTH COUNCIL,ASC,SOCIAL SERVICES,HIRE,HIRE - TRANSPORT,1021058,130220410,16-Aug-16,"1,496.84",Revenue,BECKETT CORPORATION LTD T/A TINAS CARS,SP0000729
WANDSWORTH COUNCIL,ASC,SOCIAL SERVICES,HIRE,HIRE - TRANSPORT,1021062,130220410,16-Aug-16,630.80,Revenue,BECKETT CORPORATION LTD T/A TINAS CARS,SP0000729
WANDSWORTH COUNCIL,ASC,SOCIAL SERVICES,HIRE,HIRE - TRANSPORT,1021063,130220410,16-Aug-16,"1,566.00",Revenue,BECKETT CORPORATION LTD T/A TINAS CARS,SP0000729
WANDSWORTH COUNCIL,ASC,SOCIAL SERVICES,HIRE,HIRE - TRANSPORT,1021066,130220410,16-Aug-16,434.96,Revenue,BECKETT CORPORATION LTD T/A TINAS CARS,SP0000729
WANDSWORTH COUNCIL,ASC,SOCIAL SERVICES,HIRE,HIRE - TRANSPORT,1021067,130220410,16-Aug-16,135.44,Revenue,BECKETT CORPORATION LTD T/A TINAS CARS,SP0000729
WANDSWORTH COUNCIL,ASC,SOCIAL SERVICES,HIRE,HIRE - TRANSPORT,1021069,130220410,16-Aug-16,490.72,Revenue,BECKETT CORPORATION LTD T/A TINAS CARS,SP0000729
WANDSWORTH COUNCIL,ASC,SOCIAL SERVICES,HIRE,HIRE - TRANSPORT,1021070,130220410,16-Aug-16,720.00,Revenue,BECKETT CORPORATION LTD T/A TINAS CARS,SP0000729
WANDSWORTH COUNCIL,ASC,SOCIAL SERVICES,HIRE,HIRE - TRANSPORT,1021072,130220410,16-Aug-16,640.00,Revenue,BECKETT CORPORATION LTD T/A TINAS CARS,SP0000729
WANDSWORTH COUNCIL,ASC,SOCIAL SERVICES,HIRE,HIRE - TRANSPORT,1021077,130220410,16-Aug-16,"1,240.00",Revenue,BECKETT CORPORATION LTD T/A TINAS CARS,SP0000729
WANDSWORTH COUNCIL,ASC,SOCIAL SERVICES,HIRE,HIRE - TRANSPORT,1021078,130220410,16-Aug-16,800.00,Revenue,BECKETT CORPORATION LTD T/A TINAS CARS,SP0000729
WANDSWORTH COUNCIL,ASC,SOCIAL SERVICES,HIRE,HIRE - TRANSPORT,1021079,130220410,16-Aug-16,780.00,Revenue,BECKETT CORPORATION LTD T/A TINAS CARS,SP0000729
WANDSWORTH COUNCIL,ASC,SOCIAL SERVICES,HIRE,HIRE - TRANSPORT,1021080,130220410,16-Aug-16,617.50,Revenue,BECKETT CORPORATION LTD T/A TINAS CARS,SP0000729
WANDSWORTH COUNCIL,ASC,SOCIAL SERVICES,HIRE,HIRE - TRANSPORT,1016502,130220410,09-Aug-16,998.00,Revenue,A STAR TRANSPORT LTD,SP0000866
WANDSWORTH COUNCIL,ASC,SOCIAL SERVICES,HIRE,HIRE - TRANSPORT,1016503,130220410,09-Aug-16,798.00,Revenue,A STAR TRANSPORT LTD,SP0000866
WANDSWORTH COUNCIL,ASC,SOCIAL SERVICES,HIRE,HIRE - TRANSPORT,1016504,130220410,09-Aug-16,576.00,Revenue,A STAR TRANSPORT LTD,SP0000866
WANDSWORTH COUNCIL,ASC,SOCIAL SERVICES,HIRE,HIRE - TRANSPORT,1016507,130220410,09-Aug-16,554.00,Revenue,A STAR TRANSPORT LTD,SP0000866
WANDSWORTH COUNCIL,ASC,SOCIAL SERVICES,HIRE,HIRE - TRANSPORT,1016508,130220410,09-Aug-16,520.00,Revenue,A STAR TRANSPORT LTD,SP0000866
WANDSWORTH COUNCIL,ASC,SOCIAL SERVICES,HIRE,HIRE - TRANSPORT,1016509,130220410,09-Aug-16,858.00,Revenue,A STAR TRANSPORT LTD,SP0000866
WANDSWORTH COUNCIL,ASC,SOCIAL SERVICES,HIRE,HIRE - TRANSPORT,1016511,130220410,09-Aug-16,"1,282.00",Revenue,A STAR TRANSPORT LTD,SP0000866
WANDSWORTH COUNCIL,ASC,SOCIAL SERVICES,HIRE,HIRE - TRANSPORT,1016512,130220410,09-Aug-16,"1,280.00",Revenue,A STAR TRANSPORT LTD,SP0000866
WANDSWORTH COUNCIL,ASC,SOCIAL SERVICES,HIRE,HIRE - TRANSPORT,1016514,130220410,09-Aug-16,565.80,Revenue,A STAR TRANSPORT LTD,SP0000866
WANDSWORTH COUNCIL,ASC,SOCIAL SERVICES,HIRE,HIRE - TRANSPORT,1016515,130220410,09-Aug-16,"1,000.00",Revenue,A STAR TRANSPORT LTD,SP0000866
WANDSWORTH COUNCIL,ASC,SOCIAL SERVICES,HIRE,HIRE - TRANSPORT,1016516,130220410,09-Aug-16,"1,000.00",Revenue,A STAR TRANSPORT LTD,SP0000866
WANDSWORTH COUNCIL,ASC,SOCIAL SERVICES,HIRE,HIRE - TRANSPORT,1016518,130220410,09-Aug-16,784.00,Revenue,A STAR TRANSPORT LTD,SP0000866
WANDSWORTH COUNCIL,ASC,SOCIAL SERVICES,HIRE,HIRE - TRANSPORT,1016519,130220410,09-Aug-16,784.00,Revenue,A STAR TRANSPORT LTD,SP0000866
WANDSWORTH COUNCIL,ASC,SOCIAL SERVICES,HIRE,HIRE - TRANSPORT,1016520,130220410,09-Aug-16,"1,104.00",Revenue,A STAR TRANSPORT LTD,SP0000866
WANDSWORTH COUNCIL,ASC,SOCIAL SERVICES,HIRE,HIRE - TRANSPORT,1016521,130220410,09-Aug-16,560.00,Revenue,A STAR TRANSPORT LTD,SP0000866
WANDSWORTH COUNCIL,ASC,SOCIAL SERVICES,HIRE,HIRE - TRANSPORT,1016524,130220410,09-Aug-16,588.00,Revenue,A STAR TRANSPORT LTD,SP0000866
WANDSWORTH COUNCIL,ASC,SOCIAL SERVICES,HIRE,HIRE - TRANSPORT,1016525,130220410,09-Aug-16,528.00,Revenue,A STAR TRANSPORT LTD,SP0000866
WANDSWORTH COUNCIL,ASC,SOCIAL SERVICES,HIRE,HIRE - TRANSPORT,1016526,130220410,09-Aug-16,528.00,Revenue,A STAR TRANSPORT LTD,SP0000866
WANDSWORTH COUNCIL,ASC,SOCIAL SERVICES,HIRE,HIRE - TRANSPORT,1016527,130220410,09-Aug-16,528.00,Revenue,A STAR TRANSPORT LTD,SP0000866
WANDSWORTH COUNCIL,ASC,SOCIAL SERVICES,HIRE,HIRE - TRANSPORT,1016530,130220410,09-Aug-16,"1,033.33",Revenue,A STAR TRANSPORT LTD,SP0000866
WANDSWORTH COUNCIL,ASC,SOCIAL SERVICES,HIRE,HIRE - TRANSPORT,1016531,130220410,09-Aug-16,"1,453.33",Revenue,A STAR TRANSPORT LTD,SP0000866
WANDSWORTH COUNCIL,ASC,SOCIAL SERVICES,HIRE,HIRE - TRANSPORT,1016533,130220410,09-Aug-16,"2,520.00",Revenue,A STAR TRANSPORT LTD,SP0000866
WANDSWORTH COUNCIL,ASC,SOCIAL SERVICES,HIRE,HIRE - TRANSPORT,1016534,130220410,09-Aug-16,"1,352.00",Revenue,A STAR TRANSPORT LTD,SP0000866
WANDSWORTH COUNCIL,ASC,SOCIAL SERVICES,HIRE,HIRE - TRANSPORT,1016535,130220410,09-Aug-16,"1,482.00",Revenue,A STAR TRANSPORT LTD,SP0000866
WANDSWORTH COUNCIL,ASC,SOCIAL SERVICES,HIRE,HIRE - TRANSPORT,1016536,130220410,09-Aug-16,625.12,Revenue,A STAR TRANSPORT LTD,SP0000866
WANDSWORTH COUNCIL,ASC,SOCIAL SERVICES,HIRE,HIRE - TRANSPORT,1016537,130220410,09-Aug-16,"1,240.00",Revenue,A STAR TRANSPORT LTD,SP0000866
WANDSWORTH COUNCIL,ASC,SOCIAL SERVICES,HIRE,HIRE - TRANSPORT,1016538,130220410,09-Aug-16,839.00,Revenue,A STAR TRANSPORT LTD,SP0000866
WANDSWORTH COUNCIL,ASC,SOCIAL SERVICES,HIRE,HIRE - TRANSPORT,1016539,130220410,09-Aug-16,"1,716.00",Revenue,A STAR TRANSPORT LTD,SP0000866
WANDSWORTH COUNCIL,ASC,SOCIAL SERVICES,HIRE,HIRE - TRANSPORT,1016540,130220410,09-Aug-16,"1,800.00",Revenue,A STAR TRANSPORT LTD,SP0000866
WANDSWORTH COUNCIL,ASC,SOCIAL SERVICES,HIRE,HIRE - TRANSPORT,1016541,130220410,09-Aug-16,616.32,Revenue,A STAR TRANSPORT LTD,SP0000866
WANDSWORTH COUNCIL,ASC,SOCIAL SERVICES,HIRE,HIRE - TRANSPORT,1016545,130220410,09-Aug-16,"2,114.00",Revenue,A STAR TRANSPORT LTD,SP0000866
WANDSWORTH COUNCIL,ASC,SOCIAL SERVICES,HIRE,HIRE - TRANSPORT,1016547,130220410,09-Aug-16,"1,200.00",Revenue,A STAR TRANSPORT LTD,SP0000866
WANDSWORTH COUNCIL,ASC,SOCIAL SERVICES,HIRE,HIRE - TRANSPORT,1016548,130220410,09-Aug-16,840.00,Revenue,A STAR TRANSPORT LTD,SP0000866
WANDSWORTH COUNCIL,ASC,SOCIAL SERVICES,HIRE,HIRE - TRANSPORT,1016549,130220410,09-Aug-16,840.00,Revenue,A STAR TRANSPORT LTD,SP0000866
WANDSWORTH COUNCIL,ASC,SOCIAL SERVICES,HIRE,HIRE - TRANSPORT,1016550,130220410,09-Aug-16,"1,352.00",Revenue,A STAR TRANSPORT LTD,SP0000866
WANDSWORTH COUNCIL,ASC,SOCIAL SERVICES,HIRE,HIRE - TRANSPORT,1016552,130220410,09-Aug-16,575.60,Revenue,A STAR TRANSPORT LTD,SP0000866
WANDSWORTH COUNCIL,ASC,SOCIAL SERVICES,HIRE,HIRE - TRANSPORT,1016560,130220410,09-Aug-16,576.00,Revenue,A STAR TRANSPORT LTD,SP0000866
WANDSWORTH COUNCIL,ASC,SOCIAL SERVICES,HIRE,HIRE - TRANSPORT,1018593,130220410,11-Aug-16,448.00,Revenue,A STAR TRANSPORT LTD,SP0000866
WANDSWORTH COUNCIL,ASC,SOCIAL SERVICES,HIRE,HIRE - TRANSPORT,1018594,130220410,11-Aug-16,"1,044.00",Revenue,A STAR TRANSPORT LTD,SP0000866
WANDSWORTH COUNCIL,ASC,SOCIAL SERVICES,HIRE,HIRE - TRANSPORT,1018596,130220410,11-Aug-16,616.00,Revenue,A STAR TRANSPORT LTD,SP0000866
WANDSWORTH COUNCIL,ASC,SOCIAL SERVICES,HIRE,HIRE - TRANSPORT,1030940,130220410,26-Aug-16,448.00,Revenue,A STAR TRANSPORT LTD,SP0000866
WANDSWORTH COUNCIL,ASC,SOCIAL SERVICES,HIRE,HIRE - TRANSPORT,1030942,130220410,26-Aug-16,468.00,Revenue,A STAR TRANSPORT LTD,SP0000866
WANDSWORTH COUNCIL,ASC,SOCIAL SERVICES,HIRE,HIRE - TRANSPORT,1030946,130220410,26-Aug-16,448.00,Revenue,A STAR TRANSPORT LTD,SP0000866
WANDSWORTH COUNCIL,ASC,SOCIAL SERVICES,HIRE,HIRE - TRANSPORT,1030948,130220410,26-Aug-16,518.00,Revenue,A STAR TRANSPORT LTD,SP0000866
WANDSWORTH COUNCIL,ASC,SOCIAL SERVICES,HIRE,HIRE - TRANSPORT,1030949,130220410,26-Aug-16,504.00,Revenue,A STAR TRANSPORT LTD,SP0000866
WANDSWORTH COUNCIL,ASC,SOCIAL SERVICES,HIRE,HIRE - TRANSPORT,1030950,130220410,26-Aug-16,672.00,Revenue,A STAR TRANSPORT LTD,SP0000866
WANDSWORTH COUNCIL,ASC,SOCIAL SERVICES,HIRE,HIRE - TRANSPORT,1018077,130220410,10-Aug-16,759.80,Revenue,PARKER CARS LIMITED,SP0005826
WANDSWORTH COUNCIL,ASC,SOCIAL SERVICES,HIRE,HIRE - TRANSPORT,1018080,130220410,10-Aug-16,491.70,Revenue,PARKER CARS LIMITED,SP0005826
WANDSWORTH COUNCIL,ASC,SOCIAL SERVICES,HIRE,HIRE - TRANSPORT,1018093,130220410,10-Aug-16,484.50,Revenue,PARKER CARS LIMITED,SP0005826
WANDSWORTH COUNCIL,ASC,SOCIAL SERVICES,HIRE,HIRE - TRANSPORT,1018095,130220410,10-Aug-16,862.00,Revenue,PARKER CARS LIMITED,SP0005826
WANDSWORTH COUNCIL,ASC,SOCIAL SERVICES,HIRE,HIRE - TRANSPORT,1018766,130220410,11-Aug-16,602.60,Revenue,PARKER CARS LIMITED,SP0005826
WANDSWORTH COUNCIL,ASC,SOCIAL SERVICES,HIRE,HIRE - TRANSPORT,1018769,130220410,11-Aug-16,434.10,Revenue,PARKER CARS LIMITED,SP0005826
WANDSWORTH COUNCIL,ASC,SOCIAL SERVICES,HIRE,HIRE - TRANSPORT,1018588,130220410,11-Aug-16,737.31,Revenue,ROTHERHAM COMMUNITY TRANSPORT,SP0008046
WANDSWORTH COUNCIL,ASC,SOCIAL SERVICES,HIRE,NEW TRANSPORT CONTRACT,1021056,130220430,16-Aug-16,432.28,Revenue,BECKETT CORPORATION LTD T/A TINAS CARS,SP0000729
WANDSWORTH COUNCIL,ASC,SOCIAL SERVICES,HIRE,NEW TRANSPORT CONTRACT,1021064,130220430,16-Aug-16,"1,566.00",Revenue,BECKETT CORPORATION LTD T/A TINAS CARS,SP0000729
WANDSWORTH COUNCIL,ASC,SOCIAL SERVICES,HIRE,NEW TRANSPORT CONTRACT,1021067,130220430,16-Aug-16,369.20,Revenue,BECKETT CORPORATION LTD T/A TINAS CARS,SP0000729
WANDSWORTH COUNCIL,ASC,SOCIAL SERVICES,HEALTH,EXT RES S28A 100% OLD LONGSTAY,1016743,130241010,09-Aug-16,"6,247.34",Revenue,VOYAGE CARE LTD,SP0000366
WANDSWORTH COUNCIL,ASC,SOCIAL SERVICES,HEALTH,EXT RES S28A 100% OLD LONGSTAY,1016749,130241010,09-Aug-16,"9,174.76",Revenue,VOYAGE CARE LTD,SP0000366
WANDSWORTH COUNCIL,ASC,SOCIAL SERVICES,HEALTH,EXT RES S28A 100% OLD LONGSTAY,1026988,130241010,23-Aug-16,"3,882.88",Revenue,PARKGATE MANOR,SP0000521
WANDSWORTH COUNCIL,ASC,SOCIAL SERVICES,HEALTH,EXTERNAL RESIDENTIAL CARE S28A,1027024,130241080,23-Aug-16,"7,266.40",Revenue,PROGRESS HOUSING LULWORTH,SP0000921
WANDSWORTH COUNCIL,ASC,SOCIAL SERVICES,HEALTH,EXT RES CARE S28A 100%,1016744,130241090,09-Aug-16,"6,266.96",Revenue,VOYAGE CARE LTD,SP0000366
WANDSWORTH COUNCIL,ASC,SOCIAL SERVICES,HEALTH,EXT RES CARE S28A 100%,1027028,130241090,23-Aug-16,"6,793.25",Revenue,HOME FROM HOME CARE LIMITED,SP0001373
WANDSWORTH COUNCIL,ASC,SOCIAL SERVICES,HEALTH,EXT RES S28A OLD LONG STAY,1021034,130241110,16-Aug-16,"2,975.96",Revenue,ELEANOR NURSING & SOCIAL CARE,SP0000110
WANDSWORTH COUNCIL,ASC,SOCIAL SERVICES,HEALTH,EXT RES S28A OLD LONG STAY,1021035,130241110,16-Aug-16,"2,975.96",Revenue,ELEANOR NURSING & SOCIAL CARE,SP0000110
WANDSWORTH COUNCIL,ASC,SOCIAL SERVICES,HEALTH,EXT RES S28A OLD LONG STAY,1021036,130241110,16-Aug-16,"2,975.96",Revenue,ELEANOR NURSING & SOCIAL CARE,SP0000110
WANDSWORTH COUNCIL,ASC,SOCIAL SERVICES,HEALTH,EXT RES S28A OLD LONG STAY,1021037,130241110,16-Aug-16,"2,975.96",Revenue,ELEANOR NURSING & SOCIAL CARE,SP0000110
WANDSWORTH COUNCIL,ASC,SOCIAL SERVICES,HEALTH,EXT RES S28A OLD LONG STAY,1021038,130241110,16-Aug-16,"2,975.96",Revenue,ELEANOR NURSING & SOCIAL CARE,SP0000110
WANDSWORTH COUNCIL,ASC,SOCIAL SERVICES,HEALTH,EXT RES S28A OLD LONG STAY,1025861,130241110,22-Aug-16,"2,709.00",Revenue,ASHTON CARE,SP0000695
WANDSWORTH COUNCIL,ASC,SOCIAL SERVICES,HEALTH,EXT RES S28A OLD LONG STAY,1025862,130241110,22-Aug-16,"2,709.00",Revenue,ASHTON CARE,SP0000695
WANDSWORTH COUNCIL,ASC,SOCIAL SERVICES,HEALTH,EXT RES S28A OLD LONG STAY,1032739,130241110,31-Aug-16,"4,382.20",Revenue,ANTHONY TOBY HOMES TRUST,SP0000755
WANDSWORTH COUNCIL,ASC,SOCIAL SERVICES,HEALTH,EXT RES S28A OLD LONG STAY,1032740,130241110,31-Aug-16,"4,382.20",Revenue,ANTHONY TOBY HOMES TRUST,SP0000755
WANDSWORTH COUNCIL,ASC,,INDEPENDENT UNITS,DAY CARE MUTUAL,1030981,130242040,31-Aug-16,"34,374.18",Revenue,ONE TRUST,SP0010206
WANDSWORTH COUNCIL,ASC,SOCIAL SERVICES,OTHER AGENCIES,EXTERNAL OUTREACH,1013633,130243330,08-Aug-16,950.00,Revenue,PROTOCOL EDUCATION  LTD,SP0000171
WANDSWORTH COUNCIL,ASC,SOCIAL SERVICES,OTHER AGENCIES,EXTERNAL OUTREACH,1022229,130243330,17-Aug-16,950.00,Revenue,PROTOCOL EDUCATION  LTD,SP0000171
WANDSWORTH COUNCIL,ASC,SOCIAL SERVICES,OTHER AGENCIES,EXTERNAL OUTREACH,1026965,130243330,23-Aug-16,950.00,Revenue,PROTOCOL EDUCATION  LTD,SP0000171
WANDSWORTH COUNCIL,ASC,SOCIAL SERVICES,OTHER AGENCIES,EXTERNAL OUTREACH,1030936,130243330,26-Aug-16,950.00,Revenue,PROTOCOL EDUCATION  LTD,SP0000171
WANDSWORTH COUNCIL,ASC,SOCIAL SERVICES,OTHER AGENCIES,EXTERNAL OUTREACH,1027145,130243330,23-Aug-16,"3,785.36",Revenue,C M CARE LTD,SP0000455
WANDSWORTH COUNCIL,ASC,SOCIAL SERVICES,OTHER AGENCIES,EXTERNAL OUTREACH,1029419,130243330,25-Aug-16,"2,185.32",Revenue,C M CARE LTD,SP0000455
WANDSWORTH COUNCIL,ASC,SOCIAL SERVICES,OTHER AGENCIES,EXTERNAL OUTREACH,1029421,130243330,25-Aug-16,"1,501.76",Revenue,C M CARE LTD,SP0000455
WANDSWORTH COUNCIL,ASC,SOCIAL SERVICES,OTHER AGENCIES,EXTERNAL OUTREACH,1029422,130243330,25-Aug-16,576.00,Revenue,C M CARE LTD,SP0000455
WANDSWORTH COUNCIL,ASC,SOCIAL SERVICES,OTHER AGENCIES,EXTERNAL OUTREACH,1029423,130243330,25-Aug-16,"1,540.00",Revenue,C M CARE LTD,SP0000455
WANDSWORTH COUNCIL,ASC,SOCIAL SERVICES,OTHER AGENCIES,EXTERNAL OUTREACH,1018522,130243330,11-Aug-16,576.00,Revenue,GENERATE OPPORTUNITIES LTD,SP0000503
WANDSWORTH COUNCIL,ASC,SOCIAL SERVICES,OTHER AGENCIES,EXTERNAL OUTREACH,1018523,130243330,11-Aug-16,797.60,Revenue,GENERATE OPPORTUNITIES LTD,SP0000503
WANDSWORTH COUNCIL,ASC,SOCIAL SERVICES,OTHER AGENCIES,EXTERNAL OUTREACH,1018538,130243330,11-Aug-16,957.12,Revenue,GENERATE OPPORTUNITIES LTD,SP0000503
WANDSWORTH COUNCIL,ASC,SOCIAL SERVICES,OTHER AGENCIES,EXTERNAL OUTREACH,1018544,130243330,11-Aug-16,638.08,Revenue,GENERATE OPPORTUNITIES LTD,SP0000503
WANDSWORTH COUNCIL,ASC,SOCIAL SERVICES,OTHER AGENCIES,EXTERNAL OUTREACH,1018546,130243330,11-Aug-16,"1,196.40",Revenue,GENERATE OPPORTUNITIES LTD,SP0000503
WANDSWORTH COUNCIL,ASC,SOCIAL SERVICES,OTHER AGENCIES,EXTERNAL OUTREACH,1018552,130243330,11-Aug-16,"2,475.00",Revenue,GENERATE OPPORTUNITIES LTD,SP0000503
WANDSWORTH COUNCIL,ASC,SOCIAL SERVICES,OTHER AGENCIES,EXTERNAL OUTREACH,1019279,130243330,12-Aug-16,900.00,Revenue,ROYAL ASSOCIATION FOR DEAF PEOPLE,SP0001251
WANDSWORTH COUNCIL,ASC,SOCIAL SERVICES,OTHER AGENCIES,EXTERNAL OUTREACH,1016823,130243330,09-Aug-16,"1,928.76",Revenue,THE BRANDON TRUST,SP0005337
WANDSWORTH COUNCIL,ASC,SOCIAL SERVICES,OTHER AGENCIES,EXTERNAL OUTREACH,1018698,130243330,11-Aug-16,852.66,Revenue,THE BRANDON TRUST,SP0005337
WANDSWORTH COUNCIL,ASC,SOCIAL SERVICES,OTHER AGENCIES,EXTERNAL OUTREACH,1018699,130243330,11-Aug-16,886.31,Revenue,THE BRANDON TRUST,SP0005337
WANDSWORTH COUNCIL,ASC,SOCIAL SERVICES,OTHER AGENCIES,EXTERNAL OUTREACH,1018705,130243330,11-Aug-16,331.20,Revenue,THE BRANDON TRUST,SP0005337
WANDSWORTH COUNCIL,ASC,SOCIAL SERVICES,OTHER AGENCIES,EXTERNAL OUTREACH,1018718,130243330,11-Aug-16,757.92,Revenue,THE BRANDON TRUST,SP0005337
WANDSWORTH COUNCIL,ASC,SOCIAL SERVICES,OTHER AGENCIES,EXTERNAL OUTREACH,1018740,130243330,11-Aug-16,694.76,Revenue,THE BRANDON TRUST,SP0005337
WANDSWORTH COUNCIL,ASC,SOCIAL SERVICES,OTHER AGENCIES,EXTERNAL OUTREACH,1018753,130243330,11-Aug-16,"1,199.52",Revenue,THE BRANDON TRUST,SP0005337
WANDSWORTH COUNCIL,ASC,SOCIAL SERVICES,OTHER AGENCIES,EXTERNAL OUTREACH,1018754,130243330,11-Aug-16,599.76,Revenue,THE BRANDON TRUST,SP0005337
WANDSWORTH COUNCIL,ASC,SOCIAL SERVICES,OTHER AGENCIES,EXTERNAL OUTREACH,1018757,130243330,11-Aug-16,533.12,Revenue,THE BRANDON TRUST,SP0005337
WANDSWORTH COUNCIL,ASC,SOCIAL SERVICES,OTHER AGENCIES,EXTERNAL OUTREACH,1018762,130243330,11-Aug-16,"2,470.44",Revenue,THE BRANDON TRUST,SP0005337
WANDSWORTH COUNCIL,ASC,SOCIAL SERVICES,OTHER AGENCIES,EXTERNAL OUTREACH,1019215,130243330,12-Aug-16,631.60,Revenue,THE BRANDON TRUST,SP0005337
WANDSWORTH COUNCIL,ASC,SOCIAL SERVICES,OTHER AGENCIES,EXTERNAL OUTREACH,1019216,130243330,12-Aug-16,252.64,Revenue,THE BRANDON TRUST,SP0005337
WANDSWORTH COUNCIL,ASC,SOCIAL SERVICES,OTHER AGENCIES,EXTERNAL OUTREACH,1019220,130243330,12-Aug-16,591.04,Revenue,THE BRANDON TRUST,SP0005337
WANDSWORTH COUNCIL,ASC,SOCIAL SERVICES,OTHER AGENCIES,EXTERNAL OUTREACH,1019221,130243330,12-Aug-16,947.40,Revenue,THE BRANDON TRUST,SP0005337
WANDSWORTH COUNCIL,ASC,SOCIAL SERVICES,OTHER AGENCIES,EXTERNAL OUTREACH,1019222,130243330,12-Aug-16,"1,170.80",Revenue,THE BRANDON TRUST,SP0005337
WANDSWORTH COUNCIL,ASC,SOCIAL SERVICES,OTHER AGENCIES,EXTERNAL OUTREACH,1019238,130243330,12-Aug-16,189.48,Revenue,THE BRANDON TRUST,SP0005337
WANDSWORTH COUNCIL,ASC,SOCIAL SERVICES,OTHER AGENCIES,EXTERNAL OUTREACH,1013619,130243330,08-Aug-16,"2,640.00",Revenue,RELIABLE PERSONNEL LTD,SP0005657
WANDSWORTH COUNCIL,ASC,SOCIAL SERVICES,OTHER AGENCIES,EXTERNAL OUTREACH,1013622,130243330,08-Aug-16,"3,300.00",Revenue,RELIABLE PERSONNEL LTD,SP0005657
WANDSWORTH COUNCIL,ASC,SOCIAL SERVICES,OTHER AGENCIES,EXTERNAL OUTREACH,1009811,130243330,02-Aug-16,720.00,Revenue,LIVE TOO LIMITED,SP0010112
WANDSWORTH COUNCIL,ASC,SOCIAL SERVICES,OTHER AGENCIES,EXTERNAL OUTREACH,1030951,130243330,26-Aug-16,750.00,Revenue,A NEW LEAF,SP0010298
WANDSWORTH COUNCIL,ASC,SOCIAL SERVICES,OTHER AGENCIES,EXTERNAL OUTREACH,1030952,130243330,26-Aug-16,750.00,Revenue,A NEW LEAF,SP0010298
WANDSWORTH COUNCIL,ASC,SOCIAL SERVICES,OTHER AGENCIES,EXTERNAL OUTREACH,1030953,130243330,26-Aug-16,750.00,Revenue,A NEW LEAF,SP0010298
WANDSWORTH COUNCIL,ASC,SOCIAL SERVICES,OTHER AGENCIES,EXTERNAL OUTREACH,1030954,130243330,26-Aug-16,750.00,Revenue,A NEW LEAF,SP0010298
WANDSWORTH COUNCIL,ASC,SOCIAL SERVICES,PRIVATE,EXTERNAL DAYCARE,1013615,130245290,08-Aug-16,"1,999.41",Revenue,CMG HOMES LTD,SP0000075
WANDSWORTH COUNCIL,ASC,SOCIAL SERVICES,PRIVATE,EXTERNAL DAYCARE,1027116,130245290,23-Aug-16,"2,189.83",Revenue,CMG HOMES LTD,SP0000075
WANDSWORTH COUNCIL,ASC,SOCIAL SERVICES,PRIVATE,EXTERNAL DAYCARE,1019933,130245290,15-Aug-16,"1,158.59",Revenue,RESIDENTIAL CARE SERVICES T/A FRANKLYN L,SP0000147
WANDSWORTH COUNCIL,ASC,SOCIAL SERVICES,PRIVATE,EXTERNAL DAYCARE,1019186,130245290,12-Aug-16,878.48,Revenue,ORCHARD VALE TRUST,SP0000214
WANDSWORTH COUNCIL,ASC,SOCIAL SERVICES,PRIVATE,EXTERNAL DAYCARE,1019187,130245290,12-Aug-16,878.48,Revenue,ORCHARD VALE TRUST,SP0000214
WANDSWORTH COUNCIL,ASC,SOCIAL SERVICES,PRIVATE,EXTERNAL DAYCARE,1027119,130245290,23-Aug-16,"1,748.96",Revenue,ST MARYS RESIDENTIAL HOME,SP0000215
WANDSWORTH COUNCIL,ASC,SOCIAL SERVICES,PRIVATE,EXTERNAL DAYCARE,1027120,130245290,23-Aug-16,500.00,Revenue,ST MARYS RESIDENTIAL HOME,SP0000215
WANDSWORTH COUNCIL,ASC,SOCIAL SERVICES,PRIVATE,EXTERNAL DAYCARE,1027121,130245290,23-Aug-16,713.44,Revenue,ST MARYS RESIDENTIAL HOME,SP0000215
WANDSWORTH COUNCIL,ASC,SOCIAL SERVICES,PRIVATE,EXTERNAL DAYCARE,1027124,130245290,23-Aug-16,963.36,Revenue,ST MARYS RESIDENTIAL HOME,SP0000215
WANDSWORTH COUNCIL,ASC,SOCIAL SERVICES,PRIVATE,EXTERNAL DAYCARE,1027128,130245290,23-Aug-16,538.00,Revenue,ST MARYS RESIDENTIAL HOME,SP0000215
WANDSWORTH COUNCIL,ASC,SOCIAL SERVICES,PRIVATE,EXTERNAL DAYCARE,1019149,130245290,12-Aug-16,"1,589.22",Revenue,NAS SERVICES LIMITED,SP0000217
WANDSWORTH COUNCIL,ASC,SOCIAL SERVICES,PRIVATE,EXTERNAL DAYCARE,1019150,130245290,12-Aug-16,"3,732.00",Revenue,NAS SERVICES LIMITED,SP0000217
WANDSWORTH COUNCIL,ASC,SOCIAL SERVICES,PRIVATE,EXTERNAL DAYCARE,1019151,130245290,12-Aug-16,"3,807.80",Revenue,NAS SERVICES LIMITED,SP0000217
WANDSWORTH COUNCIL,ASC,SOCIAL SERVICES,PRIVATE,EXTERNAL DAYCARE,1019152,130245290,12-Aug-16,"1,594.76",Revenue,NAS SERVICES LIMITED,SP0000217
WANDSWORTH COUNCIL,ASC,SOCIAL SERVICES,PRIVATE,EXTERNAL DAYCARE,1019153,130245290,12-Aug-16,"3,745.00",Revenue,NAS SERVICES LIMITED,SP0000217
WANDSWORTH COUNCIL,ASC,SOCIAL SERVICES,PRIVATE,EXTERNAL DAYCARE,1019154,130245290,12-Aug-16,"2,264.08",Revenue,NAS SERVICES LIMITED,SP0000217
WANDSWORTH COUNCIL,ASC,SOCIAL SERVICES,PRIVATE,EXTERNAL DAYCARE,1019155,130245290,12-Aug-16,"2,264.08",Revenue,NAS SERVICES LIMITED,SP0000217
WANDSWORTH COUNCIL,ASC,SOCIAL SERVICES,PRIVATE,EXTERNAL DAYCARE,1019157,130245290,12-Aug-16,"2,264.08",Revenue,NAS SERVICES LIMITED,SP0000217
WANDSWORTH COUNCIL,ASC,SOCIAL SERVICES,PRIVATE,EXTERNAL DAYCARE,1027110,130245290,23-Aug-16,"2,331.00",Revenue,NAS SERVICES LIMITED,SP0000217
WANDSWORTH COUNCIL,ASC,SOCIAL SERVICES,PRIVATE,EXTERNAL DAYCARE,1019932,130245290,15-Aug-16,"1,856.40",Revenue,ESSEX COUNTY COUNCIL,SP0000269
WANDSWORTH COUNCIL,ASC,SOCIAL SERVICES,PRIVATE,EXTERNAL DAYCARE,1019163,130245290,12-Aug-16,598.45,Revenue,SHARE COMMUNITY,SP0000329
WANDSWORTH COUNCIL,ASC,SOCIAL SERVICES,PRIVATE,EXTERNAL DAYCARE,1019166,130245290,12-Aug-16,598.45,Revenue,SHARE COMMUNITY,SP0000329
WANDSWORTH COUNCIL,ASC,SOCIAL SERVICES,PRIVATE,EXTERNAL DAYCARE,1019167,130245290,12-Aug-16,897.65,Revenue,SHARE COMMUNITY,SP0000329
WANDSWORTH COUNCIL,ASC,SOCIAL SERVICES,PRIVATE,EXTERNAL DAYCARE,1019168,130245290,12-Aug-16,897.65,Revenue,SHARE COMMUNITY,SP0000329
WANDSWORTH COUNCIL,ASC,SOCIAL SERVICES,PRIVATE,EXTERNAL DAYCARE,1019169,130245290,12-Aug-16,"1,196.90",Revenue,SHARE COMMUNITY,SP0000329
WANDSWORTH COUNCIL,ASC,SOCIAL SERVICES,PRIVATE,EXTERNAL DAYCARE,1019170,130245290,12-Aug-16,897.65,Revenue,SHARE COMMUNITY,SP0000329
WANDSWORTH COUNCIL,ASC,SOCIAL SERVICES,PRIVATE,EXTERNAL DAYCARE,1019171,130245290,12-Aug-16,897.65,Revenue,SHARE COMMUNITY,SP0000329
WANDSWORTH COUNCIL,ASC,SOCIAL SERVICES,PRIVATE,EXTERNAL DAYCARE,1019173,130245290,12-Aug-16,598.45,Revenue,SHARE COMMUNITY,SP0000329
WANDSWORTH COUNCIL,ASC,SOCIAL SERVICES,PRIVATE,EXTERNAL DAYCARE,1019174,130245290,12-Aug-16,897.65,Revenue,SHARE COMMUNITY,SP0000329
WANDSWORTH COUNCIL,ASC,SOCIAL SERVICES,PRIVATE,EXTERNAL DAYCARE,1019175,130245290,12-Aug-16,"1,077.14",Revenue,SHARE COMMUNITY,SP0000329
WANDSWORTH COUNCIL,ASC,SOCIAL SERVICES,PRIVATE,EXTERNAL DAYCARE,1019176,130245290,12-Aug-16,598.45,Revenue,SHARE COMMUNITY,SP0000329
WANDSWORTH COUNCIL,ASC,SOCIAL SERVICES,PRIVATE,EXTERNAL DAYCARE,1019178,130245290,12-Aug-16,897.65,Revenue,SHARE COMMUNITY,SP0000329
WANDSWORTH COUNCIL,ASC,SOCIAL SERVICES,PRIVATE,EXTERNAL DAYCARE,1019179,130245290,12-Aug-16,598.45,Revenue,SHARE COMMUNITY,SP0000329
WANDSWORTH COUNCIL,ASC,SOCIAL SERVICES,PRIVATE,EXTERNAL DAYCARE,1019180,130245290,12-Aug-16,897.65,Revenue,SHARE COMMUNITY,SP0000329
WANDSWORTH COUNCIL,ASC,SOCIAL SERVICES,PRIVATE,EXTERNAL DAYCARE,1019181,130245290,12-Aug-16,"1,196.85",Revenue,SHARE COMMUNITY,SP0000329
WANDSWORTH COUNCIL,ASC,SOCIAL SERVICES,PRIVATE,EXTERNAL DAYCARE,1019182,130245290,12-Aug-16,"1,196.85",Revenue,SHARE COMMUNITY,SP0000329
WANDSWORTH COUNCIL,ASC,SOCIAL SERVICES,PRIVATE,EXTERNAL DAYCARE,1019183,130245290,12-Aug-16,598.45,Revenue,SHARE COMMUNITY,SP0000329
WANDSWORTH COUNCIL,ASC,SOCIAL SERVICES,PRIVATE,EXTERNAL DAYCARE,1019184,130245290,12-Aug-16,897.65,Revenue,SHARE COMMUNITY,SP0000329
WANDSWORTH COUNCIL,ASC,SOCIAL SERVICES,PRIVATE,EXTERNAL DAYCARE,1019185,130245290,12-Aug-16,897.65,Revenue,SHARE COMMUNITY,SP0000329
WANDSWORTH COUNCIL,ASC,SOCIAL SERVICES,PRIVATE,EXTERNAL DAYCARE,1019188,130245290,12-Aug-16,598.45,Revenue,SHARE COMMUNITY,SP0000329
WANDSWORTH COUNCIL,ASC,SOCIAL SERVICES,PRIVATE,EXTERNAL DAYCARE,1019189,130245290,12-Aug-16,897.65,Revenue,SHARE COMMUNITY,SP0000329
WANDSWORTH COUNCIL,ASC,SOCIAL SERVICES,PRIVATE,EXTERNAL DAYCARE,1019190,130245290,12-Aug-16,598.45,Revenue,SHARE COMMUNITY,SP0000329
WANDSWORTH COUNCIL,ASC,SOCIAL SERVICES,PRIVATE,EXTERNAL DAYCARE,1019191,130245290,12-Aug-16,"1,196.90",Revenue,SHARE COMMUNITY,SP0000329
WANDSWORTH COUNCIL,ASC,SOCIAL SERVICES,PRIVATE,EXTERNAL DAYCARE,1019192,130245290,12-Aug-16,598.45,Revenue,SHARE COMMUNITY,SP0000329
WANDSWORTH COUNCIL,ASC,SOCIAL SERVICES,PRIVATE,EXTERNAL DAYCARE,1019194,130245290,12-Aug-16,897.65,Revenue,SHARE COMMUNITY,SP0000329
WANDSWORTH COUNCIL,ASC,SOCIAL SERVICES,PRIVATE,EXTERNAL DAYCARE,1019195,130245290,12-Aug-16,598.45,Revenue,SHARE COMMUNITY,SP0000329
WANDSWORTH COUNCIL,ASC,SOCIAL SERVICES,PRIVATE,EXTERNAL DAYCARE,1019196,130245290,12-Aug-16,"1,196.90",Revenue,SHARE COMMUNITY,SP0000329
WANDSWORTH COUNCIL,ASC,SOCIAL SERVICES,PRIVATE,EXTERNAL DAYCARE,1019197,130245290,12-Aug-16,"1,196.90",Revenue,SHARE COMMUNITY,SP0000329
WANDSWORTH COUNCIL,ASC,SOCIAL SERVICES,PRIVATE,EXTERNAL DAYCARE,1019198,130245290,12-Aug-16,"1,496.10",Revenue,SHARE COMMUNITY,SP0000329
WANDSWORTH COUNCIL,ASC,SOCIAL SERVICES,PRIVATE,EXTERNAL DAYCARE,1019199,130245290,12-Aug-16,897.65,Revenue,SHARE COMMUNITY,SP0000329
WANDSWORTH COUNCIL,ASC,SOCIAL SERVICES,PRIVATE,EXTERNAL DAYCARE,1019200,130245290,12-Aug-16,"1,496.10",Revenue,SHARE COMMUNITY,SP0000329
WANDSWORTH COUNCIL,ASC,SOCIAL SERVICES,PRIVATE,EXTERNAL DAYCARE,1019201,130245290,12-Aug-16,"1,196.90",Revenue,SHARE COMMUNITY,SP0000329
WANDSWORTH COUNCIL,ASC,SOCIAL SERVICES,PRIVATE,EXTERNAL DAYCARE,1019204,130245290,12-Aug-16,897.65,Revenue,SHARE COMMUNITY,SP0000329
WANDSWORTH COUNCIL,ASC,SOCIAL SERVICES,PRIVATE,EXTERNAL DAYCARE,1019206,130245290,12-Aug-16,748.05,Revenue,SHARE COMMUNITY,SP0000329
WANDSWORTH COUNCIL,ASC,SOCIAL SERVICES,PRIVATE,EXTERNAL DAYCARE,1019208,130245290,12-Aug-16,897.65,Revenue,SHARE COMMUNITY,SP0000329
WANDSWORTH COUNCIL,ASC,SOCIAL SERVICES,PRIVATE,EXTERNAL DAYCARE,1019210,130245290,12-Aug-16,598.45,Revenue,SHARE COMMUNITY,SP0000329
WANDSWORTH COUNCIL,ASC,SOCIAL SERVICES,PRIVATE,EXTERNAL DAYCARE,1019211,130245290,12-Aug-16,897.65,Revenue,SHARE COMMUNITY,SP0000329
WANDSWORTH COUNCIL,ASC,SOCIAL SERVICES,PRIVATE,EXTERNAL DAYCARE,1019212,130245290,12-Aug-16,"1,496.10",Revenue,SHARE COMMUNITY,SP0000329
WANDSWORTH COUNCIL,ASC,SOCIAL SERVICES,PRIVATE,EXTERNAL DAYCARE,1021046,130245290,16-Aug-16,897.65,Revenue,SHARE COMMUNITY,SP0000329
WANDSWORTH COUNCIL,ASC,SOCIAL SERVICES,PRIVATE,EXTERNAL DAYCARE,1021047,130245290,16-Aug-16,598.45,Revenue,SHARE COMMUNITY,SP0000329
WANDSWORTH COUNCIL,ASC,SOCIAL SERVICES,PRIVATE,EXTERNAL DAYCARE,1027129,130245290,23-Aug-16,973.60,Revenue,DOLPHIN HOMES LTD,SP0000331
WANDSWORTH COUNCIL,ASC,SOCIAL SERVICES,PRIVATE,EXTERNAL DAYCARE,1013617,130245290,08-Aug-16,"1,654.08",Revenue,VOYAGE CARE LTD,SP0000366
WANDSWORTH COUNCIL,ASC,SOCIAL SERVICES,PRIVATE,EXTERNAL DAYCARE,1022224,130245290,17-Aug-16,"1,057.00",Revenue,ST DAVIDS CARE IN THE COMMUNITY,SP0000379
WANDSWORTH COUNCIL,ASC,SOCIAL SERVICES,PRIVATE,EXTERNAL DAYCARE,1022225,130245290,17-Aug-16,"1,057.00",Revenue,ST DAVIDS CARE IN THE COMMUNITY,SP0000379
WANDSWORTH COUNCIL,ASC,SOCIAL SERVICES,PRIVATE,EXTERNAL DAYCARE,1022226,130245290,17-Aug-16,"1,057.00",Revenue,ST DAVIDS CARE IN THE COMMUNITY,SP0000379
WANDSWORTH COUNCIL,ASC,SOCIAL SERVICES,PRIVATE,EXTERNAL DAYCARE,1026953,130245290,23-Aug-16,867.00,Revenue,WANDSWORTH BENGALI WELFARE ASSOCIATION,SP0000479
WANDSWORTH COUNCIL,ASC,SOCIAL SERVICES,PRIVATE,EXTERNAL DAYCARE,1028561,130245290,25-Aug-16,867.00,Revenue,WANDSWORTH BENGALI WELFARE ASSOCIATION,SP0000479
WANDSWORTH COUNCIL,ASC,SOCIAL SERVICES,PRIVATE,EXTERNAL DAYCARE,1011783,130245290,03-Aug-16,"1,145.99",Revenue,SURREY & BORDERS PARTNERSHIP NHS TRUST,SP0000501
WANDSWORTH COUNCIL,ASC,SOCIAL SERVICES,PRIVATE,EXTERNAL DAYCARE,1022222,130245290,17-Aug-16,838.10,Revenue,SURREY & BORDERS PARTNERSHIP NHS TRUST,SP0000501
WANDSWORTH COUNCIL,ASC,SOCIAL SERVICES,PRIVATE,EXTERNAL DAYCARE,1018517,130245290,11-Aug-16,640.00,Revenue,GENERATE OPPORTUNITIES LTD,SP0000503
WANDSWORTH COUNCIL,ASC,SOCIAL SERVICES,PRIVATE,EXTERNAL DAYCARE,1018534,130245290,11-Aug-16,576.00,Revenue,GENERATE OPPORTUNITIES LTD,SP0000503
WANDSWORTH COUNCIL,ASC,SOCIAL SERVICES,PRIVATE,EXTERNAL DAYCARE,1018542,130245290,11-Aug-16,576.00,Revenue,GENERATE OPPORTUNITIES LTD,SP0000503
WANDSWORTH COUNCIL,ASC,SOCIAL SERVICES,PRIVATE,EXTERNAL DAYCARE,1018543,130245290,11-Aug-16,576.00,Revenue,GENERATE OPPORTUNITIES LTD,SP0000503
WANDSWORTH COUNCIL,ASC,SOCIAL SERVICES,PRIVATE,EXTERNAL DAYCARE,1026155,130245290,22-Aug-16,"1,398.90",Revenue,THE REGARD PARTNERSHIP,SP0000588
WANDSWORTH COUNCIL,ASC,SOCIAL SERVICES,PRIVATE,EXTERNAL DAYCARE,1027115,130245290,23-Aug-16,976.80,Revenue,ASHFIELD CARE HOMES LTD,SP0000590
WANDSWORTH COUNCIL,ASC,SOCIAL SERVICES,PRIVATE,EXTERNAL DAYCARE,1013614,130245290,08-Aug-16,892.50,Revenue,DORSET SCOPE,SP0000591
WANDSWORTH COUNCIL,ASC,SOCIAL SERVICES,PRIVATE,EXTERNAL DAYCARE,1016482,130245290,09-Aug-16,602.56,Revenue,HIGH HURLANDS HOMES,SP0000668
WANDSWORTH COUNCIL,ASC,SOCIAL SERVICES,PRIVATE,EXTERNAL DAYCARE,1013616,130245290,08-Aug-16,"1,218.00",Revenue,CREST COOPERATIVE LTD,SP0000683
WANDSWORTH COUNCIL,ASC,SOCIAL SERVICES,PRIVATE,EXTERNAL DAYCARE,1027117,130245290,23-Aug-16,"1,162.92",Revenue,THE MANOR HOUSE,SP0000728
WANDSWORTH COUNCIL,ASC,SOCIAL SERVICES,PRIVATE,EXTERNAL DAYCARE,1032896,130245290,31-Aug-16,"1,258.79",Revenue,ANTHONY TOBY HOMES TRUST,SP0000755
WANDSWORTH COUNCIL,ASC,SOCIAL SERVICES,PRIVATE,EXTERNAL DAYCARE,1032897,130245290,31-Aug-16,"1,149.33",Revenue,ANTHONY TOBY HOMES TRUST,SP0000755
WANDSWORTH COUNCIL,ASC,SOCIAL SERVICES,PRIVATE,EXTERNAL DAYCARE,1012699,130245290,04-Aug-16,531.04,Revenue,UNITED RESPONSE,SP0000797
WANDSWORTH COUNCIL,ASC,SOCIAL SERVICES,PRIVATE,EXTERNAL DAYCARE,1013618,130245290,08-Aug-16,540.00,Revenue,PROSPECTS,SP0000800
WANDSWORTH COUNCIL,ASC,SOCIAL SERVICES,PRIVATE,EXTERNAL DAYCARE,1019162,130245290,12-Aug-16,515.52,Revenue,MENCAP OPEN DOOR,SP0000832
WANDSWORTH COUNCIL,ASC,SOCIAL SERVICES,PRIVATE,EXTERNAL DAYCARE,1019281,130245290,12-Aug-16,644.00,Revenue,MENCAP OPEN DOOR,SP0000832
WANDSWORTH COUNCIL,ASC,SOCIAL SERVICES,PRIVATE,EXTERNAL DAYCARE,1019282,130245290,12-Aug-16,515.20,Revenue,MENCAP OPEN DOOR,SP0000832
WANDSWORTH COUNCIL,ASC,SOCIAL SERVICES,PRIVATE,EXTERNAL DAYCARE,1028559,130245290,25-Aug-16,515.52,Revenue,MENCAP OPEN DOOR,SP0000832
WANDSWORTH COUNCIL,ASC,SOCIAL SERVICES,PRIVATE,EXTERNAL DAYCARE,1009760,130245290,02-Aug-16,"1,586.84",Revenue,STALLCOMBE HOUSE,SP0000843
WANDSWORTH COUNCIL,ASC,SOCIAL SERVICES,PRIVATE,EXTERNAL DAYCARE,1019159,130245290,12-Aug-16,"1,586.84",Revenue,STALLCOMBE HOUSE,SP0000843
WANDSWORTH COUNCIL,ASC,SOCIAL SERVICES,PRIVATE,EXTERNAL DAYCARE,1012715,130245290,04-Aug-16,848.00,Revenue,SCOPE,SP0000852
WANDSWORTH COUNCIL,ASC,SOCIAL SERVICES,PRIVATE,EXTERNAL DAYCARE,1018696,130245290,11-Aug-16,848.00,Revenue,SCOPE,SP0000852
WANDSWORTH COUNCIL,ASC,SOCIAL SERVICES,PRIVATE,EXTERNAL DAYCARE,1030803,130245290,26-Aug-16,743.84,Revenue,ACT TOO LTD,SP0000855
WANDSWORTH COUNCIL,ASC,SOCIAL SERVICES,PRIVATE,EXTERNAL DAYCARE,1030806,130245290,26-Aug-16,557.88,Revenue,ACT TOO LTD,SP0000855
WANDSWORTH COUNCIL,ASC,SOCIAL SERVICES,PRIVATE,EXTERNAL DAYCARE,1030807,130245290,26-Aug-16,743.84,Revenue,ACT TOO LTD,SP0000855
WANDSWORTH COUNCIL,ASC,SOCIAL SERVICES,PRIVATE,EXTERNAL DAYCARE,1030808,130245290,26-Aug-16,"1,115.76",Revenue,ACT TOO LTD,SP0000855
WANDSWORTH COUNCIL,ASC,SOCIAL SERVICES,PRIVATE,EXTERNAL DAYCARE,1030813,130245290,26-Aug-16,929.80,Revenue,ACT TOO LTD,SP0000855
WANDSWORTH COUNCIL,ASC,SOCIAL SERVICES,PRIVATE,EXTERNAL DAYCARE,1030816,130245290,26-Aug-16,743.84,Revenue,ACT TOO LTD,SP0000855
WANDSWORTH COUNCIL,ASC,SOCIAL SERVICES,PRIVATE,EXTERNAL DAYCARE,1030817,130245290,26-Aug-16,743.84,Revenue,ACT TOO LTD,SP0000855
WANDSWORTH COUNCIL,ASC,SOCIAL SERVICES,PRIVATE,EXTERNAL DAYCARE,1030818,130245290,26-Aug-16,743.84,Revenue,ACT TOO LTD,SP0000855
WANDSWORTH COUNCIL,ASC,SOCIAL SERVICES,PRIVATE,EXTERNAL DAYCARE,1030822,130245290,26-Aug-16,557.88,Revenue,ACT TOO LTD,SP0000855
WANDSWORTH COUNCIL,ASC,SOCIAL SERVICES,PRIVATE,EXTERNAL DAYCARE,1030823,130245290,26-Aug-16,557.88,Revenue,ACT TOO LTD,SP0000855
WANDSWORTH COUNCIL,ASC,SOCIAL SERVICES,PRIVATE,EXTERNAL DAYCARE,1030824,130245290,26-Aug-16,557.88,Revenue,ACT TOO LTD,SP0000855
WANDSWORTH COUNCIL,ASC,SOCIAL SERVICES,PRIVATE,EXTERNAL DAYCARE,1030827,130245290,26-Aug-16,743.84,Revenue,ACT TOO LTD,SP0000855
WANDSWORTH COUNCIL,ASC,SOCIAL SERVICES,PRIVATE,EXTERNAL DAYCARE,1030828,130245290,26-Aug-16,557.88,Revenue,ACT TOO LTD,SP0000855
WANDSWORTH COUNCIL,ASC,SOCIAL SERVICES,PRIVATE,EXTERNAL DAYCARE,1030829,130245290,26-Aug-16,557.88,Revenue,ACT TOO LTD,SP0000855
WANDSWORTH COUNCIL,ASC,SOCIAL SERVICES,PRIVATE,EXTERNAL DAYCARE,1030834,130245290,26-Aug-16,557.88,Revenue,ACT TOO LTD,SP0000855
WANDSWORTH COUNCIL,ASC,SOCIAL SERVICES,PRIVATE,EXTERNAL DAYCARE,1030846,130245290,26-Aug-16,557.88,Revenue,ACT TOO LTD,SP0000855
WANDSWORTH COUNCIL,ASC,SOCIAL SERVICES,PRIVATE,EXTERNAL DAYCARE,1030847,130245290,26-Aug-16,557.88,Revenue,ACT TOO LTD,SP0000855
WANDSWORTH COUNCIL,ASC,SOCIAL SERVICES,PRIVATE,EXTERNAL DAYCARE,1030848,130245290,26-Aug-16,557.88,Revenue,ACT TOO LTD,SP0000855
WANDSWORTH COUNCIL,ASC,SOCIAL SERVICES,PRIVATE,EXTERNAL DAYCARE,1030850,130245290,26-Aug-16,557.88,Revenue,ACT TOO LTD,SP0000855
WANDSWORTH COUNCIL,ASC,SOCIAL SERVICES,PRIVATE,EXTERNAL DAYCARE,1030851,130245290,26-Aug-16,929.80,Revenue,ACT TOO LTD,SP0000855
WANDSWORTH COUNCIL,ASC,SOCIAL SERVICES,PRIVATE,EXTERNAL DAYCARE,1030852,130245290,26-Aug-16,557.88,Revenue,ACT TOO LTD,SP0000855
WANDSWORTH COUNCIL,ASC,SOCIAL SERVICES,PRIVATE,EXTERNAL DAYCARE,1030861,130245290,26-Aug-16,929.80,Revenue,ACT TOO LTD,SP0000855
WANDSWORTH COUNCIL,ASC,SOCIAL SERVICES,PRIVATE,EXTERNAL DAYCARE,1030866,130245290,26-Aug-16,929.80,Revenue,ACT TOO LTD,SP0000855
WANDSWORTH COUNCIL,ASC,SOCIAL SERVICES,PRIVATE,EXTERNAL DAYCARE,1030867,130245290,26-Aug-16,557.88,Revenue,ACT TOO LTD,SP0000855
WANDSWORTH COUNCIL,ASC,SOCIAL SERVICES,PRIVATE,EXTERNAL DAYCARE,1030868,130245290,26-Aug-16,"1,115.76",Revenue,ACT TOO LTD,SP0000855
WANDSWORTH COUNCIL,ASC,SOCIAL SERVICES,PRIVATE,EXTERNAL DAYCARE,1030869,130245290,26-Aug-16,743.84,Revenue,ACT TOO LTD,SP0000855
WANDSWORTH COUNCIL,ASC,SOCIAL SERVICES,PRIVATE,EXTERNAL DAYCARE,1030872,130245290,26-Aug-16,557.88,Revenue,ACT TOO LTD,SP0000855
WANDSWORTH COUNCIL,ASC,SOCIAL SERVICES,PRIVATE,EXTERNAL DAYCARE,1030873,130245290,26-Aug-16,557.88,Revenue,ACT TOO LTD,SP0000855
WANDSWORTH COUNCIL,ASC,SOCIAL SERVICES,PRIVATE,EXTERNAL DAYCARE,1030879,130245290,26-Aug-16,557.88,Revenue,ACT TOO LTD,SP0000855
WANDSWORTH COUNCIL,ASC,SOCIAL SERVICES,PRIVATE,EXTERNAL DAYCARE,1032899,130245290,31-Aug-16,557.88,Revenue,ACT TOO LTD,SP0000855
WANDSWORTH COUNCIL,ASC,SOCIAL SERVICES,PRIVATE,EXTERNAL DAYCARE,1013015,130245290,04-Aug-16,"1,416.24",Revenue,WINSLOW COURT,SP0000886
WANDSWORTH COUNCIL,ASC,SOCIAL SERVICES,PRIVATE,EXTERNAL DAYCARE,1013016,130245290,04-Aug-16,"1,416.24",Revenue,WINSLOW COURT,SP0000886
WANDSWORTH COUNCIL,ASC,SOCIAL SERVICES,PRIVATE,EXTERNAL DAYCARE,1019969,130245290,15-Aug-16,797.47,Revenue,ORIONE CARE,SP0000961
WANDSWORTH COUNCIL,ASC,SOCIAL SERVICES,PRIVATE,EXTERNAL DAYCARE,1019971,130245290,15-Aug-16,562.92,Revenue,ORIONE CARE,SP0000961
WANDSWORTH COUNCIL,ASC,SOCIAL SERVICES,PRIVATE,EXTERNAL DAYCARE,1012958,130245290,04-Aug-16,"1,200.00",Revenue,RIDGEWOOD CARE SERVICES LTD,SP0000969
WANDSWORTH COUNCIL,ASC,SOCIAL SERVICES,PRIVATE,EXTERNAL DAYCARE,1018697,130245290,11-Aug-16,"1,177.40",Revenue,RIDGEWOOD CARE SERVICES LTD,SP0000969
WANDSWORTH COUNCIL,ASC,SOCIAL SERVICES,PRIVATE,EXTERNAL DAYCARE,1027113,130245290,23-Aug-16,969.80,Revenue,SCOPE,SP0000991
WANDSWORTH COUNCIL,ASC,SOCIAL SERVICES,PRIVATE,EXTERNAL DAYCARE,1027114,130245290,23-Aug-16,671.40,Revenue,SCOPE,SP0000991
WANDSWORTH COUNCIL,ASC,SOCIAL SERVICES,PRIVATE,EXTERNAL DAYCARE,1022149,130245290,17-Aug-16,"1,507.50",Revenue,SUSSEX HEALTH CARE,SP0001115
WANDSWORTH COUNCIL,ASC,SOCIAL SERVICES,PRIVATE,EXTERNAL DAYCARE,1022151,130245290,17-Aug-16,502.50,Revenue,SUSSEX HEALTH CARE,SP0001115
WANDSWORTH COUNCIL,ASC,SOCIAL SERVICES,PRIVATE,EXTERNAL DAYCARE,1026986,130245290,23-Aug-16,"1,541.00",Revenue,SUSSEX HEALTH CARE,SP0001115
WANDSWORTH COUNCIL,ASC,SOCIAL SERVICES,PRIVATE,EXTERNAL DAYCARE,1016757,130245290,09-Aug-16,"1,551.24",Revenue,LONDON CARE PARTNERSHIP LTD,SP0001138
WANDSWORTH COUNCIL,ASC,SOCIAL SERVICES,PRIVATE,EXTERNAL DAYCARE,1027082,130245290,23-Aug-16,"1,578.52",Revenue,LONDON CARE PARTNERSHIP LTD,SP0001138
WANDSWORTH COUNCIL,ASC,SOCIAL SERVICES,PRIVATE,EXTERNAL DAYCARE,1018579,130245290,11-Aug-16,606.00,Revenue,WORKSHOP 305,SP0001403
WANDSWORTH COUNCIL,ASC,SOCIAL SERVICES,PRIVATE,EXTERNAL DAYCARE,1018580,130245290,11-Aug-16,727.20,Revenue,WORKSHOP 305,SP0001403
WANDSWORTH COUNCIL,ASC,SOCIAL SERVICES,PRIVATE,EXTERNAL DAYCARE,1030885,130245290,26-Aug-16,"1,134.08",Revenue,WORKSHOP 305,SP0001403
WANDSWORTH COUNCIL,ASC,SOCIAL SERVICES,PRIVATE,EXTERNAL DAYCARE,1030892,130245290,26-Aug-16,969.60,Revenue,WORKSHOP 305,SP0001403
WANDSWORTH COUNCIL,ASC,SOCIAL SERVICES,PRIVATE,EXTERNAL DAYCARE,1030898,130245290,26-Aug-16,727.20,Revenue,WORKSHOP 305,SP0001403
WANDSWORTH COUNCIL,ASC,SOCIAL SERVICES,PRIVATE,EXTERNAL DAYCARE,1030905,130245290,26-Aug-16,850.56,Revenue,WORKSHOP 305,SP0001403
WANDSWORTH COUNCIL,ASC,SOCIAL SERVICES,PRIVATE,EXTERNAL DAYCARE,1030906,130245290,26-Aug-16,727.20,Revenue,WORKSHOP 305,SP0001403
WANDSWORTH COUNCIL,ASC,SOCIAL SERVICES,PRIVATE,EXTERNAL DAYCARE,1030908,130245290,26-Aug-16,727.20,Revenue,WORKSHOP 305,SP0001403
WANDSWORTH COUNCIL,ASC,SOCIAL SERVICES,PRIVATE,EXTERNAL DAYCARE,1030913,130245290,26-Aug-16,727.20,Revenue,WORKSHOP 305,SP0001403
WANDSWORTH COUNCIL,ASC,SOCIAL SERVICES,PRIVATE,EXTERNAL DAYCARE,1030914,130245290,26-Aug-16,727.20,Revenue,WORKSHOP 305,SP0001403
WANDSWORTH COUNCIL,ASC,SOCIAL SERVICES,PRIVATE,EXTERNAL DAYCARE,1030925,130245290,26-Aug-16,969.60,Revenue,WORKSHOP 305,SP0001403
WANDSWORTH COUNCIL,ASC,SOCIAL SERVICES,PRIVATE,EXTERNAL DAYCARE,1013612,130245290,08-Aug-16,655.59,Revenue,LUCKETTS FARM LIMNITED T/A THE JOHN GRAH,SP0009847
WANDSWORTH COUNCIL,ASC,SOCIAL SERVICES,PRIVATE,EXTERNAL DAYCARE,1013613,130245290,08-Aug-16,605.16,Revenue,LUCKETTS FARM LIMNITED T/A THE JOHN GRAH,SP0009847
WANDSWORTH COUNCIL,ASC,SOCIAL SERVICES,PRIVATE,EXTERNAL HOMECARE,1019920,130245300,15-Aug-16,663.53,Revenue,ASIAN ELDERS SUPPORT SCHEME,SP0000190
WANDSWORTH COUNCIL,ASC,SOCIAL SERVICES,PRIVATE,EXTERNAL HOMECARE,1026142,130245300,22-Aug-16,761.38,Revenue,ASIAN ELDERS SUPPORT SCHEME,SP0000190
WANDSWORTH COUNCIL,ASC,SOCIAL SERVICES,PRIVATE,EXTERNAL HOMECARE,1019052,130245300,12-Aug-16,679.43,Revenue,MUSHKIL AASAAN LTD,SP0000978
WANDSWORTH COUNCIL,ASC,SOCIAL SERVICES,PRIVATE,EXTERNAL HOMECARE,1012994,130245300,04-Aug-16,555.00,Revenue,SOMA HEALTHCARE LTD,SP0001116
WANDSWORTH COUNCIL,ASC,SOCIAL SERVICES,PRIVATE,EXTERNAL HOMECARE,1009693,130245300,02-Aug-16,787.57,Revenue,CARE OUTLOOK LTD,SP0001545
WANDSWORTH COUNCIL,ASC,SOCIAL SERVICES,PRIVATE,EXTERNAL HOMECARE,1025960,130245300,22-Aug-16,812.22,Revenue,CARE OUTLOOK LTD,SP0001545
WANDSWORTH COUNCIL,ASC,SOCIAL SERVICES,PRIVATE,EXTERNAL HOMECARE,1026810,130245300,23-Aug-16,"1,305.93",Revenue,SUPREME CARE SERVICE LTD,SP0001600
WANDSWORTH COUNCIL,ASC,SOCIAL SERVICES,PRIVATE,EXTERNAL HOMECARE,1016310,130245300,09-Aug-16,665.32,Revenue,LONDON HOMECARE LTD,SP0009029
WANDSWORTH COUNCIL,ASC,SOCIAL SERVICES,PRIVATE,EXTERNAL HOMECARE,1016315,130245300,09-Aug-16,"1,902.96",Revenue,LONDON HOMECARE LTD,SP0009029
WANDSWORTH COUNCIL,ASC,SOCIAL SERVICES,PRIVATE,EXTERNAL HOMECARE,1016340,130245300,09-Aug-16,662.40,Revenue,LONDON HOMECARE LTD,SP0009029
WANDSWORTH COUNCIL,ASC,SOCIAL SERVICES,PRIVATE,EXTERNAL HOMECARE,1016371,130245300,09-Aug-16,847.14,Revenue,LONDON HOMECARE LTD,SP0009029
WANDSWORTH COUNCIL,ASC,SOCIAL SERVICES,PRIVATE,EXTERNAL HOMECARE,1019858,130245300,15-Aug-16,558.50,Revenue,HEALTH CARE SOLUTIONS,SP0010527
WANDSWORTH COUNCIL,ASC,SOCIAL SERVICES,PRIVATE,EXTERNAL HOMECARE,1022207,130245300,17-Aug-16,558.50,Revenue,HEALTH CARE SOLUTIONS,SP0010527
WANDSWORTH COUNCIL,ASC,SOCIAL SERVICES,PRIVATE,EXTERNAL HOMECARE,1022208,130245300,17-Aug-16,558.50,Revenue,HEALTH CARE SOLUTIONS,SP0010527
WANDSWORTH COUNCIL,ASC,SOCIAL SERVICES,PRIVATE,EXTERNAL HOMECARE,1022209,130245300,17-Aug-16,558.50,Revenue,HEALTH CARE SOLUTIONS,SP0010527
WANDSWORTH COUNCIL,ASC,SOCIAL SERVICES,PRIVATE,EXTERNAL HOMECARE,1022210,130245300,17-Aug-16,558.50,Revenue,HEALTH CARE SOLUTIONS,SP0010527
WANDSWORTH COUNCIL,ASC,SOCIAL SERVICES,PRIVATE,EXTERNAL HOMECARE,1022211,130245300,17-Aug-16,558.50,Revenue,HEALTH CARE SOLUTIONS,SP0010527
WANDSWORTH COUNCIL,ASC,SOCIAL SERVICES,PRIVATE,EXTERNAL HOMECARE,1022212,130245300,17-Aug-16,558.50,Revenue,HEALTH CARE SOLUTIONS,SP0010527
WANDSWORTH COUNCIL,ASC,SOCIAL SERVICES,PRIVATE,EXTERNAL HOMECARE,1030712,130245300,26-Aug-16,"2,802.63",Revenue,HEALTH CARE SOLUTIONS,SP0010527
WANDSWORTH COUNCIL,ASC,SOCIAL SERVICES,PRIVATE,EXTERNAL NURSING CARE,1027058,130245310,23-Aug-16,"6,343.88",Revenue,WINGHAM COURT,SP0000025
WANDSWORTH COUNCIL,ASC,SOCIAL SERVICES,PRIVATE,EXTERNAL NURSING CARE,1019443,130245310,12-Aug-16,"2,527.35",Revenue,ROSEDENE NURSING HOME,SP0000316
WANDSWORTH COUNCIL,ASC,SOCIAL SERVICES,PRIVATE,EXTERNAL NURSING CARE,1033208,130245310,31-Aug-16,"3,546.80",Revenue,ROSEDENE NURSING HOME,SP0000316
WANDSWORTH COUNCIL,ASC,SOCIAL SERVICES,PRIVATE,EXTERNAL NURSING CARE,1016742,130245310,09-Aug-16,"4,200.23",Revenue,VOYAGE CARE LTD,SP0000366
WANDSWORTH COUNCIL,ASC,SOCIAL SERVICES,PRIVATE,EXTERNAL NURSING CARE,1016746,130245310,09-Aug-16,"5,502.08",Revenue,VOYAGE CARE LTD,SP0000366
WANDSWORTH COUNCIL,ASC,SOCIAL SERVICES,PRIVATE,EXTERNAL NURSING CARE,1019553,130245310,12-Aug-16,"3,079.52",Revenue,BUPA CARE SERVICES BACS RECEIPTS,SP0000644
WANDSWORTH COUNCIL,ASC,SOCIAL SERVICES,PRIVATE,EXTERNAL NURSING CARE,1019572,130245310,12-Aug-16,"3,079.52",Revenue,BUPA CARE SERVICES BACS RECEIPTS,SP0000644
WANDSWORTH COUNCIL,ASC,SOCIAL SERVICES,PRIVATE,EXTERNAL NURSING CARE,1016283,130245310,09-Aug-16,"4,506.26",Revenue,HIGH HURLANDS HOMES,SP0000668
WANDSWORTH COUNCIL,ASC,SOCIAL SERVICES,PRIVATE,EXTERNAL NURSING CARE,1016285,130245310,09-Aug-16,"5,663.36",Revenue,HIGH HURLANDS HOMES,SP0000668
WANDSWORTH COUNCIL,ASC,SOCIAL SERVICES,PRIVATE,EXTERNAL NURSING CARE,1026987,130245310,23-Aug-16,"8,914.98",Revenue,SUSSEX HEALTH CARE,SP0001115
WANDSWORTH COUNCIL,ASC,SOCIAL SERVICES,PRIVATE,EXTERNAL RESIDENTIAL CARE,1011741,130245330,03-Aug-16,"5,674.36",Revenue,CMG HOMES LTD,SP0000075
WANDSWORTH COUNCIL,ASC,SOCIAL SERVICES,PRIVATE,EXTERNAL RESIDENTIAL CARE,1011742,130245330,03-Aug-16,"3,940.80",Revenue,CMG HOMES LTD,SP0000075
WANDSWORTH COUNCIL,ASC,SOCIAL SERVICES,PRIVATE,EXTERNAL RESIDENTIAL CARE,1011743,130245330,03-Aug-16,"6,052.16",Revenue,CMG HOMES LTD,SP0000075
WANDSWORTH COUNCIL,ASC,SOCIAL SERVICES,PRIVATE,EXTERNAL RESIDENTIAL CARE,1011744,130245330,03-Aug-16,"5,594.64",Revenue,CMG HOMES LTD,SP0000075
WANDSWORTH COUNCIL,ASC,SOCIAL SERVICES,PRIVATE,EXTERNAL RESIDENTIAL CARE,1011745,130245330,03-Aug-16,"4,404.80",Revenue,CMG HOMES LTD,SP0000075
WANDSWORTH COUNCIL,ASC,SOCIAL SERVICES,PRIVATE,EXTERNAL RESIDENTIAL CARE,1011746,130245330,03-Aug-16,"3,909.12",Revenue,CMG HOMES LTD,SP0000075
WANDSWORTH COUNCIL,ASC,SOCIAL SERVICES,PRIVATE,EXTERNAL RESIDENTIAL CARE,1011747,130245330,03-Aug-16,"8,121.44",Revenue,CMG HOMES LTD,SP0000075
WANDSWORTH COUNCIL,ASC,SOCIAL SERVICES,PRIVATE,EXTERNAL RESIDENTIAL CARE,1011748,130245330,03-Aug-16,"4,902.84",Revenue,CMG HOMES LTD,SP0000075
WANDSWORTH COUNCIL,ASC,SOCIAL SERVICES,PRIVATE,EXTERNAL RESIDENTIAL CARE,1011749,130245330,03-Aug-16,"4,680.84",Revenue,CMG HOMES LTD,SP0000075
WANDSWORTH COUNCIL,ASC,SOCIAL SERVICES,PRIVATE,EXTERNAL RESIDENTIAL CARE,1011750,130245330,03-Aug-16,"7,188.28",Revenue,CMG HOMES LTD,SP0000075
WANDSWORTH COUNCIL,ASC,SOCIAL SERVICES,PRIVATE,EXTERNAL RESIDENTIAL CARE,1027063,130245330,23-Aug-16,"6,669.65",Revenue,NATIONAL SOCIETY FOR EPILEPSY,SP0000120
WANDSWORTH COUNCIL,ASC,SOCIAL SERVICES,PRIVATE,EXTERNAL RESIDENTIAL CARE,1019357,130245330,12-Aug-16,"2,499.08",Revenue,SANCTUARY CARE LTD,SP0000121
WANDSWORTH COUNCIL,ASC,SOCIAL SERVICES,PRIVATE,EXTERNAL RESIDENTIAL CARE,1033187,130245330,31-Aug-16,"2,499.08",Revenue,SANCTUARY CARE LTD,SP0000121
WANDSWORTH COUNCIL,ASC,SOCIAL SERVICES,PRIVATE,EXTERNAL RESIDENTIAL CARE,1027020,130245330,23-Aug-16,"5,058.85",Revenue,IN CHORUS LTD,SP0000129
WANDSWORTH COUNCIL,ASC,SOCIAL SERVICES,PRIVATE,EXTERNAL RESIDENTIAL CARE,1025837,130245330,22-Aug-16,"4,002.90",Revenue,CENTRUST CARE HOMES LTD,SP0000141
WANDSWORTH COUNCIL,ASC,SOCIAL SERVICES,PRIVATE,EXTERNAL RESIDENTIAL CARE,1027088,130245330,23-Aug-16,"4,869.74",Revenue,FRANCES TAYLOR FOUNDATION,SP0000142
WANDSWORTH COUNCIL,ASC,SOCIAL SERVICES,PRIVATE,EXTERNAL RESIDENTIAL CARE,1027089,130245330,23-Aug-16,"4,373.88",Revenue,FRANCES TAYLOR FOUNDATION,SP0000142
WANDSWORTH COUNCIL,ASC,SOCIAL SERVICES,PRIVATE,EXTERNAL RESIDENTIAL CARE,1027090,130245330,23-Aug-16,"4,220.47",Revenue,FRANCES TAYLOR FOUNDATION,SP0000142
WANDSWORTH COUNCIL,ASC,SOCIAL SERVICES,PRIVATE,EXTERNAL RESIDENTIAL CARE,1019843,130245330,15-Aug-16,"1,162.61",Revenue,RESIDENTIAL CARE SERVICES T/A FRANKLYN L,SP0000147
WANDSWORTH COUNCIL,ASC,SOCIAL SERVICES,PRIVATE,EXTERNAL RESIDENTIAL CARE,1019844,130245330,15-Aug-16,"4,062.44",Revenue,RESIDENTIAL CARE SERVICES T/A FRANKLYN L,SP0000147
WANDSWORTH COUNCIL,ASC,SOCIAL SERVICES,PRIVATE,EXTERNAL RESIDENTIAL CARE,1019845,130245330,15-Aug-16,"4,062.44",Revenue,RESIDENTIAL CARE SERVICES T/A FRANKLYN L,SP0000147
WANDSWORTH COUNCIL,ASC,SOCIAL SERVICES,PRIVATE,EXTERNAL RESIDENTIAL CARE,1012714,130245330,04-Aug-16,"5,594.12",Revenue,THE CHESTNUTS,SP0000182
WANDSWORTH COUNCIL,ASC,SOCIAL SERVICES,PRIVATE,EXTERNAL RESIDENTIAL CARE,1018691,130245330,11-Aug-16,"5,594.12",Revenue,THE CHESTNUTS,SP0000182
WANDSWORTH COUNCIL,ASC,SOCIAL SERVICES,PRIVATE,EXTERNAL RESIDENTIAL CARE,1019018,130245330,12-Aug-16,"1,662.08",Revenue,ORCHARD VALE TRUST,SP0000214
WANDSWORTH COUNCIL,ASC,SOCIAL SERVICES,PRIVATE,EXTERNAL RESIDENTIAL CARE,1019019,130245330,12-Aug-16,"1,662.08",Revenue,ORCHARD VALE TRUST,SP0000214
WANDSWORTH COUNCIL,ASC,SOCIAL SERVICES,PRIVATE,EXTERNAL RESIDENTIAL CARE,1011767,130245330,03-Aug-16,"3,801.48",Revenue,ST MARYS RESIDENTIAL HOME,SP0000215
WANDSWORTH COUNCIL,ASC,SOCIAL SERVICES,PRIVATE,EXTERNAL RESIDENTIAL CARE,1019014,130245330,12-Aug-16,"3,926.02",Revenue,ST MARYS RESIDENTIAL HOME,SP0000215
WANDSWORTH COUNCIL,ASC,SOCIAL SERVICES,PRIVATE,EXTERNAL RESIDENTIAL CARE,1019841,130245330,15-Aug-16,"4,046.74",Revenue,ST MARYS RESIDENTIAL HOME,SP0000215
WANDSWORTH COUNCIL,ASC,SOCIAL SERVICES,PRIVATE,EXTERNAL RESIDENTIAL CARE,1019842,130245330,15-Aug-16,"3,801.48",Revenue,ST MARYS RESIDENTIAL HOME,SP0000215
WANDSWORTH COUNCIL,ASC,SOCIAL SERVICES,PRIVATE,EXTERNAL RESIDENTIAL CARE,1027064,130245330,23-Aug-16,"3,989.52",Revenue,ST MARYS RESIDENTIAL HOME,SP0000215
WANDSWORTH COUNCIL,ASC,SOCIAL SERVICES,PRIVATE,EXTERNAL RESIDENTIAL CARE,1027065,130245330,23-Aug-16,"3,926.02",Revenue,ST MARYS RESIDENTIAL HOME,SP0000215
WANDSWORTH COUNCIL,ASC,SOCIAL SERVICES,PRIVATE,EXTERNAL RESIDENTIAL CARE,1027066,130245330,23-Aug-16,"5,163.36",Revenue,ST MARYS RESIDENTIAL HOME,SP0000215
WANDSWORTH COUNCIL,ASC,SOCIAL SERVICES,PRIVATE,EXTERNAL RESIDENTIAL CARE,1027067,130245330,23-Aug-16,"3,594.80",Revenue,ST MARYS RESIDENTIAL HOME,SP0000215
WANDSWORTH COUNCIL,ASC,SOCIAL SERVICES,PRIVATE,EXTERNAL RESIDENTIAL CARE,1027068,130245330,23-Aug-16,"3,737.58",Revenue,ST MARYS RESIDENTIAL HOME,SP0000215
WANDSWORTH COUNCIL,ASC,SOCIAL SERVICES,PRIVATE,EXTERNAL RESIDENTIAL CARE,1027069,130245330,23-Aug-16,"2,712.59",Revenue,ST MARYS RESIDENTIAL HOME,SP0000215
WANDSWORTH COUNCIL,ASC,SOCIAL SERVICES,PRIVATE,EXTERNAL RESIDENTIAL CARE,1027070,130245330,23-Aug-16,"3,645.11",Revenue,ST MARYS RESIDENTIAL HOME,SP0000215
WANDSWORTH COUNCIL,ASC,SOCIAL SERVICES,PRIVATE,EXTERNAL RESIDENTIAL CARE,1027071,130245330,23-Aug-16,"3,607.78",Revenue,ST MARYS RESIDENTIAL HOME,SP0000215
WANDSWORTH COUNCIL,ASC,SOCIAL SERVICES,PRIVATE,EXTERNAL RESIDENTIAL CARE,1027072,130245330,23-Aug-16,"3,368.82",Revenue,ST MARYS RESIDENTIAL HOME,SP0000215
WANDSWORTH COUNCIL,ASC,SOCIAL SERVICES,PRIVATE,EXTERNAL RESIDENTIAL CARE,1027073,130245330,23-Aug-16,"3,828.05",Revenue,ST MARYS RESIDENTIAL HOME,SP0000215
WANDSWORTH COUNCIL,ASC,SOCIAL SERVICES,PRIVATE,EXTERNAL RESIDENTIAL CARE,1027074,130245330,23-Aug-16,"3,567.65",Revenue,ST MARYS RESIDENTIAL HOME,SP0000215
WANDSWORTH COUNCIL,ASC,SOCIAL SERVICES,PRIVATE,EXTERNAL RESIDENTIAL CARE,1027075,130245330,23-Aug-16,"3,828.05",Revenue,ST MARYS RESIDENTIAL HOME,SP0000215
WANDSWORTH COUNCIL,ASC,SOCIAL SERVICES,PRIVATE,EXTERNAL RESIDENTIAL CARE,1027076,130245330,23-Aug-16,"2,329.65",Revenue,ST MARYS RESIDENTIAL HOME,SP0000215
WANDSWORTH COUNCIL,ASC,SOCIAL SERVICES,PRIVATE,EXTERNAL RESIDENTIAL CARE,1027077,130245330,23-Aug-16,"3,118.80",Revenue,ST MARYS RESIDENTIAL HOME,SP0000215
WANDSWORTH COUNCIL,ASC,SOCIAL SERVICES,PRIVATE,EXTERNAL RESIDENTIAL CARE,1027078,130245330,23-Aug-16,"3,564.13",Revenue,ST MARYS RESIDENTIAL HOME,SP0000215
WANDSWORTH COUNCIL,ASC,SOCIAL SERVICES,PRIVATE,EXTERNAL RESIDENTIAL CARE,1019011,130245330,12-Aug-16,"6,485.84",Revenue,NAS SERVICES LIMITED,SP0000217
WANDSWORTH COUNCIL,ASC,SOCIAL SERVICES,PRIVATE,EXTERNAL RESIDENTIAL CARE,1019012,130245330,12-Aug-16,"5,474.96",Revenue,NAS SERVICES LIMITED,SP0000217
WANDSWORTH COUNCIL,ASC,SOCIAL SERVICES,PRIVATE,EXTERNAL RESIDENTIAL CARE,1019013,130245330,12-Aug-16,"6,485.84",Revenue,NAS SERVICES LIMITED,SP0000217
WANDSWORTH COUNCIL,ASC,SOCIAL SERVICES,PRIVATE,EXTERNAL RESIDENTIAL CARE,1025836,130245330,22-Aug-16,"3,724.72",Revenue,HAYDON PARK LODGE LTD,SP0000231
WANDSWORTH COUNCIL,ASC,SOCIAL SERVICES,PRIVATE,EXTERNAL RESIDENTIAL CARE,1027054,130245330,23-Aug-16,"4,739.88",Revenue,CAMERON LODGE LIMITED,SP0000271
WANDSWORTH COUNCIL,ASC,SOCIAL SERVICES,PRIVATE,EXTERNAL RESIDENTIAL CARE,1026994,130245330,23-Aug-16,"8,046.54",Revenue,BROOKDALE CARE,SP0000282
WANDSWORTH COUNCIL,ASC,SOCIAL SERVICES,PRIVATE,EXTERNAL RESIDENTIAL CARE,1026989,130245330,23-Aug-16,"6,206.87",Revenue,RESIDENTIAL COMMUNITY CARE,SP0000315
WANDSWORTH COUNCIL,ASC,SOCIAL SERVICES,PRIVATE,EXTERNAL RESIDENTIAL CARE,1026990,130245330,23-Aug-16,"6,263.46",Revenue,RESIDENTIAL COMMUNITY CARE,SP0000315
WANDSWORTH COUNCIL,ASC,SOCIAL SERVICES,PRIVATE,EXTERNAL RESIDENTIAL CARE,1013567,130245330,08-Aug-16,"4,946.29",Revenue,DOLPHIN HOMES LTD,SP0000331
WANDSWORTH COUNCIL,ASC,SOCIAL SERVICES,PRIVATE,EXTERNAL RESIDENTIAL CARE,1013568,130245330,08-Aug-16,"3,893.95",Revenue,DOLPHIN HOMES LTD,SP0000331
WANDSWORTH COUNCIL,ASC,SOCIAL SERVICES,PRIVATE,EXTERNAL RESIDENTIAL CARE,1027026,130245330,23-Aug-16,"2,589.34",Revenue,HEYWOODS GRANGE LTD,SP0000361
WANDSWORTH COUNCIL,ASC,SOCIAL SERVICES,PRIVATE,EXTERNAL RESIDENTIAL CARE,1027027,130245330,23-Aug-16,"3,233.21",Revenue,HEYWOODS GRANGE LTD,SP0000361
WANDSWORTH COUNCIL,ASC,SOCIAL SERVICES,PRIVATE,EXTERNAL RESIDENTIAL CARE,1016747,130245330,09-Aug-16,"6,109.48",Revenue,VOYAGE CARE LTD,SP0000366
WANDSWORTH COUNCIL,ASC,SOCIAL SERVICES,PRIVATE,EXTERNAL RESIDENTIAL CARE,1016748,130245330,09-Aug-16,"6,127.81",Revenue,VOYAGE CARE LTD,SP0000366
WANDSWORTH COUNCIL,ASC,SOCIAL SERVICES,PRIVATE,EXTERNAL RESIDENTIAL CARE,1016750,130245330,09-Aug-16,"7,766.72",Revenue,VOYAGE CARE LTD,SP0000366
WANDSWORTH COUNCIL,ASC,SOCIAL SERVICES,PRIVATE,EXTERNAL RESIDENTIAL CARE,1022148,130245330,17-Aug-16,"6,355.17",Revenue,VOYAGE CARE LTD,SP0000366
WANDSWORTH COUNCIL,ASC,SOCIAL SERVICES,PRIVATE,EXTERNAL RESIDENTIAL CARE,1022152,130245330,17-Aug-16,"2,124.34",Revenue,ST DAVIDS CARE IN THE COMMUNITY,SP0000379
WANDSWORTH COUNCIL,ASC,SOCIAL SERVICES,PRIVATE,EXTERNAL RESIDENTIAL CARE,1022153,130245330,17-Aug-16,"2,643.33",Revenue,ST DAVIDS CARE IN THE COMMUNITY,SP0000379
WANDSWORTH COUNCIL,ASC,SOCIAL SERVICES,PRIVATE,EXTERNAL RESIDENTIAL CARE,1022154,130245330,17-Aug-16,"2,035.86",Revenue,ST DAVIDS CARE IN THE COMMUNITY,SP0000379
WANDSWORTH COUNCIL,ASC,SOCIAL SERVICES,PRIVATE,EXTERNAL RESIDENTIAL CARE,1025840,130245330,22-Aug-16,"3,135.60",Revenue,POTENSIAL LTD,SP0000395
WANDSWORTH COUNCIL,ASC,SOCIAL SERVICES,PRIVATE,EXTERNAL RESIDENTIAL CARE,1012964,130245330,04-Aug-16,"4,055.97",Revenue,KENILWORTH RESIDENTIAL HOME,SP0000432
WANDSWORTH COUNCIL,ASC,SOCIAL SERVICES,PRIVATE,EXTERNAL RESIDENTIAL CARE,1012965,130245330,04-Aug-16,"4,150.04",Revenue,KENILWORTH RESIDENTIAL HOME,SP0000432
WANDSWORTH COUNCIL,ASC,SOCIAL SERVICES,PRIVATE,EXTERNAL RESIDENTIAL CARE,1009780,130245330,02-Aug-16,"4,686.80",Revenue,THE WELL HOUSE,SP0000448
WANDSWORTH COUNCIL,ASC,SOCIAL SERVICES,PRIVATE,EXTERNAL RESIDENTIAL CARE,1009781,130245330,02-Aug-16,"4,419.64",Revenue,THE WELL HOUSE,SP0000448
WANDSWORTH COUNCIL,ASC,SOCIAL SERVICES,PRIVATE,EXTERNAL RESIDENTIAL CARE,1032295,130245330,31-Aug-16,"4,686.80",Revenue,THE WELL HOUSE,SP0000448
WANDSWORTH COUNCIL,ASC,SOCIAL SERVICES,PRIVATE,EXTERNAL RESIDENTIAL CARE,1032296,130245330,31-Aug-16,"4,419.64",Revenue,THE WELL HOUSE,SP0000448
WANDSWORTH COUNCIL,ASC,SOCIAL SERVICES,PRIVATE,EXTERNAL RESIDENTIAL CARE,1025832,130245330,22-Aug-16,"4,910.92",Revenue,MACINTYRE CARE,SP0000473
WANDSWORTH COUNCIL,ASC,SOCIAL SERVICES,PRIVATE,EXTERNAL RESIDENTIAL CARE,1030616,130245330,26-Aug-16,"3,813.84",Revenue,MACINTYRE CARE,SP0000473
WANDSWORTH COUNCIL,ASC,SOCIAL SERVICES,PRIVATE,EXTERNAL RESIDENTIAL CARE,1030617,130245330,26-Aug-16,"4,998.84",Revenue,MACINTYRE CARE,SP0000473
WANDSWORTH COUNCIL,ASC,SOCIAL SERVICES,PRIVATE,EXTERNAL RESIDENTIAL CARE,1025830,130245330,22-Aug-16,"8,982.39",Revenue,SURREY & BORDERS PARTNERSHIP NHS TRUST,SP0000501
WANDSWORTH COUNCIL,ASC,SOCIAL SERVICES,PRIVATE,EXTERNAL RESIDENTIAL CARE,1025831,130245330,22-Aug-16,"5,605.20",Revenue,SURREY & BORDERS PARTNERSHIP NHS TRUST,SP0000501
WANDSWORTH COUNCIL,ASC,SOCIAL SERVICES,PRIVATE,EXTERNAL RESIDENTIAL CARE,1025834,130245330,22-Aug-16,"7,849.44",Revenue,LORING HALL LIMITED,SP0000511
WANDSWORTH COUNCIL,ASC,SOCIAL SERVICES,PRIVATE,EXTERNAL RESIDENTIAL CARE,1023556,130245330,18-Aug-16,"8,370.84",Revenue,AIMS CARE PARTNERSHIP,SP0000561
WANDSWORTH COUNCIL,ASC,SOCIAL SERVICES,PRIVATE,EXTERNAL RESIDENTIAL CARE,1012702,130245330,04-Aug-16,"8,569.29",Revenue,SEEABILITY,SP0000572
WANDSWORTH COUNCIL,ASC,SOCIAL SERVICES,PRIVATE,EXTERNAL RESIDENTIAL CARE,1022139,130245330,17-Aug-16,"15,562.94",Revenue,SEEABILITY,SP0000572
WANDSWORTH COUNCIL,ASC,SOCIAL SERVICES,PRIVATE,EXTERNAL RESIDENTIAL CARE,1022140,130245330,17-Aug-16,"16,081.69",Revenue,SEEABILITY,SP0000572
WANDSWORTH COUNCIL,ASC,SOCIAL SERVICES,PRIVATE,EXTERNAL RESIDENTIAL CARE,1028399,130245330,25-Aug-16,"7,597.04",Revenue,SEEABILITY,SP0000572
WANDSWORTH COUNCIL,ASC,SOCIAL SERVICES,PRIVATE,EXTERNAL RESIDENTIAL CARE,1030619,130245330,26-Aug-16,"5,706.41",Revenue,SEEABILITY,SP0000572
WANDSWORTH COUNCIL,ASC,SOCIAL SERVICES,PRIVATE,EXTERNAL RESIDENTIAL CARE,1030620,130245330,26-Aug-16,"15,562.93",Revenue,SEEABILITY,SP0000572
WANDSWORTH COUNCIL,ASC,SOCIAL SERVICES,PRIVATE,EXTERNAL RESIDENTIAL CARE,1032745,130245330,31-Aug-16,"16,081.69",Revenue,SEEABILITY,SP0000572
WANDSWORTH COUNCIL,ASC,SOCIAL SERVICES,PRIVATE,EXTERNAL RESIDENTIAL CARE,1025824,130245330,22-Aug-16,"7,185.09",Revenue,THE REGARD PARTNERSHIP,SP0000588
WANDSWORTH COUNCIL,ASC,SOCIAL SERVICES,PRIVATE,EXTERNAL RESIDENTIAL CARE,1025825,130245330,22-Aug-16,"7,290.84",Revenue,THE REGARD PARTNERSHIP,SP0000588
WANDSWORTH COUNCIL,ASC,SOCIAL SERVICES,PRIVATE,EXTERNAL RESIDENTIAL CARE,1025826,130245330,22-Aug-16,"7,203.91",Revenue,THE REGARD PARTNERSHIP,SP0000588
WANDSWORTH COUNCIL,ASC,SOCIAL SERVICES,PRIVATE,EXTERNAL RESIDENTIAL CARE,1025827,130245330,22-Aug-16,"8,029.66",Revenue,THE REGARD PARTNERSHIP,SP0000588
WANDSWORTH COUNCIL,ASC,SOCIAL SERVICES,PRIVATE,EXTERNAL RESIDENTIAL CARE,1019517,130245330,12-Aug-16,"3,786.08",Revenue,LAETUS LODGE,SP0000600
WANDSWORTH COUNCIL,ASC,SOCIAL SERVICES,PRIVATE,EXTERNAL RESIDENTIAL CARE,1019518,130245330,12-Aug-16,"6,096.44",Revenue,LAETUS LODGE,SP0000600
WANDSWORTH COUNCIL,ASC,SOCIAL SERVICES,PRIVATE,EXTERNAL RESIDENTIAL CARE,1019519,130245330,12-Aug-16,"3,694.80",Revenue,LAETUS LODGE,SP0000600
WANDSWORTH COUNCIL,ASC,SOCIAL SERVICES,PRIVATE,EXTERNAL RESIDENTIAL CARE,1019520,130245330,12-Aug-16,"4,825.76",Revenue,LAETUS LODGE,SP0000600
WANDSWORTH COUNCIL,ASC,SOCIAL SERVICES,PRIVATE,EXTERNAL RESIDENTIAL CARE,1019521,130245330,12-Aug-16,"5,289.81",Revenue,LAETUS LODGE,SP0000600
WANDSWORTH COUNCIL,ASC,SOCIAL SERVICES,PRIVATE,EXTERNAL RESIDENTIAL CARE,1019522,130245330,12-Aug-16,"6,236.68",Revenue,LAETUS LODGE,SP0000600
WANDSWORTH COUNCIL,ASC,SOCIAL SERVICES,PRIVATE,EXTERNAL RESIDENTIAL CARE,1019523,130245330,12-Aug-16,"7,502.16",Revenue,LAETUS LODGE,SP0000600
WANDSWORTH COUNCIL,ASC,SOCIAL SERVICES,PRIVATE,EXTERNAL RESIDENTIAL CARE,1025833,130245330,22-Aug-16,"8,182.20",Revenue,HEALTHLINC INDIVIDUAL CARE,SP0000617
WANDSWORTH COUNCIL,ASC,SOCIAL SERVICES,PRIVATE,EXTERNAL RESIDENTIAL CARE,1025841,130245330,22-Aug-16,"8,454.94",Revenue,HEALTHLINC INDIVIDUAL CARE,SP0000617
WANDSWORTH COUNCIL,ASC,SOCIAL SERVICES,PRIVATE,EXTERNAL RESIDENTIAL CARE,1025848,130245330,22-Aug-16,"2,395.60",Revenue,LIVABILITY,SP0000669
WANDSWORTH COUNCIL,ASC,SOCIAL SERVICES,PRIVATE,EXTERNAL RESIDENTIAL CARE,1019524,130245330,12-Aug-16,"11,556.16",Revenue,LOVING CARE LTD,SP0000670
WANDSWORTH COUNCIL,ASC,SOCIAL SERVICES,PRIVATE,EXTERNAL RESIDENTIAL CARE,1019525,130245330,12-Aug-16,"11,549.40",Revenue,LOVING CARE LTD,SP0000670
WANDSWORTH COUNCIL,ASC,SOCIAL SERVICES,PRIVATE,EXTERNAL RESIDENTIAL CARE,1019526,130245330,12-Aug-16,"11,237.60",Revenue,LOVING CARE LTD,SP0000670
WANDSWORTH COUNCIL,ASC,SOCIAL SERVICES,PRIVATE,EXTERNAL RESIDENTIAL CARE,1019527,130245330,12-Aug-16,"11,507.76",Revenue,LOVING CARE LTD,SP0000670
WANDSWORTH COUNCIL,ASC,SOCIAL SERVICES,PRIVATE,EXTERNAL RESIDENTIAL CARE,1019528,130245330,12-Aug-16,"11,705.40",Revenue,LOVING CARE LTD,SP0000670
WANDSWORTH COUNCIL,ASC,SOCIAL SERVICES,PRIVATE,EXTERNAL RESIDENTIAL CARE,1019529,130245330,12-Aug-16,"11,705.40",Revenue,LOVING CARE LTD,SP0000670
WANDSWORTH COUNCIL,ASC,SOCIAL SERVICES,PRIVATE,EXTERNAL RESIDENTIAL CARE,1019604,130245330,12-Aug-16,"11,248.32",Revenue,LOVING CARE LTD,SP0000670
WANDSWORTH COUNCIL,ASC,SOCIAL SERVICES,PRIVATE,EXTERNAL RESIDENTIAL CARE,1018047,130245330,10-Aug-16,"4,496.50",Revenue,WHITMORE VALE HOUSING ASSOCIATION LTD,SP0000694
WANDSWORTH COUNCIL,ASC,SOCIAL SERVICES,PRIVATE,EXTERNAL RESIDENTIAL CARE,1018048,130245330,10-Aug-16,"5,133.28",Revenue,WHITMORE VALE HOUSING ASSOCIATION LTD,SP0000694
WANDSWORTH COUNCIL,ASC,SOCIAL SERVICES,PRIVATE,EXTERNAL RESIDENTIAL CARE,1018049,130245330,10-Aug-16,"5,132.65",Revenue,WHITMORE VALE HOUSING ASSOCIATION LTD,SP0000694
WANDSWORTH COUNCIL,ASC,SOCIAL SERVICES,PRIVATE,EXTERNAL RESIDENTIAL CARE,1018050,130245330,10-Aug-16,"5,133.28",Revenue,WHITMORE VALE HOUSING ASSOCIATION LTD,SP0000694
WANDSWORTH COUNCIL,ASC,SOCIAL SERVICES,PRIVATE,EXTERNAL RESIDENTIAL CARE,1018051,130245330,10-Aug-16,"5,133.28",Revenue,WHITMORE VALE HOUSING ASSOCIATION LTD,SP0000694
WANDSWORTH COUNCIL,ASC,SOCIAL SERVICES,PRIVATE,EXTERNAL RESIDENTIAL CARE,1018685,130245330,11-Aug-16,"5,133.28",Revenue,WHITMORE VALE HOUSING ASSOCIATION LTD,SP0000694
WANDSWORTH COUNCIL,ASC,SOCIAL SERVICES,PRIVATE,EXTERNAL RESIDENTIAL CARE,1027056,130245330,23-Aug-16,"3,120.73",Revenue,THE MANOR HOUSE,SP0000728
WANDSWORTH COUNCIL,ASC,SOCIAL SERVICES,PRIVATE,EXTERNAL RESIDENTIAL CARE,1027021,130245330,23-Aug-16,"8,596.21",Revenue,RALEIGH HOUSE LTD,SP0000760
WANDSWORTH COUNCIL,ASC,SOCIAL SERVICES,PRIVATE,EXTERNAL RESIDENTIAL CARE,1018509,130245330,11-Aug-16,"3,822.64",Revenue,GLENCARE GROUP,SP0000791
WANDSWORTH COUNCIL,ASC,SOCIAL SERVICES,PRIVATE,EXTERNAL RESIDENTIAL CARE,1018510,130245330,11-Aug-16,"6,103.44",Revenue,GLENCARE GROUP,SP0000791
WANDSWORTH COUNCIL,ASC,SOCIAL SERVICES,PRIVATE,EXTERNAL RESIDENTIAL CARE,1018511,130245330,11-Aug-16,"3,822.64",Revenue,GLENCARE GROUP,SP0000791
WANDSWORTH COUNCIL,ASC,SOCIAL SERVICES,PRIVATE,EXTERNAL RESIDENTIAL CARE,1012698,130245330,04-Aug-16,"3,162.56",Revenue,UNITED RESPONSE,SP0000797
WANDSWORTH COUNCIL,ASC,SOCIAL SERVICES,PRIVATE,EXTERNAL RESIDENTIAL CARE,1013569,130245330,08-Aug-16,"3,970.57",Revenue,BEECH LODGE,SP0000807
WANDSWORTH COUNCIL,ASC,SOCIAL SERVICES,PRIVATE,EXTERNAL RESIDENTIAL CARE,1013570,130245330,08-Aug-16,"3,988.28",Revenue,BEECH LODGE,SP0000807
WANDSWORTH COUNCIL,ASC,SOCIAL SERVICES,PRIVATE,EXTERNAL RESIDENTIAL CARE,1013571,130245330,08-Aug-16,"3,988.28",Revenue,BEECH LODGE,SP0000807
WANDSWORTH COUNCIL,ASC,SOCIAL SERVICES,PRIVATE,EXTERNAL RESIDENTIAL CARE,1032297,130245330,31-Aug-16,"3,970.57",Revenue,BEECH LODGE,SP0000807
WANDSWORTH COUNCIL,ASC,SOCIAL SERVICES,PRIVATE,EXTERNAL RESIDENTIAL CARE,1032298,130245330,31-Aug-16,"3,988.28",Revenue,BEECH LODGE,SP0000807
WANDSWORTH COUNCIL,ASC,SOCIAL SERVICES,PRIVATE,EXTERNAL RESIDENTIAL CARE,1032299,130245330,31-Aug-16,"3,988.28",Revenue,BEECH LODGE,SP0000807
WANDSWORTH COUNCIL,ASC,SOCIAL SERVICES,PRIVATE,EXTERNAL RESIDENTIAL CARE,1027055,130245330,23-Aug-16,"7,788.42",Revenue,FIRCROFT,SP0000840
WANDSWORTH COUNCIL,ASC,SOCIAL SERVICES,PRIVATE,EXTERNAL RESIDENTIAL CARE,1019839,130245330,15-Aug-16,"4,197.68",Revenue,ROYAL MENCAP SOCIETY,SP0000842
WANDSWORTH COUNCIL,ASC,SOCIAL SERVICES,PRIVATE,EXTERNAL RESIDENTIAL CARE,1009581,130245330,02-Aug-16,"3,277.62",Revenue,STALLCOMBE HOUSE,SP0000843
WANDSWORTH COUNCIL,ASC,SOCIAL SERVICES,PRIVATE,EXTERNAL RESIDENTIAL CARE,1009582,130245330,02-Aug-16,"5,466.18",Revenue,STALLCOMBE HOUSE,SP0000843
WANDSWORTH COUNCIL,ASC,SOCIAL SERVICES,PRIVATE,EXTERNAL RESIDENTIAL CARE,1027079,130245330,23-Aug-16,"5,466.18",Revenue,STALLCOMBE HOUSE,SP0000843
WANDSWORTH COUNCIL,ASC,SOCIAL SERVICES,PRIVATE,EXTERNAL RESIDENTIAL CARE,1027080,130245330,23-Aug-16,"5,690.71",Revenue,STALLCOMBE HOUSE,SP0000843
WANDSWORTH COUNCIL,ASC,SOCIAL SERVICES,PRIVATE,EXTERNAL RESIDENTIAL CARE,1027081,130245330,23-Aug-16,"3,277.62",Revenue,STALLCOMBE HOUSE,SP0000843
WANDSWORTH COUNCIL,ASC,SOCIAL SERVICES,PRIVATE,EXTERNAL RESIDENTIAL CARE,1027062,130245330,23-Aug-16,"3,010.10",Revenue,EAST VIEW HOUSING MANAGEMENT LTD,SP0000845
WANDSWORTH COUNCIL,ASC,SOCIAL SERVICES,PRIVATE,EXTERNAL RESIDENTIAL CARE,1027022,130245330,23-Aug-16,"2,636.68",Revenue,SCOPE,SP0000852
WANDSWORTH COUNCIL,ASC,SOCIAL SERVICES,PRIVATE,EXTERNAL RESIDENTIAL CARE,1027023,130245330,23-Aug-16,"2,810.68",Revenue,SCOPE,SP0000852
WANDSWORTH COUNCIL,ASC,SOCIAL SERVICES,PRIVATE,EXTERNAL RESIDENTIAL CARE,1012962,130245330,04-Aug-16,"5,599.36",Revenue,WINSLOW COURT,SP0000886
WANDSWORTH COUNCIL,ASC,SOCIAL SERVICES,PRIVATE,EXTERNAL RESIDENTIAL CARE,1012963,130245330,04-Aug-16,"5,835.32",Revenue,WINSLOW COURT,SP0000886
WANDSWORTH COUNCIL,ASC,SOCIAL SERVICES,PRIVATE,EXTERNAL RESIDENTIAL CARE,1012700,130245330,04-Aug-16,"3,957.32",Revenue,THE LEO TRUST,SP0000908
WANDSWORTH COUNCIL,ASC,SOCIAL SERVICES,PRIVATE,EXTERNAL RESIDENTIAL CARE,1012701,130245330,04-Aug-16,"5,173.07",Revenue,TRACS,SP0000914
WANDSWORTH COUNCIL,ASC,SOCIAL SERVICES,PRIVATE,EXTERNAL RESIDENTIAL CARE,1025829,130245330,22-Aug-16,"5,414.64",Revenue,TRACS,SP0000914
WANDSWORTH COUNCIL,ASC,SOCIAL SERVICES,PRIVATE,EXTERNAL RESIDENTIAL CARE,1027025,130245330,23-Aug-16,"8,450.70",Revenue,PROGRESS HOUSING MARLOW,SP0000952
WANDSWORTH COUNCIL,ASC,SOCIAL SERVICES,PRIVATE,EXTERNAL RESIDENTIAL CARE,1013572,130245330,08-Aug-16,"3,990.72",Revenue,CHERRY LODGE,SP0000965
WANDSWORTH COUNCIL,ASC,SOCIAL SERVICES,PRIVATE,EXTERNAL RESIDENTIAL CARE,1032300,130245330,31-Aug-16,"3,990.72",Revenue,CHERRY LODGE,SP0000965
WANDSWORTH COUNCIL,ASC,SOCIAL SERVICES,PRIVATE,EXTERNAL RESIDENTIAL CARE,1018686,130245330,11-Aug-16,"6,522.60",Revenue,RIDGEWOOD CARE SERVICES LTD,SP0000969
WANDSWORTH COUNCIL,ASC,SOCIAL SERVICES,PRIVATE,EXTERNAL RESIDENTIAL CARE,1028395,130245330,25-Aug-16,"3,557.60",Revenue,RIDGEWOOD CARE SERVICES LTD,SP0000969
WANDSWORTH COUNCIL,ASC,SOCIAL SERVICES,PRIVATE,EXTERNAL RESIDENTIAL CARE,1028396,130245330,25-Aug-16,"3,766.44",Revenue,RIDGEWOOD CARE SERVICES LTD,SP0000969
WANDSWORTH COUNCIL,ASC,SOCIAL SERVICES,PRIVATE,EXTERNAL RESIDENTIAL CARE,1016288,130245330,09-Aug-16,"4,377.55",Revenue,LEONARD CHESHIRE,SP0000976
WANDSWORTH COUNCIL,ASC,SOCIAL SERVICES,PRIVATE,EXTERNAL RESIDENTIAL CARE,1016289,130245330,09-Aug-16,"6,402.96",Revenue,LEONARD CHESHIRE,SP0000976
WANDSWORTH COUNCIL,ASC,SOCIAL SERVICES,PRIVATE,EXTERNAL RESIDENTIAL CARE,1016290,130245330,09-Aug-16,"4,702.61",Revenue,LEONARD CHESHIRE,SP0000976
WANDSWORTH COUNCIL,ASC,SOCIAL SERVICES,PRIVATE,EXTERNAL RESIDENTIAL CARE,1028397,130245330,25-Aug-16,"4,613.60",Revenue,LOTUS CARE HOME LTD,SP0001006
WANDSWORTH COUNCIL,ASC,SOCIAL SERVICES,PRIVATE,EXTERNAL RESIDENTIAL CARE,1012957,130245330,04-Aug-16,"5,582.92",Revenue,M JINGREE T/A SUNLIGHT HOUSE,SP0001024
WANDSWORTH COUNCIL,ASC,SOCIAL SERVICES,PRIVATE,EXTERNAL RESIDENTIAL CARE,1019851,130245330,15-Aug-16,"6,619.95",Revenue,LIVING AMBITIONS LIMITED,SP0001039
WANDSWORTH COUNCIL,ASC,SOCIAL SERVICES,PRIVATE,EXTERNAL RESIDENTIAL CARE,1019848,130245330,15-Aug-16,"2,763.08",Revenue,THE HOME FARM TRUST LTD,SP0001048
WANDSWORTH COUNCIL,ASC,SOCIAL SERVICES,PRIVATE,EXTERNAL RESIDENTIAL CARE,1022143,130245330,17-Aug-16,"2,763.08",Revenue,THE HOME FARM TRUST LTD,SP0001048
WANDSWORTH COUNCIL,ASC,SOCIAL SERVICES,PRIVATE,EXTERNAL RESIDENTIAL CARE,1022144,130245330,17-Aug-16,"2,491.76",Revenue,THE HOME FARM TRUST LTD,SP0001048
WANDSWORTH COUNCIL,ASC,SOCIAL SERVICES,PRIVATE,EXTERNAL RESIDENTIAL CARE,1022145,130245330,17-Aug-16,"3,734.16",Revenue,THE HOME FARM TRUST LTD,SP0001048
WANDSWORTH COUNCIL,ASC,SOCIAL SERVICES,PRIVATE,EXTERNAL RESIDENTIAL CARE,1012709,130245330,04-Aug-16,"6,875.10",Revenue,ALLIED CARE (MHS) LTD,SP0001069
WANDSWORTH COUNCIL,ASC,SOCIAL SERVICES,PRIVATE,EXTERNAL RESIDENTIAL CARE,1013566,130245330,08-Aug-16,"4,723.08",Revenue,ALLIED CARE (MHS) LTD,SP0001069
WANDSWORTH COUNCIL,ASC,SOCIAL SERVICES,PRIVATE,EXTERNAL RESIDENTIAL CARE,1026992,130245330,23-Aug-16,"4,419.27",Revenue,ALLIED CARE (MHS) LTD,SP0001069
WANDSWORTH COUNCIL,ASC,SOCIAL SERVICES,PRIVATE,EXTERNAL RESIDENTIAL CARE,1026995,130245330,23-Aug-16,"7,104.27",Revenue,ALLIED CARE (MHS) LTD,SP0001069
WANDSWORTH COUNCIL,ASC,SOCIAL SERVICES,PRIVATE,EXTERNAL RESIDENTIAL CARE,1026996,130245330,23-Aug-16,"5,100.43",Revenue,ALLIED CARE (MHS) LTD,SP0001069
WANDSWORTH COUNCIL,ASC,SOCIAL SERVICES,PRIVATE,EXTERNAL RESIDENTIAL CARE,1025828,130245330,22-Aug-16,"2,339.57",Revenue,SAXON COURT,SP0001100
WANDSWORTH COUNCIL,ASC,SOCIAL SERVICES,PRIVATE,EXTERNAL RESIDENTIAL CARE,1016745,130245330,09-Aug-16,"12,502.74",Revenue,ILG LTD,SP0001103
WANDSWORTH COUNCIL,ASC,SOCIAL SERVICES,PRIVATE,EXTERNAL RESIDENTIAL CARE,1019602,130245330,12-Aug-16,"7,447.56",Revenue,TOTTERDOWN,SP0001113
WANDSWORTH COUNCIL,ASC,SOCIAL SERVICES,PRIVATE,EXTERNAL RESIDENTIAL CARE,1019603,130245330,12-Aug-16,"3,696.92",Revenue,TOTTERDOWN,SP0001113
WANDSWORTH COUNCIL,ASC,SOCIAL SERVICES,PRIVATE,EXTERNAL RESIDENTIAL CARE,1022149,130245330,17-Aug-16,"7,397.51",Revenue,SUSSEX HEALTH CARE,SP0001115
WANDSWORTH COUNCIL,ASC,SOCIAL SERVICES,PRIVATE,EXTERNAL RESIDENTIAL CARE,1022151,130245330,17-Aug-16,(88.02),Revenue,SUSSEX HEALTH CARE,SP0001115
WANDSWORTH COUNCIL,ASC,SOCIAL SERVICES,PRIVATE,EXTERNAL RESIDENTIAL CARE,1026986,130245330,23-Aug-16,"7,364.01",Revenue,SUSSEX HEALTH CARE,SP0001115
WANDSWORTH COUNCIL,ASC,SOCIAL SERVICES,PRIVATE,EXTERNAL RESIDENTIAL CARE,1016757,130245330,09-Aug-16,"7,186.73",Revenue,LONDON CARE PARTNERSHIP LTD,SP0001138
WANDSWORTH COUNCIL,ASC,SOCIAL SERVICES,PRIVATE,EXTERNAL RESIDENTIAL CARE,1018514,130245330,11-Aug-16,"8,445.24",Revenue,LONDON CARE PARTNERSHIP LTD,SP0001138
WANDSWORTH COUNCIL,ASC,SOCIAL SERVICES,PRIVATE,EXTERNAL RESIDENTIAL CARE,1027082,130245330,23-Aug-16,"7,159.45",Revenue,LONDON CARE PARTNERSHIP LTD,SP0001138
WANDSWORTH COUNCIL,ASC,SOCIAL SERVICES,PRIVATE,EXTERNAL RESIDENTIAL CARE,1013579,130245330,08-Aug-16,"5,002.24",Revenue,LARKFIELD HALL LTD T/A PEPENBURY,SP0001378
WANDSWORTH COUNCIL,ASC,SOCIAL SERVICES,PRIVATE,EXTERNAL RESIDENTIAL CARE,1025838,130245330,22-Aug-16,"5,002.24",Revenue,LARKFIELD HALL LTD T/A PEPENBURY,SP0001378
WANDSWORTH COUNCIL,ASC,SOCIAL SERVICES,PRIVATE,EXTERNAL RESIDENTIAL CARE,1016278,130245330,09-Aug-16,"8,680.13",Revenue,THE WEST OF ENGLAND SCHOOL & COLLEGE,SP0001486
WANDSWORTH COUNCIL,ASC,SOCIAL SERVICES,PRIVATE,EXTERNAL RESIDENTIAL CARE,1016279,130245330,09-Aug-16,"8,680.13",Revenue,THE WEST OF ENGLAND SCHOOL & COLLEGE,SP0001486
WANDSWORTH COUNCIL,ASC,SOCIAL SERVICES,PRIVATE,EXTERNAL RESIDENTIAL CARE,1026991,130245330,23-Aug-16,"8,784.65",Revenue,ROOKERY HOVE PRIORY,SP0001498
WANDSWORTH COUNCIL,ASC,SOCIAL SERVICES,PRIVATE,EXTERNAL RESIDENTIAL CARE,1016291,130245330,09-Aug-16,"7,523.88",Revenue,MCCH SOCIETY LIMITED,SP0001531
WANDSWORTH COUNCIL,ASC,SOCIAL SERVICES,PRIVATE,EXTERNAL RESIDENTIAL CARE,1016292,130245330,09-Aug-16,"7,539.88",Revenue,MCCH SOCIETY LIMITED,SP0001531
WANDSWORTH COUNCIL,ASC,SOCIAL SERVICES,PRIVATE,EXTERNAL RESIDENTIAL CARE,1012697,130245330,04-Aug-16,"3,523.28",Revenue,CRAEGMOOR OLD RECTORY BREDE PRIORY,SP0001621
WANDSWORTH COUNCIL,ASC,SOCIAL SERVICES,PRIVATE,EXTERNAL RESIDENTIAL CARE,1032752,130245330,31-Aug-16,"3,523.28",Revenue,CRAEGMOOR OLD RECTORY BREDE PRIORY,SP0001621
WANDSWORTH COUNCIL,ASC,SOCIAL SERVICES,PRIVATE,EXTERNAL RESIDENTIAL CARE,1011752,130245330,03-Aug-16,"6,705.00",Revenue,SALISBURY SUPPORT 4 AUTISM LTD,SP0001691
WANDSWORTH COUNCIL,ASC,SOCIAL SERVICES,PRIVATE,EXTERNAL RESIDENTIAL CARE,1027015,130245330,23-Aug-16,"7,616.83",Revenue,PATHWAY HEALTHCARE,SP0001779
WANDSWORTH COUNCIL,ASC,SOCIAL SERVICES,PRIVATE,EXTERNAL RESIDENTIAL CARE,1027016,130245330,23-Aug-16,"7,184.16",Revenue,PATHWAY HEALTHCARE,SP0001779
WANDSWORTH COUNCIL,ASC,SOCIAL SERVICES,PRIVATE,EXTERNAL RESIDENTIAL CARE,1016282,130245330,09-Aug-16,"11,134.88",Revenue,KISIMUL GROUP LTD,SP0002487
WANDSWORTH COUNCIL,ASC,SOCIAL SERVICES,PRIVATE,EXTERNAL RESIDENTIAL CARE,1019838,130245330,15-Aug-16,"11,134.88",Revenue,KISIMUL GROUP LTD,SP0002487
WANDSWORTH COUNCIL,ASC,SOCIAL SERVICES,PRIVATE,EXTERNAL RESIDENTIAL CARE,1027003,130245330,23-Aug-16,"10,566.57",Revenue,SEQUENCE CARE GROUP,SP0009709
WANDSWORTH COUNCIL,ASC,SOCIAL SERVICES,PRIVATE,EXTERNAL RESIDENTIAL CARE,1027052,130245330,23-Aug-16,"4,598.80",Revenue,ALLIED CARE LTD T/A ASHSTEAD HOUSE LTD,SP0009950
WANDSWORTH COUNCIL,ASC,SOCIAL SERVICES,PRIVATE,EXTERNAL RESIDENTIAL CARE,1013564,130245330,08-Aug-16,"7,471.92",Revenue,C.H.O.I.C.E LIMITED,SP0010438
WANDSWORTH COUNCIL,ASC,SOCIAL SERVICES,PRIVATE,EXTERNAL RESIDENTIAL CARE,1032748,130245330,31-Aug-16,"18,942.86",Revenue,C.H.O.I.C.E LIMITED,SP0010438
WANDSWORTH COUNCIL,ASC,SOCIAL SERVICES,PRIVATE,EXTERNAL RESIDENTIAL CARE,1012695,130245330,04-Aug-16,"9,861.00",Revenue,"CRAEGMOOR, PARKCARE HOMES (NO2) LTD TA W",SP0010529
WANDSWORTH COUNCIL,ASC,SOCIAL SERVICES,PRIVATE,EXTERNAL RESIDENTIAL CARE,1013574,130245330,08-Aug-16,"13,395.52",Revenue,CAMBIAN LEARNING DISABILITIES MIDLANDS,SP0010672
WANDSWORTH COUNCIL,ASC,SOCIAL SERVICES,PRIVATE,EXTERNAL RESIDENTIAL CARE,1013576,130245330,08-Aug-16,"14,198.22",Revenue,CAMBIAN LEARNING DISABILITIES MIDLANDS,SP0010672
WANDSWORTH COUNCIL,ASC,SOCIAL SERVICES,PRIVATE,EXTERNAL RESIDENTIAL CARE,1013577,130245330,08-Aug-16,"14,198.22",Revenue,CAMBIAN LEARNING DISABILITIES MIDLANDS,SP0010672
WANDSWORTH COUNCIL,ASC,SOCIAL SERVICES,PRIVATE,EXTERNAL RESI RESPITE CARE,1019840,130245340,15-Aug-16,"2,952.00",Revenue,ST MARYS RESIDENTIAL HOME,SP0000215
WANDSWORTH COUNCIL,ASC,,PRIVATE,EXTERNAL RESI RESPITE CARE,1022081,130245340,17-Aug-16,"38,875.58",Revenue,SOUTHSIDE PARTNERSHIP,SP0000692
WANDSWORTH COUNCIL,ASC,SOCIAL SERVICES,PRIVATE,ONE TO ONE CARE,1013634,130246220,08-Aug-16,533.40,Revenue,RAINBOW MEDICAL SERVICES,SP0000037
WANDSWORTH COUNCIL,ASC,SOCIAL SERVICES,PRIVATE,ONE TO ONE CARE,1019990,130246220,15-Aug-16,"1,457.10",Revenue,ASIAN ELDERS SUPPORT SCHEME,SP0000190
WANDSWORTH COUNCIL,ASC,SOCIAL SERVICES,PRIVATE,ONE TO ONE CARE,1026172,130246220,22-Aug-16,"1,538.05",Revenue,ASIAN ELDERS SUPPORT SCHEME,SP0000190
WANDSWORTH COUNCIL,ASC,SOCIAL SERVICES,PRIVATE,ONE TO ONE CARE,1032304,130246220,31-Aug-16,698.12,Revenue,ST MARYS RESIDENTIAL HOME,SP0000215
WANDSWORTH COUNCIL,ASC,SOCIAL SERVICES,PRIVATE,ONE TO ONE CARE,1032305,130246220,31-Aug-16,653.39,Revenue,ST MARYS RESIDENTIAL HOME,SP0000215
WANDSWORTH COUNCIL,ASC,SOCIAL SERVICES,PRIVATE,ONE TO ONE CARE,1019298,130246220,12-Aug-16,949.80,Revenue,HARINGEY ASSOCIATION FOR INDEPENDENT LIV,SP0000222
WANDSWORTH COUNCIL,ASC,SOCIAL SERVICES,PRIVATE,ONE TO ONE CARE,1019299,130246220,12-Aug-16,759.84,Revenue,HARINGEY ASSOCIATION FOR INDEPENDENT LIV,SP0000222
WANDSWORTH COUNCIL,ASC,SOCIAL SERVICES,PRIVATE,ONE TO ONE CARE,1026989,130246220,23-Aug-16,"1,963.85",Revenue,RESIDENTIAL COMMUNITY CARE,SP0000315
WANDSWORTH COUNCIL,ASC,SOCIAL SERVICES,PRIVATE,ONE TO ONE CARE,1016831,130246220,09-Aug-16,547.60,Revenue,LIFEWAYS COMMUNITY CARE LTD,SP0000364
WANDSWORTH COUNCIL,ASC,SOCIAL SERVICES,PRIVATE,ONE TO ONE CARE,1013629,130246220,08-Aug-16,"1,062.86",Revenue,VOYAGE CARE LTD,SP0000366
WANDSWORTH COUNCIL,ASC,SOCIAL SERVICES,PRIVATE,ONE TO ONE CARE,1022230,130246220,17-Aug-16,"1,028.57",Revenue,VOYAGE CARE LTD,SP0000366
WANDSWORTH COUNCIL,ASC,SOCIAL SERVICES,PRIVATE,ONE TO ONE CARE,1032918,130246220,31-Aug-16,"1,364.04",Revenue,MACINTYRE CARE,SP0000473
WANDSWORTH COUNCIL,ASC,SOCIAL SERVICES,PRIVATE,ONE TO ONE CARE,1032919,130246220,31-Aug-16,"1,364.04",Revenue,MACINTYRE CARE,SP0000473
WANDSWORTH COUNCIL,ASC,SOCIAL SERVICES,PRIVATE,ONE TO ONE CARE,1032920,130246220,31-Aug-16,"1,928.52",Revenue,MACINTYRE CARE,SP0000473
WANDSWORTH COUNCIL,ASC,SOCIAL SERVICES,PRIVATE,ONE TO ONE CARE,1032921,130246220,31-Aug-16,"1,364.04",Revenue,MACINTYRE CARE,SP0000473
WANDSWORTH COUNCIL,ASC,SOCIAL SERVICES,PRIVATE,ONE TO ONE CARE,1032922,130246220,31-Aug-16,701.52,Revenue,MACINTYRE CARE,SP0000473
WANDSWORTH COUNCIL,ASC,SOCIAL SERVICES,PRIVATE,ONE TO ONE CARE,1026969,130246220,23-Aug-16,"2,480.00",Revenue,STALLCOMBE HOUSE,SP0000843
WANDSWORTH COUNCIL,ASC,SOCIAL SERVICES,PRIVATE,ONE TO ONE CARE,1013635,130246220,08-Aug-16,"3,194.88",Revenue,TOTTERDOWN,SP0001113
WANDSWORTH COUNCIL,ASC,SOCIAL SERVICES,PRIVATE,ONE TO ONE CARE,1013639,130246220,08-Aug-16,807.68,Revenue,LARKFIELD HALL LTD T/A PEPENBURY,SP0001378
WANDSWORTH COUNCIL,ASC,SOCIAL SERVICES,PRIVATE,ONE TO ONE CARE,1026165,130246220,22-Aug-16,807.68,Revenue,LARKFIELD HALL LTD T/A PEPENBURY,SP0001378
WANDSWORTH COUNCIL,ASC,SOCIAL SERVICES,PRIVATE,ONE TO ONE CARE,1016824,130246220,09-Aug-16,"3,000.00",Revenue,CRAEGMOOR OLD RECTORY BREDE PRIORY,SP0001621
WANDSWORTH COUNCIL,ASC,SOCIAL SERVICES,PRIVATE,ONE TO ONE CARE,1018704,130246220,11-Aug-16,324.00,Revenue,THE BRANDON TRUST,SP0005337
WANDSWORTH COUNCIL,ASC,SOCIAL SERVICES,PRIVATE,ONE TO ONE CARE,1018725,130246220,11-Aug-16,"1,032.68",Revenue,THE BRANDON TRUST,SP0005337
WANDSWORTH COUNCIL,ASC,SOCIAL SERVICES,PRIVATE,ONE TO ONE CARE,1018733,130246220,11-Aug-16,331.20,Revenue,THE BRANDON TRUST,SP0005337
WANDSWORTH COUNCIL,ASC,SOCIAL SERVICES,PRIVATE,ONE TO ONE CARE,1018735,130246220,11-Aug-16,331.20,Revenue,THE BRANDON TRUST,SP0005337
WANDSWORTH COUNCIL,ASC,SOCIAL SERVICES,PRIVATE,ONE TO ONE CARE,1019234,130246220,12-Aug-16,600.04,Revenue,THE BRANDON TRUST,SP0005337
WANDSWORTH COUNCIL,ASC,SOCIAL SERVICES,PRIVATE,ONE TO ONE CARE,1019244,130246220,12-Aug-16,"1,987.20",Revenue,THE BRANDON TRUST,SP0005337
WANDSWORTH COUNCIL,ASC,SOCIAL SERVICES,PRIVATE,ONE TO ONE CARE,1019245,130246220,12-Aug-16,"1,312.00",Revenue,THE BRANDON TRUST,SP0005337
WANDSWORTH COUNCIL,ASC,SOCIAL SERVICES,PRIVATE,ONE TO ONE CARE,1019248,130246220,12-Aug-16,"2,450.88",Revenue,THE BRANDON TRUST,SP0005337
WANDSWORTH COUNCIL,ASC,SOCIAL SERVICES,VOL ASS,SUPPORTED HOUSING PROGRAMME,1019023,130248030,12-Aug-16,"3,247.28",Revenue,HARINGEY ASSOCIATION FOR INDEPENDENT LIV,SP0000222
WANDSWORTH COUNCIL,ASC,SOCIAL SERVICES,VOL ASS,SUPPORTED HOUSING PROGRAMME,1019024,130248030,12-Aug-16,"4,059.10",Revenue,HARINGEY ASSOCIATION FOR INDEPENDENT LIV,SP0000222
WANDSWORTH COUNCIL,ASC,SOCIAL SERVICES,VOL ASS,SUPPORTED HOUSING PROGRAMME,1019025,130248030,12-Aug-16,"1,901.90",Revenue,HARINGEY ASSOCIATION FOR INDEPENDENT LIV,SP0000222
WANDSWORTH COUNCIL,ASC,SOCIAL SERVICES,VOL ASS,SUPPORTED HOUSING PROGRAMME,1019026,130248030,12-Aug-16,"1,521.52",Revenue,HARINGEY ASSOCIATION FOR INDEPENDENT LIV,SP0000222
WANDSWORTH COUNCIL,ASC,SOCIAL SERVICES,VOL ASS,SUPPORTED HOUSING PROGRAMME,1016832,130248030,09-Aug-16,"3,885.44",Revenue,LIFEWAYS COMMUNITY CARE LTD,SP0000364
WANDSWORTH COUNCIL,ASC,SOCIAL SERVICES,VOL ASS,SUPPORTED HOUSING PROGRAMME,1016833,130248030,09-Aug-16,"2,596.04",Revenue,LIFEWAYS COMMUNITY CARE LTD,SP0000364
WANDSWORTH COUNCIL,ASC,SOCIAL SERVICES,VOL ASS,SUPPORTED HOUSING PROGRAMME,1016834,130248030,09-Aug-16,"2,166.24",Revenue,LIFEWAYS COMMUNITY CARE LTD,SP0000364
WANDSWORTH COUNCIL,ASC,SOCIAL SERVICES,VOL ASS,SUPPORTED HOUSING PROGRAMME,1016835,130248030,09-Aug-16,"2,227.64",Revenue,LIFEWAYS COMMUNITY CARE LTD,SP0000364
WANDSWORTH COUNCIL,ASC,SOCIAL SERVICES,VOL ASS,SUPPORTED HOUSING PROGRAMME,1016836,130248030,09-Aug-16,"1,982.04",Revenue,LIFEWAYS COMMUNITY CARE LTD,SP0000364
WANDSWORTH COUNCIL,ASC,SOCIAL SERVICES,VOL ASS,SUPPORTED HOUSING PROGRAMME,1016838,130248030,09-Aug-16,"2,289.04",Revenue,LIFEWAYS COMMUNITY CARE LTD,SP0000364
WANDSWORTH COUNCIL,ASC,SOCIAL SERVICES,VOL ASS,SUPPORTED HOUSING PROGRAMME,1016839,130248030,09-Aug-16,"1,982.04",Revenue,LIFEWAYS COMMUNITY CARE LTD,SP0000364
WANDSWORTH COUNCIL,ASC,SOCIAL SERVICES,VOL ASS,SUPPORTED HOUSING PROGRAMME,1016840,130248030,09-Aug-16,"3,885.44",Revenue,LIFEWAYS COMMUNITY CARE LTD,SP0000364
WANDSWORTH COUNCIL,ASC,SOCIAL SERVICES,VOL ASS,SUPPORTED HOUSING PROGRAMME,1016841,130248030,09-Aug-16,"2,411.84",Revenue,LIFEWAYS COMMUNITY CARE LTD,SP0000364
WANDSWORTH COUNCIL,ASC,SOCIAL SERVICES,VOL ASS,SUPPORTED HOUSING PROGRAMME,1016842,130248030,09-Aug-16,"1,736.44",Revenue,LIFEWAYS COMMUNITY CARE LTD,SP0000364
WANDSWORTH COUNCIL,ASC,SOCIAL SERVICES,VOL ASS,SUPPORTED HOUSING PROGRAMME,1016843,130248030,09-Aug-16,"1,920.64",Revenue,LIFEWAYS COMMUNITY CARE LTD,SP0000364
WANDSWORTH COUNCIL,ASC,SOCIAL SERVICES,VOL ASS,SUPPORTED HOUSING PROGRAMME,1016844,130248030,09-Aug-16,"3,210.04",Revenue,LIFEWAYS COMMUNITY CARE LTD,SP0000364
WANDSWORTH COUNCIL,ASC,SOCIAL SERVICES,VOL ASS,SUPPORTED HOUSING PROGRAMME,1016847,130248030,09-Aug-16,"2,394.20",Revenue,LIFEWAYS COMMUNITY CARE LTD,SP0000364
WANDSWORTH COUNCIL,ASC,SOCIAL SERVICES,VOL ASS,SUPPORTED HOUSING PROGRAMME,1016848,130248030,09-Aug-16,"2,551.16",Revenue,LIFEWAYS COMMUNITY CARE LTD,SP0000364
WANDSWORTH COUNCIL,ASC,SOCIAL SERVICES,VOL ASS,SUPPORTED HOUSING PROGRAMME,1016849,130248030,09-Aug-16,"3,335.96",Revenue,LIFEWAYS COMMUNITY CARE LTD,SP0000364
WANDSWORTH COUNCIL,ASC,SOCIAL SERVICES,VOL ASS,SUPPORTED HOUSING PROGRAMME,1016850,130248030,09-Aug-16,"2,603.48",Revenue,LIFEWAYS COMMUNITY CARE LTD,SP0000364
WANDSWORTH COUNCIL,ASC,SOCIAL SERVICES,VOL ASS,SUPPORTED HOUSING PROGRAMME,1016851,130248030,09-Aug-16,"2,969.72",Revenue,LIFEWAYS COMMUNITY CARE LTD,SP0000364
WANDSWORTH COUNCIL,ASC,SOCIAL SERVICES,VOL ASS,SUPPORTED HOUSING PROGRAMME,1016852,130248030,09-Aug-16,"2,341.88",Revenue,LIFEWAYS COMMUNITY CARE LTD,SP0000364
WANDSWORTH COUNCIL,ASC,SOCIAL SERVICES,VOL ASS,SUPPORTED HOUSING PROGRAMME,1016853,130248030,09-Aug-16,"2,551.16",Revenue,LIFEWAYS COMMUNITY CARE LTD,SP0000364
WANDSWORTH COUNCIL,ASC,SOCIAL SERVICES,VOL ASS,SUPPORTED HOUSING PROGRAMME,1016854,130248030,09-Aug-16,"1,444.56",Revenue,LIFEWAYS COMMUNITY CARE LTD,SP0000364
WANDSWORTH COUNCIL,ASC,SOCIAL SERVICES,VOL ASS,SUPPORTED HOUSING PROGRAMME,1016855,130248030,09-Aug-16,"2,025.24",Revenue,LIFEWAYS COMMUNITY CARE LTD,SP0000364
WANDSWORTH COUNCIL,ASC,SOCIAL SERVICES,VOL ASS,SUPPORTED HOUSING PROGRAMME,1016856,130248030,09-Aug-16,"2,025.24",Revenue,LIFEWAYS COMMUNITY CARE LTD,SP0000364
WANDSWORTH COUNCIL,ASC,SOCIAL SERVICES,VOL ASS,SUPPORTED HOUSING PROGRAMME,1016857,130248030,09-Aug-16,"2,025.24",Revenue,LIFEWAYS COMMUNITY CARE LTD,SP0000364
WANDSWORTH COUNCIL,ASC,SOCIAL SERVICES,VOL ASS,SUPPORTED HOUSING PROGRAMME,1016858,130248030,09-Aug-16,"2,244.28",Revenue,LIFEWAYS COMMUNITY CARE LTD,SP0000364
WANDSWORTH COUNCIL,ASC,SOCIAL SERVICES,VOL ASS,SUPPORTED HOUSING PROGRAMME,1016859,130248030,09-Aug-16,"2,518.08",Revenue,LIFEWAYS COMMUNITY CARE LTD,SP0000364
WANDSWORTH COUNCIL,ASC,SOCIAL SERVICES,VOL ASS,SUPPORTED HOUSING PROGRAMME,1016860,130248030,09-Aug-16,"2,025.24",Revenue,LIFEWAYS COMMUNITY CARE LTD,SP0000364
WANDSWORTH COUNCIL,ASC,SOCIAL SERVICES,VOL ASS,SUPPORTED HOUSING PROGRAMME,1016861,130248030,09-Aug-16,"2,244.28",Revenue,LIFEWAYS COMMUNITY CARE LTD,SP0000364
WANDSWORTH COUNCIL,ASC,SOCIAL SERVICES,VOL ASS,SUPPORTED HOUSING PROGRAMME,1016862,130248030,09-Aug-16,"1,860.96",Revenue,LIFEWAYS COMMUNITY CARE LTD,SP0000364
WANDSWORTH COUNCIL,ASC,SOCIAL SERVICES,VOL ASS,SUPPORTED HOUSING PROGRAMME,1016863,130248030,09-Aug-16,"2,345.32",Revenue,LIFEWAYS COMMUNITY CARE LTD,SP0000364
WANDSWORTH COUNCIL,ASC,SOCIAL SERVICES,VOL ASS,SUPPORTED HOUSING PROGRAMME,1016864,130248030,09-Aug-16,"2,867.20",Revenue,LIFEWAYS COMMUNITY CARE LTD,SP0000364
WANDSWORTH COUNCIL,ASC,SOCIAL SERVICES,VOL ASS,SUPPORTED HOUSING PROGRAMME,1016865,130248030,09-Aug-16,"2,341.88",Revenue,LIFEWAYS COMMUNITY CARE LTD,SP0000364
WANDSWORTH COUNCIL,ASC,SOCIAL SERVICES,VOL ASS,SUPPORTED HOUSING PROGRAMME,1016866,130248030,09-Aug-16,"3,100.52",Revenue,LIFEWAYS COMMUNITY CARE LTD,SP0000364
WANDSWORTH COUNCIL,ASC,SOCIAL SERVICES,VOL ASS,SUPPORTED HOUSING PROGRAMME,1016867,130248030,09-Aug-16,"3,885.44",Revenue,LIFEWAYS COMMUNITY CARE LTD,SP0000364
WANDSWORTH COUNCIL,ASC,SOCIAL SERVICES,VOL ASS,SUPPORTED HOUSING PROGRAMME,1016868,130248030,09-Aug-16,"3,885.44",Revenue,LIFEWAYS COMMUNITY CARE LTD,SP0000364
WANDSWORTH COUNCIL,ASC,SOCIAL SERVICES,VOL ASS,SUPPORTED HOUSING PROGRAMME,1016869,130248030,09-Aug-16,"3,885.44",Revenue,LIFEWAYS COMMUNITY CARE LTD,SP0000364
WANDSWORTH COUNCIL,ASC,SOCIAL SERVICES,VOL ASS,SUPPORTED HOUSING PROGRAMME,1019913,130248030,15-Aug-16,"7,336.00",Revenue,LIFEWAYS COMMUNITY CARE LTD,SP0000364
WANDSWORTH COUNCIL,ASC,SOCIAL SERVICES,VOL ASS,SUPPORTED HOUSING PROGRAMME,1025858,130248030,22-Aug-16,"7,972.24",Revenue,CHOICE SUPPORT,SP0000398
WANDSWORTH COUNCIL,ASC,SOCIAL SERVICES,VOL ASS,SUPPORTED HOUSING PROGRAMME,1027145,130248030,23-Aug-16,0.08,Revenue,C M CARE LTD,SP0000455
WANDSWORTH COUNCIL,ASC,SOCIAL SERVICES,VOL ASS,SUPPORTED HOUSING PROGRAMME,1011788,130248030,03-Aug-16,"5,178.57",Revenue,CAREOLINE,SP0000483
WANDSWORTH COUNCIL,ASC,SOCIAL SERVICES,VOL ASS,SUPPORTED HOUSING PROGRAMME,1011789,130248030,03-Aug-16,"4,930.59",Revenue,CAREOLINE,SP0000483
WANDSWORTH COUNCIL,ASC,SOCIAL SERVICES,VOL ASS,SUPPORTED HOUSING PROGRAMME,1026490,130248030,22-Aug-16,"5,310.92",Revenue,ST ELIZABETHS CENTRE,SP0001019
WANDSWORTH COUNCIL,ASC,SOCIAL SERVICES,VOL ASS,SUPPORTED HOUSING PROGRAMME,1027132,130248030,23-Aug-16,"9,036.32",Revenue,PRECIOUS HOMES LTD,SP0001459
WANDSWORTH COUNCIL,ASC,SOCIAL SERVICES,VOL ASS,SUPPORTED HOUSING PROGRAMME,1027133,130248030,23-Aug-16,"2,869.71",Revenue,PRECIOUS HOMES LTD,SP0001459
WANDSWORTH COUNCIL,ASC,SOCIAL SERVICES,VOL ASS,SUPPORTED HOUSING PROGRAMME,1028236,130248030,25-Aug-16,"5,710.84",Revenue,INDEPENDENCE HOMES LTD,SP0004378
WANDSWORTH COUNCIL,ASC,SOCIAL SERVICES,VOL ASS,SUPPORTED HOUSING PROGRAMME,1016823,130248030,09-Aug-16,(0.12),Revenue,THE BRANDON TRUST,SP0005337
WANDSWORTH COUNCIL,ASC,SOCIAL SERVICES,VOL ASS,SUPPORTED HOUSING PROGRAMME,1018701,130248030,11-Aug-16,"1,551.32",Revenue,THE BRANDON TRUST,SP0005337
WANDSWORTH COUNCIL,ASC,SOCIAL SERVICES,VOL ASS,SUPPORTED HOUSING PROGRAMME,1018702,130248030,11-Aug-16,"1,936.52",Revenue,THE BRANDON TRUST,SP0005337
WANDSWORTH COUNCIL,ASC,SOCIAL SERVICES,VOL ASS,SUPPORTED HOUSING PROGRAMME,1018703,130248030,11-Aug-16,"7,764.16",Revenue,THE BRANDON TRUST,SP0005337
WANDSWORTH COUNCIL,ASC,SOCIAL SERVICES,VOL ASS,SUPPORTED HOUSING PROGRAMME,1018704,130248030,11-Aug-16,"2,327.04",Revenue,THE BRANDON TRUST,SP0005337
WANDSWORTH COUNCIL,ASC,SOCIAL SERVICES,VOL ASS,SUPPORTED HOUSING PROGRAMME,1018705,130248030,11-Aug-16,"2,969.16",Revenue,THE BRANDON TRUST,SP0005337
WANDSWORTH COUNCIL,ASC,SOCIAL SERVICES,VOL ASS,SUPPORTED HOUSING PROGRAMME,1018706,130248030,11-Aug-16,"2,979.92",Revenue,THE BRANDON TRUST,SP0005337
WANDSWORTH COUNCIL,ASC,SOCIAL SERVICES,VOL ASS,SUPPORTED HOUSING PROGRAMME,1018707,130248030,11-Aug-16,"2,140.32",Revenue,THE BRANDON TRUST,SP0005337
WANDSWORTH COUNCIL,ASC,SOCIAL SERVICES,VOL ASS,SUPPORTED HOUSING PROGRAMME,1018708,130248030,11-Aug-16,"1,125.08",Revenue,THE BRANDON TRUST,SP0005337
WANDSWORTH COUNCIL,ASC,SOCIAL SERVICES,VOL ASS,SUPPORTED HOUSING PROGRAMME,1018709,130248030,11-Aug-16,"1,155.88",Revenue,THE BRANDON TRUST,SP0005337
WANDSWORTH COUNCIL,ASC,SOCIAL SERVICES,VOL ASS,SUPPORTED HOUSING PROGRAMME,1018710,130248030,11-Aug-16,"1,854.72",Revenue,THE BRANDON TRUST,SP0005337
WANDSWORTH COUNCIL,ASC,SOCIAL SERVICES,VOL ASS,SUPPORTED HOUSING PROGRAMME,1018711,130248030,11-Aug-16,"1,380.64",Revenue,THE BRANDON TRUST,SP0005337
WANDSWORTH COUNCIL,ASC,SOCIAL SERVICES,VOL ASS,SUPPORTED HOUSING PROGRAMME,1018712,130248030,11-Aug-16,"1,466.16",Revenue,THE BRANDON TRUST,SP0005337
WANDSWORTH COUNCIL,ASC,SOCIAL SERVICES,VOL ASS,SUPPORTED HOUSING PROGRAMME,1018713,130248030,11-Aug-16,"1,513.68",Revenue,THE BRANDON TRUST,SP0005337
WANDSWORTH COUNCIL,ASC,SOCIAL SERVICES,VOL ASS,SUPPORTED HOUSING PROGRAMME,1018714,130248030,11-Aug-16,"1,513.68",Revenue,THE BRANDON TRUST,SP0005337
WANDSWORTH COUNCIL,ASC,SOCIAL SERVICES,VOL ASS,SUPPORTED HOUSING PROGRAMME,1018715,130248030,11-Aug-16,"2,856.96",Revenue,THE BRANDON TRUST,SP0005337
WANDSWORTH COUNCIL,ASC,SOCIAL SERVICES,VOL ASS,SUPPORTED HOUSING PROGRAMME,1018716,130248030,11-Aug-16,"2,260.80",Revenue,THE BRANDON TRUST,SP0005337
WANDSWORTH COUNCIL,ASC,SOCIAL SERVICES,VOL ASS,SUPPORTED HOUSING PROGRAMME,1018717,130248030,11-Aug-16,"3,453.12",Revenue,THE BRANDON TRUST,SP0005337
WANDSWORTH COUNCIL,ASC,SOCIAL SERVICES,VOL ASS,SUPPORTED HOUSING PROGRAMME,1018719,130248030,11-Aug-16,"2,096.40",Revenue,THE BRANDON TRUST,SP0005337
WANDSWORTH COUNCIL,ASC,SOCIAL SERVICES,VOL ASS,SUPPORTED HOUSING PROGRAMME,1018720,130248030,11-Aug-16,"1,797.12",Revenue,THE BRANDON TRUST,SP0005337
WANDSWORTH COUNCIL,ASC,SOCIAL SERVICES,VOL ASS,SUPPORTED HOUSING PROGRAMME,1018721,130248030,11-Aug-16,"2,062.08",Revenue,THE BRANDON TRUST,SP0005337
WANDSWORTH COUNCIL,ASC,SOCIAL SERVICES,VOL ASS,SUPPORTED HOUSING PROGRAMME,1018722,130248030,11-Aug-16,"3,520.16",Revenue,THE BRANDON TRUST,SP0005337
WANDSWORTH COUNCIL,ASC,SOCIAL SERVICES,VOL ASS,SUPPORTED HOUSING PROGRAMME,1018723,130248030,11-Aug-16,"2,592.00",Revenue,THE BRANDON TRUST,SP0005337
WANDSWORTH COUNCIL,ASC,SOCIAL SERVICES,VOL ASS,SUPPORTED HOUSING PROGRAMME,1018724,130248030,11-Aug-16,"3,453.12",Revenue,THE BRANDON TRUST,SP0005337
WANDSWORTH COUNCIL,ASC,SOCIAL SERVICES,VOL ASS,SUPPORTED HOUSING PROGRAMME,1018725,130248030,11-Aug-16,"3,143.96",Revenue,THE BRANDON TRUST,SP0005337
WANDSWORTH COUNCIL,ASC,SOCIAL SERVICES,VOL ASS,SUPPORTED HOUSING PROGRAMME,1018726,130248030,11-Aug-16,"2,923.88",Revenue,THE BRANDON TRUST,SP0005337
WANDSWORTH COUNCIL,ASC,SOCIAL SERVICES,VOL ASS,SUPPORTED HOUSING PROGRAMME,1018727,130248030,11-Aug-16,"4,688.56",Revenue,THE BRANDON TRUST,SP0005337
WANDSWORTH COUNCIL,ASC,SOCIAL SERVICES,VOL ASS,SUPPORTED HOUSING PROGRAMME,1018728,130248030,11-Aug-16,"3,320.64",Revenue,THE BRANDON TRUST,SP0005337
WANDSWORTH COUNCIL,ASC,SOCIAL SERVICES,VOL ASS,SUPPORTED HOUSING PROGRAMME,1018729,130248030,11-Aug-16,"3,702.20",Revenue,THE BRANDON TRUST,SP0005337
WANDSWORTH COUNCIL,ASC,SOCIAL SERVICES,VOL ASS,SUPPORTED HOUSING PROGRAMME,1018730,130248030,11-Aug-16,"2,790.72",Revenue,THE BRANDON TRUST,SP0005337
WANDSWORTH COUNCIL,ASC,SOCIAL SERVICES,VOL ASS,SUPPORTED HOUSING PROGRAMME,1018731,130248030,11-Aug-16,"3,472.96",Revenue,THE BRANDON TRUST,SP0005337
WANDSWORTH COUNCIL,ASC,SOCIAL SERVICES,VOL ASS,SUPPORTED HOUSING PROGRAMME,1018732,130248030,11-Aug-16,"3,568.84",Revenue,THE BRANDON TRUST,SP0005337
WANDSWORTH COUNCIL,ASC,SOCIAL SERVICES,VOL ASS,SUPPORTED HOUSING PROGRAMME,1018733,130248030,11-Aug-16,"2,459.52",Revenue,THE BRANDON TRUST,SP0005337
WANDSWORTH COUNCIL,ASC,SOCIAL SERVICES,VOL ASS,SUPPORTED HOUSING PROGRAMME,1018734,130248030,11-Aug-16,"3,883.68",Revenue,THE BRANDON TRUST,SP0005337
WANDSWORTH COUNCIL,ASC,SOCIAL SERVICES,VOL ASS,SUPPORTED HOUSING PROGRAMME,1018735,130248030,11-Aug-16,"2,618.48",Revenue,THE BRANDON TRUST,SP0005337
WANDSWORTH COUNCIL,ASC,SOCIAL SERVICES,VOL ASS,SUPPORTED HOUSING PROGRAMME,1018736,130248030,11-Aug-16,"3,585.60",Revenue,THE BRANDON TRUST,SP0005337
WANDSWORTH COUNCIL,ASC,SOCIAL SERVICES,VOL ASS,SUPPORTED HOUSING PROGRAMME,1018744,130248030,11-Aug-16,"1,465.92",Revenue,THE BRANDON TRUST,SP0005337
WANDSWORTH COUNCIL,ASC,SOCIAL SERVICES,VOL ASS,SUPPORTED HOUSING PROGRAMME,1018745,130248030,11-Aug-16,"2,606.80",Revenue,THE BRANDON TRUST,SP0005337
WANDSWORTH COUNCIL,ASC,SOCIAL SERVICES,VOL ASS,SUPPORTED HOUSING PROGRAMME,1018747,130248030,11-Aug-16,"2,631.48",Revenue,THE BRANDON TRUST,SP0005337
WANDSWORTH COUNCIL,ASC,SOCIAL SERVICES,VOL ASS,SUPPORTED HOUSING PROGRAMME,1018750,130248030,11-Aug-16,"4,177.52",Revenue,THE BRANDON TRUST,SP0005337
WANDSWORTH COUNCIL,ASC,SOCIAL SERVICES,VOL ASS,SUPPORTED HOUSING PROGRAMME,1018751,130248030,11-Aug-16,"2,040.24",Revenue,THE BRANDON TRUST,SP0005337
WANDSWORTH COUNCIL,ASC,SOCIAL SERVICES,VOL ASS,SUPPORTED HOUSING PROGRAMME,1018752,130248030,11-Aug-16,"9,563.72",Revenue,THE BRANDON TRUST,SP0005337
WANDSWORTH COUNCIL,ASC,SOCIAL SERVICES,VOL ASS,SUPPORTED HOUSING PROGRAMME,1018759,130248030,11-Aug-16,"2,112.52",Revenue,THE BRANDON TRUST,SP0005337
WANDSWORTH COUNCIL,ASC,SOCIAL SERVICES,VOL ASS,SUPPORTED HOUSING PROGRAMME,1018760,130248030,11-Aug-16,"2,112.52",Revenue,THE BRANDON TRUST,SP0005337
WANDSWORTH COUNCIL,ASC,SOCIAL SERVICES,VOL ASS,SUPPORTED HOUSING PROGRAMME,1018761,130248030,11-Aug-16,"2,450.88",Revenue,THE BRANDON TRUST,SP0005337
WANDSWORTH COUNCIL,ASC,SOCIAL SERVICES,VOL ASS,SUPPORTED HOUSING PROGRAMME,1019216,130248030,12-Aug-16,"1,499.04",Revenue,THE BRANDON TRUST,SP0005337
WANDSWORTH COUNCIL,ASC,SOCIAL SERVICES,VOL ASS,SUPPORTED HOUSING PROGRAMME,1019223,130248030,12-Aug-16,"1,034.48",Revenue,THE BRANDON TRUST,SP0005337
WANDSWORTH COUNCIL,ASC,SOCIAL SERVICES,VOL ASS,SUPPORTED HOUSING PROGRAMME,1019238,130248030,12-Aug-16,"1,625.36",Revenue,THE BRANDON TRUST,SP0005337
WANDSWORTH COUNCIL,ASC,SOCIAL SERVICES,VOL ASS,SUPPORTED HOUSING PROGRAMME,1019239,130248030,12-Aug-16,"1,674.84",Revenue,THE BRANDON TRUST,SP0005337
WANDSWORTH COUNCIL,ASC,SOCIAL SERVICES,VOL ASS,SUPPORTED HOUSING PROGRAMME,1019240,130248030,12-Aug-16,"5,630.08",Revenue,THE BRANDON TRUST,SP0005337
WANDSWORTH COUNCIL,ASC,SOCIAL SERVICES,VOL ASS,SUPPORTED HOUSING PROGRAMME,1019244,130248030,12-Aug-16,"5,688.08",Revenue,THE BRANDON TRUST,SP0005337
WANDSWORTH COUNCIL,ASC,SOCIAL SERVICES,VOL ASS,SUPPORTED HOUSING PROGRAMME,1019245,130248030,12-Aug-16,"5,983.44",Revenue,THE BRANDON TRUST,SP0005337
WANDSWORTH COUNCIL,ASC,SOCIAL SERVICES,VOL ASS,SUPPORTED HOUSING PROGRAMME,1019246,130248030,12-Aug-16,"4,827.60",Revenue,THE BRANDON TRUST,SP0005337
WANDSWORTH COUNCIL,ASC,SOCIAL SERVICES,VOL ASS,SUPPORTED HOUSING PROGRAMME,1019247,130248030,12-Aug-16,"6,146.20",Revenue,THE BRANDON TRUST,SP0005337
WANDSWORTH COUNCIL,ASC,SOCIAL SERVICES,VOL ASS,SUPPORTED HOUSING PROGRAMME,1019248,130248030,12-Aug-16,"3,324.96",Revenue,THE BRANDON TRUST,SP0005337
WANDSWORTH COUNCIL,ASC,SOCIAL SERVICES,VOL ASS,SUPPORTED HOUSING PROGRAMME,1019249,130248030,12-Aug-16,"2,886.04",Revenue,THE BRANDON TRUST,SP0005337
WANDSWORTH COUNCIL,ASC,SOCIAL SERVICES,VOL ASS,SUPPORTED HOUSING PROGRAMME,1019250,130248030,12-Aug-16,"2,856.96",Revenue,THE BRANDON TRUST,SP0005337
WANDSWORTH COUNCIL,ASC,SOCIAL SERVICES,VOL ASS,SUPPORTED HOUSING PROGRAMME,1019251,130248030,12-Aug-16,"2,128.32",Revenue,THE BRANDON TRUST,SP0005337
WANDSWORTH COUNCIL,ASC,SOCIAL SERVICES,VOL ASS,SUPPORTED HOUSING PROGRAMME,1019252,130248030,12-Aug-16,"6,198.76",Revenue,THE BRANDON TRUST,SP0005337
WANDSWORTH COUNCIL,ASC,SOCIAL SERVICES,VOL ASS,SUPPORTED HOUSING PROGRAMME,1019253,130248030,12-Aug-16,"1,465.92",Revenue,THE BRANDON TRUST,SP0005337
WANDSWORTH COUNCIL,ASC,SOCIAL SERVICES,VOL ASS,SUPPORTED HOUSING PROGRAMME,1019254,130248030,12-Aug-16,"1,482.48",Revenue,THE BRANDON TRUST,SP0005337
WANDSWORTH COUNCIL,ASC,SOCIAL SERVICES,VOL ASS,SUPPORTED HOUSING PROGRAMME,1019255,130248030,12-Aug-16,"2,592.60",Revenue,THE BRANDON TRUST,SP0005337
WANDSWORTH COUNCIL,ASC,SOCIAL SERVICES,VOL ASS,SUPPORTED HOUSING PROGRAMME,1019256,130248030,12-Aug-16,"2,724.48",Revenue,THE BRANDON TRUST,SP0005337
WANDSWORTH COUNCIL,ASC,SOCIAL SERVICES,VOL ASS,SUPPORTED HOUSING PROGRAMME,1019257,130248030,12-Aug-16,"3,564.56",Revenue,THE BRANDON TRUST,SP0005337
WANDSWORTH COUNCIL,ASC,SOCIAL SERVICES,VOL ASS,SUPPORTED HOUSING PROGRAMME,1019258,130248030,12-Aug-16,"3,416.80",Revenue,THE BRANDON TRUST,SP0005337
WANDSWORTH COUNCIL,ASC,SOCIAL SERVICES,VOL ASS,SUPPORTED HOUSING PROGRAMME,1019259,130248030,12-Aug-16,"2,848.72",Revenue,THE BRANDON TRUST,SP0005337
WANDSWORTH COUNCIL,ASC,SOCIAL SERVICES,VOL ASS,SUPPORTED HOUSING PROGRAMME,1019260,130248030,12-Aug-16,"2,327.24",Revenue,THE BRANDON TRUST,SP0005337
WANDSWORTH COUNCIL,ASC,SOCIAL SERVICES,VOL ASS,SUPPORTED HOUSING PROGRAMME,1019261,130248030,12-Aug-16,"2,327.24",Revenue,THE BRANDON TRUST,SP0005337
WANDSWORTH COUNCIL,ASC,SOCIAL SERVICES,VOL ASS,SUPPORTED HOUSING PROGRAMME,1019262,130248030,12-Aug-16,"2,065.12",Revenue,THE BRANDON TRUST,SP0005337
WANDSWORTH COUNCIL,ASC,SOCIAL SERVICES,VOL ASS,SUPPORTED HOUSING PROGRAMME,1019975,130248030,15-Aug-16,"3,554.67",Revenue,THE BRANDON TRUST,SP0005337
WANDSWORTH COUNCIL,ASC,SOCIAL SERVICES,VOL ASS,SUPPORTED HOUSING PROGRAMME,1026962,130248030,23-Aug-16,"8,996.40",Revenue,THE BRANDON TRUST,SP0005337
WANDSWORTH COUNCIL,ASC,SOCIAL SERVICES,VOL ASS,SUPPORTED HOUSING PROGRAMME,1026963,130248030,23-Aug-16,"8,996.40",Revenue,THE BRANDON TRUST,SP0005337
WANDSWORTH COUNCIL,ASC,SOCIAL SERVICES,VOL ASS,SUPPORTED HOUSING PROGRAMME,1013621,130248030,08-Aug-16,"7,650.00",Revenue,RELIABLE PERSONNEL LTD,SP0005657
WANDSWORTH COUNCIL,ASC,SOCIAL SERVICES,VOL ASS,SUPPORTED HOUSING PROGRAMME,1022228,130248030,17-Aug-16,585.10,Revenue,MCCALLUM CARE LTD CAREMARK (WANDSWORTH),SP0006036
WANDSWORTH COUNCIL,ASC,SOCIAL SERVICES,VOL ASS,SUPPORTED HOUSING PROGRAMME,1009802,130248030,02-Aug-16,930.00,Revenue,LIVE TOO LIMITED,SP0010112
WANDSWORTH COUNCIL,ASC,SOCIAL SERVICES,VOL ASS,SUPPORTED HOUSING PROGRAMME,1009803,130248030,02-Aug-16,"1,200.00",Revenue,LIVE TOO LIMITED,SP0010112
WANDSWORTH COUNCIL,ASC,SOCIAL SERVICES,VOL ASS,SUPPORTED HOUSING PROGRAMME,1009804,130248030,02-Aug-16,720.00,Revenue,LIVE TOO LIMITED,SP0010112
WANDSWORTH COUNCIL,ASC,SOCIAL SERVICES,VOL ASS,SUPPORTED HOUSING PROGRAMME,1009805,130248030,02-Aug-16,"1,710.00",Revenue,LIVE TOO LIMITED,SP0010112
WANDSWORTH COUNCIL,ASC,SOCIAL SERVICES,VOL ASS,SUPPORTED HOUSING PROGRAMME,1009807,130248030,02-Aug-16,"4,230.00",Revenue,LIVE TOO LIMITED,SP0010112
WANDSWORTH COUNCIL,ASC,SOCIAL SERVICES,VOL ASS,SUPPORTED HOUSING PROGRAMME,1009808,130248030,02-Aug-16,"1,320.00",Revenue,LIVE TOO LIMITED,SP0010112
WANDSWORTH COUNCIL,ASC,SOCIAL SERVICES,VOL ASS,SUPPORTED HOUSING PROGRAMME,1009809,130248030,02-Aug-16,"1,350.00",Revenue,LIVE TOO LIMITED,SP0010112
WANDSWORTH COUNCIL,ASC,SOCIAL SERVICES,VOL ASS,SUPPORTED HOUSING PROGRAMME,1009813,130248030,02-Aug-16,"1,440.00",Revenue,LIVE TOO LIMITED,SP0010112
WANDSWORTH COUNCIL,ASC,SOCIAL SERVICES,VOL ASS,SUPPORTED HOUSING PROGRAMME,1009814,130248030,02-Aug-16,"1,260.00",Revenue,LIVE TOO LIMITED,SP0010112
WANDSWORTH COUNCIL,ASC,SOCIAL SERVICES,VOL ASS,SUPPORTED HOUSING PROGRAMME,1009815,130248030,02-Aug-16,"11,760.00",Revenue,LIVE TOO LIMITED,SP0010112
WANDSWORTH COUNCIL,ASC,SOCIAL SERVICES,VOL ASS,SUPPORTED HOUSING PROGRAMME,1009816,130248030,02-Aug-16,"2,162.64",Revenue,LIVE TOO LIMITED,SP0010112
WANDSWORTH COUNCIL,ASC,SOCIAL SERVICES,VOL ASS,SUPPORTED HOUSING PROGRAMME,1009818,130248030,02-Aug-16,700.00,Revenue,LIVE TOO LIMITED,SP0010112
WANDSWORTH COUNCIL,ASC,SOCIAL SERVICES,VOL ASS,SUPPORTED HOUSING PROGRAMME,1009819,130248030,02-Aug-16,"1,568.00",Revenue,LIVE TOO LIMITED,SP0010112
WANDSWORTH COUNCIL,ASC,SOCIAL SERVICES,VOL ASS,SUPPORTED HOUSING PROGRAMME,1009827,130248030,02-Aug-16,784.00,Revenue,LIVE TOO LIMITED,SP0010112
WANDSWORTH COUNCIL,ASC,SOCIAL SERVICES,VOL ASS,SUPPORTED HOUSING PROGRAMME,1009828,130248030,02-Aug-16,663.80,Revenue,LIVE TOO LIMITED,SP0010112
WANDSWORTH COUNCIL,ASC,SOCIAL SERVICES,VOL ASS,SUPPORTED HOUSING PROGRAMME,1019513,130248030,12-Aug-16,"7,876.84",Revenue,CURANS CARE LTD,SP0010190
WANDSWORTH COUNCIL,ASC,SOCIAL SERVICES,VOL ASS,SUPPORTED HOUSING PROGRAMME,1019514,130248030,12-Aug-16,"3,740.12",Revenue,CURANS CARE LTD,SP0010190
WANDSWORTH COUNCIL,ASC,SOCIAL SERVICES,VOL ASS,SUPPORTED HOUSING PROGRAMME,1019515,130248030,12-Aug-16,"7,882.08",Revenue,CURANS CARE LTD,SP0010190
WANDSWORTH COUNCIL,ASC,SOCIAL SERVICES,VOL ASS,SUPPORTED HOUSING PROGRAMME,1019516,130248030,12-Aug-16,"6,793.36",Revenue,CURANS CARE LTD,SP0010190
WANDSWORTH COUNCIL,ASC,SOCIAL SERVICES,VOL ASS,SUPPORTED HOUSING PROGRAMME,1012717,130248030,04-Aug-16,"3,940.00",Revenue,STEP 4 YOU,SP0010196
WANDSWORTH COUNCIL,ASC,SOCIAL SERVICES,VOL ASS,SUPPORTED HOUSING PROGRAMME,1022227,130248030,17-Aug-16,"3,571.42",Revenue,STEP 4 YOU,SP0010196
WANDSWORTH COUNCIL,ASC,SOCIAL SERVICES,VOL ASS,SUPPORTED HOUSING PROGRAMME,1028578,130248030,25-Aug-16,"4,400.00",Revenue,STEP 4 YOU,SP0010196
WANDSWORTH COUNCIL,ASC,SOCIAL SERVICES,VOL ASS,SUPPORTED HOUSING PROGRAMME,1019288,130248030,12-Aug-16,"1,169.41",Revenue,MS J DAVIES-BENNETTS T/A HANDSON HORSES,SP0010539
WANDSWORTH COUNCIL,ASC,SOCIAL SERVICES,DIRECT,DIRECT PAYMENTS,1015192,130250380,08-Aug-16,"1,876.72",Revenue,HESTIA HOUSING & SUPPORT,SP0000258
WANDSWORTH COUNCIL,ASC,SOCIAL SERVICES,DIRECT,DIRECT PAYMENTS,1015195,130250380,08-Aug-16,732.84,Revenue,HESTIA HOUSING & SUPPORT,SP0000258
WANDSWORTH COUNCIL,ASC,SOCIAL SERVICES,DIRECT,DIRECT PAYMENTS,1015198,130250380,08-Aug-16,"2,248.36",Revenue,HESTIA HOUSING & SUPPORT,SP0000258
WANDSWORTH COUNCIL,ASC,SOCIAL SERVICES,DIRECT,DIRECT PAYMENTS,1015199,130250380,08-Aug-16,"1,020.80",Revenue,HESTIA HOUSING & SUPPORT,SP0000258
WANDSWORTH COUNCIL,ASC,SOCIAL SERVICES,DIRECT,DIRECT PAYMENTS,1015473,130250380,08-Aug-16,838.12,Revenue,VIBRANCE,SP0005489
WANDSWORTH COUNCIL,ASC,SOCIAL SERVICES,DIRECT,DIRECT PAYMENTS,1015479,130250380,08-Aug-16,760.24,Revenue,VIBRANCE,SP0005489
WANDSWORTH COUNCIL,ASC,SOCIAL SERVICES,DIRECT,DIRECT PAYMENTS,1015482,130250380,08-Aug-16,"1,065.52",Revenue,VIBRANCE,SP0005489
WANDSWORTH COUNCIL,ASC,SOCIAL SERVICES,DIRECT,DIRECT PAYMENTS,1015490,130250380,08-Aug-16,"2,703.44",Revenue,VIBRANCE,SP0005489
WANDSWORTH COUNCIL,ASC,SOCIAL SERVICES,DIRECT,DIRECT PAYMENTS,1015493,130250380,08-Aug-16,769.76,Revenue,VIBRANCE,SP0005489
WANDSWORTH COUNCIL,ASC,SOCIAL SERVICES,DIRECT,DIRECT PAYMENTS,1015494,130250380,08-Aug-16,783.68,Revenue,VIBRANCE,SP0005489
WANDSWORTH COUNCIL,ASC,SOCIAL SERVICES,DIRECT,DIRECT PAYMENTS,1015496,130250380,08-Aug-16,606.56,Revenue,VIBRANCE,SP0005489
WANDSWORTH COUNCIL,ASC,SOCIAL SERVICES,DIRECT,DIRECT PAYMENTS,1015502,130250380,08-Aug-16,608.72,Revenue,VIBRANCE,SP0005489
WANDSWORTH COUNCIL,ASC,SOCIAL SERVICES,DIRECT,DIRECT PAYMENTS,1015507,130250380,08-Aug-16,"3,704.84",Revenue,VIBRANCE,SP0005489
WANDSWORTH COUNCIL,ASC,SOCIAL SERVICES,DIRECT,DIRECT PAYMENTS,1015510,130250380,08-Aug-16,714.00,Revenue,VIBRANCE,SP0005489
WANDSWORTH COUNCIL,ASC,SOCIAL SERVICES,DIRECT,DIRECT PAYMENTS,1015513,130250380,08-Aug-16,719.16,Revenue,VIBRANCE,SP0005489
WANDSWORTH COUNCIL,ASC,SOCIAL SERVICES,DIRECT,DIRECT PAYMENTS,1015520,130250380,08-Aug-16,"1,856.16",Revenue,VIBRANCE,SP0005489
WANDSWORTH COUNCIL,ASC,SOCIAL SERVICES,DIRECT,DIRECT PAYMENTS,1015521,130250380,08-Aug-16,930.56,Revenue,VIBRANCE,SP0005489
WANDSWORTH COUNCIL,ASC,SOCIAL SERVICES,DIRECT,DIRECT PAYMENTS,1015530,130250380,08-Aug-16,720.96,Revenue,VIBRANCE,SP0005489
WANDSWORTH COUNCIL,ASC,SOCIAL SERVICES,DIRECT,DIRECT PAYMENTS,1015559,130250380,08-Aug-16,"1,003.76",Revenue,VIBRANCE,SP0005489
WANDSWORTH COUNCIL,ASC,SOCIAL SERVICES,DIRECT,DIRECT PAYMENTS,1015569,130250380,08-Aug-16,895.36,Revenue,VIBRANCE,SP0005489
WANDSWORTH COUNCIL,ASC,SOCIAL SERVICES,DIRECT,DIRECT PAYMENTS,1015581,130250380,08-Aug-16,720.96,Revenue,VIBRANCE,SP0005489
WANDSWORTH COUNCIL,ASC,SOCIAL SERVICES,DIRECT,DIRECT PAYMENTS,1015582,130250380,08-Aug-16,975.52,Revenue,VIBRANCE,SP0005489
WANDSWORTH COUNCIL,ASC,SOCIAL SERVICES,DIRECT,DIRECT PAYMENTS,1015150,130250380,08-Aug-16,"2,218.20",Revenue,EPAYROLLUK LTD,SP0009092
WANDSWORTH COUNCIL,ASC,SOCIAL SERVICES,CUSTOMER & CLIENT RECPTS - EXT,CL CONT EXT RESIDEN S28A 100%,1021034,130280680,16-Aug-16,(505.20),Revenue,ELEANOR NURSING & SOCIAL CARE,SP0000110
WANDSWORTH COUNCIL,ASC,SOCIAL SERVICES,CUSTOMER & CLIENT RECPTS - EXT,CL CONT EXT RESIDEN S28A 100%,1021035,130280680,16-Aug-16,(505.20),Revenue,ELEANOR NURSING & SOCIAL CARE,SP0000110
WANDSWORTH COUNCIL,ASC,SOCIAL SERVICES,CUSTOMER & CLIENT RECPTS - EXT,CL CONT EXT RESIDEN S28A 100%,1021036,130280680,16-Aug-16,(505.20),Revenue,ELEANOR NURSING & SOCIAL CARE,SP0000110
WANDSWORTH COUNCIL,ASC,SOCIAL SERVICES,CUSTOMER & CLIENT RECPTS - EXT,CL CONT EXT RESIDEN S28A 100%,1021037,130280680,16-Aug-16,(505.20),Revenue,ELEANOR NURSING & SOCIAL CARE,SP0000110
WANDSWORTH COUNCIL,ASC,SOCIAL SERVICES,CUSTOMER & CLIENT RECPTS - EXT,CL CONT EXT RESIDEN S28A 100%,1021038,130280680,16-Aug-16,(505.20),Revenue,ELEANOR NURSING & SOCIAL CARE,SP0000110
WANDSWORTH COUNCIL,ASC,SOCIAL SERVICES,CUSTOMER & CLIENT RECPTS - EXT,CL CONT EXT RESIDEN S28A 100%,1016743,130280680,09-Aug-16,(546.04),Revenue,VOYAGE CARE LTD,SP0000366
WANDSWORTH COUNCIL,ASC,SOCIAL SERVICES,CUSTOMER & CLIENT RECPTS - EXT,CL CONT EXT RESIDEN S28A 100%,1016749,130280680,09-Aug-16,(443.52),Revenue,VOYAGE CARE LTD,SP0000366
WANDSWORTH COUNCIL,ASC,SOCIAL SERVICES,CUSTOMER & CLIENT RECPTS - EXT,CL CONT EXT RESIDEN S28A 100%,1018047,130280680,10-Aug-16,196.71,Revenue,WHITMORE VALE HOUSING ASSOCIATION LTD,SP0000694
WANDSWORTH COUNCIL,ASC,SOCIAL SERVICES,CUSTOMER & CLIENT RECPTS - EXT,CL CONT EXTERNAL RESIDENT S28A,1027074,130280710,23-Aug-16,(578.81),Revenue,ST MARYS RESIDENTIAL HOME,SP0000215
WANDSWORTH COUNCIL,ASC,SOCIAL SERVICES,CUSTOMER & CLIENT RECPTS - EXT,CL CONT EXTERNAL RESIDENT S28A,1026988,130280710,23-Aug-16,(373.99),Revenue,PARKGATE MANOR,SP0000521
WANDSWORTH COUNCIL,ASC,SOCIAL SERVICES,CUSTOMER & CLIENT RECPTS - EXT,CL CONT EXTERNAL RESIDENT S28A,1025861,130280710,22-Aug-16,(522.80),Revenue,ASHTON CARE,SP0000695
WANDSWORTH COUNCIL,ASC,SOCIAL SERVICES,CUSTOMER & CLIENT RECPTS - EXT,CL CONT EXTERNAL RESIDENT S28A,1025862,130280710,22-Aug-16,(522.80),Revenue,ASHTON CARE,SP0000695
WANDSWORTH COUNCIL,ASC,SOCIAL SERVICES,CUSTOMER & CLIENT RECPTS - EXT,CL CONT EXTERNAL RESIDENTIAL,1011741,130280720,03-Aug-16,(400.60),Revenue,CMG HOMES LTD,SP0000075
WANDSWORTH COUNCIL,ASC,SOCIAL SERVICES,CUSTOMER & CLIENT RECPTS - EXT,CL CONT EXTERNAL RESIDENTIAL,1011742,130280720,03-Aug-16,(343.80),Revenue,CMG HOMES LTD,SP0000075
WANDSWORTH COUNCIL,ASC,SOCIAL SERVICES,CUSTOMER & CLIENT RECPTS - EXT,CL CONT EXTERNAL RESIDENTIAL,1011744,130280720,03-Aug-16,(400.60),Revenue,CMG HOMES LTD,SP0000075
WANDSWORTH COUNCIL,ASC,SOCIAL SERVICES,CUSTOMER & CLIENT RECPTS - EXT,CL CONT EXTERNAL RESIDENTIAL,1011745,130280720,03-Aug-16,(132.00),Revenue,CMG HOMES LTD,SP0000075
WANDSWORTH COUNCIL,ASC,SOCIAL SERVICES,CUSTOMER & CLIENT RECPTS - EXT,CL CONT EXTERNAL RESIDENTIAL,1011746,130280720,03-Aug-16,(400.60),Revenue,CMG HOMES LTD,SP0000075
WANDSWORTH COUNCIL,ASC,SOCIAL SERVICES,CUSTOMER & CLIENT RECPTS - EXT,CL CONT EXTERNAL RESIDENTIAL,1011747,130280720,03-Aug-16,(400.60),Revenue,CMG HOMES LTD,SP0000075
WANDSWORTH COUNCIL,ASC,SOCIAL SERVICES,CUSTOMER & CLIENT RECPTS - EXT,CL CONT EXTERNAL RESIDENTIAL,1011748,130280720,03-Aug-16,(337.80),Revenue,CMG HOMES LTD,SP0000075
WANDSWORTH COUNCIL,ASC,SOCIAL SERVICES,CUSTOMER & CLIENT RECPTS - EXT,CL CONT EXTERNAL RESIDENTIAL,1011749,130280720,03-Aug-16,(522.80),Revenue,CMG HOMES LTD,SP0000075
WANDSWORTH COUNCIL,ASC,SOCIAL SERVICES,CUSTOMER & CLIENT RECPTS - EXT,CL CONT EXTERNAL RESIDENTIAL,1011750,130280720,03-Aug-16,(359.80),Revenue,CMG HOMES LTD,SP0000075
WANDSWORTH COUNCIL,ASC,SOCIAL SERVICES,CUSTOMER & CLIENT RECPTS - EXT,CL CONT EXTERNAL RESIDENTIAL,1027063,130280720,23-Aug-16,(385.95),Revenue,NATIONAL SOCIETY FOR EPILEPSY,SP0000120
WANDSWORTH COUNCIL,ASC,SOCIAL SERVICES,CUSTOMER & CLIENT RECPTS - EXT,CL CONT EXTERNAL RESIDENTIAL,1019357,130280720,12-Aug-16,(337.80),Revenue,SANCTUARY CARE LTD,SP0000121
WANDSWORTH COUNCIL,ASC,SOCIAL SERVICES,CUSTOMER & CLIENT RECPTS - EXT,CL CONT EXTERNAL RESIDENTIAL,1033187,130280720,31-Aug-16,(337.80),Revenue,SANCTUARY CARE LTD,SP0000121
WANDSWORTH COUNCIL,ASC,SOCIAL SERVICES,CUSTOMER & CLIENT RECPTS - EXT,CL CONT EXTERNAL RESIDENTIAL,1027020,130280720,23-Aug-16,(380.64),Revenue,IN CHORUS LTD,SP0000129
WANDSWORTH COUNCIL,ASC,SOCIAL SERVICES,CUSTOMER & CLIENT RECPTS - EXT,CL CONT EXTERNAL RESIDENTIAL,1025837,130280720,22-Aug-16,(373.99),Revenue,CENTRUST CARE HOMES LTD,SP0000141
WANDSWORTH COUNCIL,ASC,SOCIAL SERVICES,CUSTOMER & CLIENT RECPTS - EXT,CL CONT EXTERNAL RESIDENTIAL,1027088,130280720,23-Aug-16,(373.77),Revenue,FRANCES TAYLOR FOUNDATION,SP0000142
WANDSWORTH COUNCIL,ASC,SOCIAL SERVICES,CUSTOMER & CLIENT RECPTS - EXT,CL CONT EXTERNAL RESIDENTIAL,1027089,130280720,23-Aug-16,(356.28),Revenue,FRANCES TAYLOR FOUNDATION,SP0000142
WANDSWORTH COUNCIL,ASC,SOCIAL SERVICES,CUSTOMER & CLIENT RECPTS - EXT,CL CONT EXTERNAL RESIDENTIAL,1027090,130280720,23-Aug-16,(443.52),Revenue,FRANCES TAYLOR FOUNDATION,SP0000142
WANDSWORTH COUNCIL,ASC,SOCIAL SERVICES,CUSTOMER & CLIENT RECPTS - EXT,CL CONT EXTERNAL RESIDENTIAL,1019844,130280720,15-Aug-16,(321.80),Revenue,RESIDENTIAL CARE SERVICES T/A FRANKLYN L,SP0000147
WANDSWORTH COUNCIL,ASC,SOCIAL SERVICES,CUSTOMER & CLIENT RECPTS - EXT,CL CONT EXTERNAL RESIDENTIAL,1019845,130280720,15-Aug-16,(321.80),Revenue,RESIDENTIAL CARE SERVICES T/A FRANKLYN L,SP0000147
WANDSWORTH COUNCIL,ASC,SOCIAL SERVICES,CUSTOMER & CLIENT RECPTS - EXT,CL CONT EXTERNAL RESIDENTIAL,1019018,130280720,12-Aug-16,(337.80),Revenue,ORCHARD VALE TRUST,SP0000214
WANDSWORTH COUNCIL,ASC,SOCIAL SERVICES,CUSTOMER & CLIENT RECPTS - EXT,CL CONT EXTERNAL RESIDENTIAL,1019019,130280720,12-Aug-16,(337.80),Revenue,ORCHARD VALE TRUST,SP0000214
WANDSWORTH COUNCIL,ASC,SOCIAL SERVICES,CUSTOMER & CLIENT RECPTS - EXT,CL CONT EXTERNAL RESIDENTIAL,1019014,130280720,12-Aug-16,(356.28),Revenue,ST MARYS RESIDENTIAL HOME,SP0000215
WANDSWORTH COUNCIL,ASC,SOCIAL SERVICES,CUSTOMER & CLIENT RECPTS - EXT,CL CONT EXTERNAL RESIDENTIAL,1027064,130280720,23-Aug-16,(275.32),Revenue,ST MARYS RESIDENTIAL HOME,SP0000215
WANDSWORTH COUNCIL,ASC,SOCIAL SERVICES,CUSTOMER & CLIENT RECPTS - EXT,CL CONT EXTERNAL RESIDENTIAL,1027065,130280720,23-Aug-16,(356.28),Revenue,ST MARYS RESIDENTIAL HOME,SP0000215
WANDSWORTH COUNCIL,ASC,SOCIAL SERVICES,CUSTOMER & CLIENT RECPTS - EXT,CL CONT EXTERNAL RESIDENTIAL,1027066,130280720,23-Aug-16,(443.52),Revenue,ST MARYS RESIDENTIAL HOME,SP0000215
WANDSWORTH COUNCIL,ASC,SOCIAL SERVICES,CUSTOMER & CLIENT RECPTS - EXT,CL CONT EXTERNAL RESIDENTIAL,1027067,130280720,23-Aug-16,(578.81),Revenue,ST MARYS RESIDENTIAL HOME,SP0000215
WANDSWORTH COUNCIL,ASC,SOCIAL SERVICES,CUSTOMER & CLIENT RECPTS - EXT,CL CONT EXTERNAL RESIDENTIAL,1027068,130280720,23-Aug-16,(373.77),Revenue,ST MARYS RESIDENTIAL HOME,SP0000215
WANDSWORTH COUNCIL,ASC,SOCIAL SERVICES,CUSTOMER & CLIENT RECPTS - EXT,CL CONT EXTERNAL RESIDENTIAL,1027070,130280720,23-Aug-16,(578.81),Revenue,ST MARYS RESIDENTIAL HOME,SP0000215
WANDSWORTH COUNCIL,ASC,SOCIAL SERVICES,CUSTOMER & CLIENT RECPTS - EXT,CL CONT EXTERNAL RESIDENTIAL,1027072,130280720,23-Aug-16,(790.19),Revenue,ST MARYS RESIDENTIAL HOME,SP0000215
WANDSWORTH COUNCIL,ASC,SOCIAL SERVICES,CUSTOMER & CLIENT RECPTS - EXT,CL CONT EXTERNAL RESIDENTIAL,1027076,130280720,23-Aug-16,(578.81),Revenue,ST MARYS RESIDENTIAL HOME,SP0000215
WANDSWORTH COUNCIL,ASC,SOCIAL SERVICES,CUSTOMER & CLIENT RECPTS - EXT,CL CONT EXTERNAL RESIDENTIAL,1027077,130280720,23-Aug-16,"(1,348.68)",Revenue,ST MARYS RESIDENTIAL HOME,SP0000215
WANDSWORTH COUNCIL,ASC,SOCIAL SERVICES,CUSTOMER & CLIENT RECPTS - EXT,CL CONT EXTERNAL RESIDENTIAL,1027078,130280720,23-Aug-16,(337.80),Revenue,ST MARYS RESIDENTIAL HOME,SP0000215
WANDSWORTH COUNCIL,ASC,SOCIAL SERVICES,CUSTOMER & CLIENT RECPTS - EXT,CL CONT EXTERNAL RESIDENTIAL,1019012,130280720,12-Aug-16,(321.80),Revenue,NAS SERVICES LIMITED,SP0000217
WANDSWORTH COUNCIL,ASC,SOCIAL SERVICES,CUSTOMER & CLIENT RECPTS - EXT,CL CONT EXTERNAL RESIDENTIAL,1025836,130280720,22-Aug-16,(337.60),Revenue,HAYDON PARK LODGE LTD,SP0000231
WANDSWORTH COUNCIL,ASC,SOCIAL SERVICES,CUSTOMER & CLIENT RECPTS - EXT,CL CONT EXTERNAL RESIDENTIAL,1027054,130280720,23-Aug-16,(638.48),Revenue,CAMERON LODGE LIMITED,SP0000271
WANDSWORTH COUNCIL,ASC,SOCIAL SERVICES,CUSTOMER & CLIENT RECPTS - EXT,CL CONT EXTERNAL RESIDENTIAL,1026994,130280720,23-Aug-16,(405.66),Revenue,BROOKDALE CARE,SP0000282
WANDSWORTH COUNCIL,ASC,SOCIAL SERVICES,CUSTOMER & CLIENT RECPTS - EXT,CL CONT EXTERNAL RESIDENTIAL,1026989,130280720,23-Aug-16,(373.99),Revenue,RESIDENTIAL COMMUNITY CARE,SP0000315
WANDSWORTH COUNCIL,ASC,SOCIAL SERVICES,CUSTOMER & CLIENT RECPTS - EXT,CL CONT EXTERNAL RESIDENTIAL,1013567,130280720,08-Aug-16,(321.80),Revenue,DOLPHIN HOMES LTD,SP0000331
WANDSWORTH COUNCIL,ASC,SOCIAL SERVICES,CUSTOMER & CLIENT RECPTS - EXT,CL CONT EXTERNAL RESIDENTIAL,1013568,130280720,08-Aug-16,(321.80),Revenue,DOLPHIN HOMES LTD,SP0000331
WANDSWORTH COUNCIL,ASC,SOCIAL SERVICES,CUSTOMER & CLIENT RECPTS - EXT,CL CONT EXTERNAL RESIDENTIAL,1027026,130280720,23-Aug-16,(578.81),Revenue,HEYWOODS GRANGE LTD,SP0000361
WANDSWORTH COUNCIL,ASC,SOCIAL SERVICES,CUSTOMER & CLIENT RECPTS - EXT,CL CONT EXTERNAL RESIDENTIAL,1016744,130280720,09-Aug-16,(570.75),Revenue,VOYAGE CARE LTD,SP0000366
WANDSWORTH COUNCIL,ASC,SOCIAL SERVICES,CUSTOMER & CLIENT RECPTS - EXT,CL CONT EXTERNAL RESIDENTIAL,1016747,130280720,09-Aug-16,(373.99),Revenue,VOYAGE CARE LTD,SP0000366
WANDSWORTH COUNCIL,ASC,SOCIAL SERVICES,CUSTOMER & CLIENT RECPTS - EXT,CL CONT EXTERNAL RESIDENTIAL,1016750,130280720,09-Aug-16,(348.60),Revenue,VOYAGE CARE LTD,SP0000366
WANDSWORTH COUNCIL,ASC,SOCIAL SERVICES,CUSTOMER & CLIENT RECPTS - EXT,CL CONT EXTERNAL RESIDENTIAL,1022148,130280720,17-Aug-16,(257.85),Revenue,VOYAGE CARE LTD,SP0000366
WANDSWORTH COUNCIL,ASC,SOCIAL SERVICES,CUSTOMER & CLIENT RECPTS - EXT,CL CONT EXTERNAL RESIDENTIAL,1022152,130280720,17-Aug-16,(373.99),Revenue,ST DAVIDS CARE IN THE COMMUNITY,SP0000379
WANDSWORTH COUNCIL,ASC,SOCIAL SERVICES,CUSTOMER & CLIENT RECPTS - EXT,CL CONT EXTERNAL RESIDENTIAL,1022153,130280720,17-Aug-16,(356.28),Revenue,ST DAVIDS CARE IN THE COMMUNITY,SP0000379
WANDSWORTH COUNCIL,ASC,SOCIAL SERVICES,CUSTOMER & CLIENT RECPTS - EXT,CL CONT EXTERNAL RESIDENTIAL,1022154,130280720,17-Aug-16,(356.28),Revenue,ST DAVIDS CARE IN THE COMMUNITY,SP0000379
WANDSWORTH COUNCIL,ASC,SOCIAL SERVICES,CUSTOMER & CLIENT RECPTS - EXT,CL CONT EXTERNAL RESIDENTIAL,1025840,130280720,22-Aug-16,(321.80),Revenue,POTENSIAL LTD,SP0000395
WANDSWORTH COUNCIL,ASC,SOCIAL SERVICES,CUSTOMER & CLIENT RECPTS - EXT,CL CONT EXTERNAL RESIDENTIAL,1012964,130280720,04-Aug-16,(321.80),Revenue,KENILWORTH RESIDENTIAL HOME,SP0000432
WANDSWORTH COUNCIL,ASC,SOCIAL SERVICES,CUSTOMER & CLIENT RECPTS - EXT,CL CONT EXTERNAL RESIDENTIAL,1012965,130280720,04-Aug-16,(505.20),Revenue,KENILWORTH RESIDENTIAL HOME,SP0000432
WANDSWORTH COUNCIL,ASC,SOCIAL SERVICES,CUSTOMER & CLIENT RECPTS - EXT,CL CONT EXTERNAL RESIDENTIAL,1009780,130280720,02-Aug-16,(366.40),Revenue,THE WELL HOUSE,SP0000448
WANDSWORTH COUNCIL,ASC,SOCIAL SERVICES,CUSTOMER & CLIENT RECPTS - EXT,CL CONT EXTERNAL RESIDENTIAL,1009781,130280720,02-Aug-16,(337.80),Revenue,THE WELL HOUSE,SP0000448
WANDSWORTH COUNCIL,ASC,SOCIAL SERVICES,CUSTOMER & CLIENT RECPTS - EXT,CL CONT EXTERNAL RESIDENTIAL,1032295,130280720,31-Aug-16,(366.40),Revenue,THE WELL HOUSE,SP0000448
WANDSWORTH COUNCIL,ASC,SOCIAL SERVICES,CUSTOMER & CLIENT RECPTS - EXT,CL CONT EXTERNAL RESIDENTIAL,1032296,130280720,31-Aug-16,(337.80),Revenue,THE WELL HOUSE,SP0000448
WANDSWORTH COUNCIL,ASC,SOCIAL SERVICES,CUSTOMER & CLIENT RECPTS - EXT,CL CONT EXTERNAL RESIDENTIAL,1025832,130280720,22-Aug-16,(521.20),Revenue,MACINTYRE CARE,SP0000473
WANDSWORTH COUNCIL,ASC,SOCIAL SERVICES,CUSTOMER & CLIENT RECPTS - EXT,CL CONT EXTERNAL RESIDENTIAL,1030616,130280720,26-Aug-16,(400.60),Revenue,MACINTYRE CARE,SP0000473
WANDSWORTH COUNCIL,ASC,SOCIAL SERVICES,CUSTOMER & CLIENT RECPTS - EXT,CL CONT EXTERNAL RESIDENTIAL,1030617,130280720,26-Aug-16,(400.60),Revenue,MACINTYRE CARE,SP0000473
WANDSWORTH COUNCIL,ASC,SOCIAL SERVICES,CUSTOMER & CLIENT RECPTS - EXT,CL CONT EXTERNAL RESIDENTIAL,1025830,130280720,22-Aug-16,(321.80),Revenue,SURREY & BORDERS PARTNERSHIP NHS TRUST,SP0000501
WANDSWORTH COUNCIL,ASC,SOCIAL SERVICES,CUSTOMER & CLIENT RECPTS - EXT,CL CONT EXTERNAL RESIDENTIAL,1025831,130280720,22-Aug-16,(505.20),Revenue,SURREY & BORDERS PARTNERSHIP NHS TRUST,SP0000501
WANDSWORTH COUNCIL,ASC,SOCIAL SERVICES,CUSTOMER & CLIENT RECPTS - EXT,CL CONT EXTERNAL RESIDENTIAL,1023556,130280720,18-Aug-16,(373.99),Revenue,AIMS CARE PARTNERSHIP,SP0000561
WANDSWORTH COUNCIL,ASC,SOCIAL SERVICES,CUSTOMER & CLIENT RECPTS - EXT,CL CONT EXTERNAL RESIDENTIAL,1022139,130280720,17-Aug-16,(361.72),Revenue,SEEABILITY,SP0000572
WANDSWORTH COUNCIL,ASC,SOCIAL SERVICES,CUSTOMER & CLIENT RECPTS - EXT,CL CONT EXTERNAL RESIDENTIAL,1022140,130280720,17-Aug-16,(373.77),Revenue,SEEABILITY,SP0000572
WANDSWORTH COUNCIL,ASC,SOCIAL SERVICES,CUSTOMER & CLIENT RECPTS - EXT,CL CONT EXTERNAL RESIDENTIAL,1028399,130280720,25-Aug-16,(433.56),Revenue,SEEABILITY,SP0000572
WANDSWORTH COUNCIL,ASC,SOCIAL SERVICES,CUSTOMER & CLIENT RECPTS - EXT,CL CONT EXTERNAL RESIDENTIAL,1030619,130280720,26-Aug-16,(132.63),Revenue,SEEABILITY,SP0000572
WANDSWORTH COUNCIL,ASC,SOCIAL SERVICES,CUSTOMER & CLIENT RECPTS - EXT,CL CONT EXTERNAL RESIDENTIAL,1030620,130280720,26-Aug-16,(361.71),Revenue,SEEABILITY,SP0000572
WANDSWORTH COUNCIL,ASC,SOCIAL SERVICES,CUSTOMER & CLIENT RECPTS - EXT,CL CONT EXTERNAL RESIDENTIAL,1032745,130280720,31-Aug-16,(373.77),Revenue,SEEABILITY,SP0000572
WANDSWORTH COUNCIL,ASC,SOCIAL SERVICES,CUSTOMER & CLIENT RECPTS - EXT,CL CONT EXTERNAL RESIDENTIAL,1025824,130280720,22-Aug-16,(356.28),Revenue,THE REGARD PARTNERSHIP,SP0000588
WANDSWORTH COUNCIL,ASC,SOCIAL SERVICES,CUSTOMER & CLIENT RECPTS - EXT,CL CONT EXTERNAL RESIDENTIAL,1025825,130280720,22-Aug-16,(578.81),Revenue,THE REGARD PARTNERSHIP,SP0000588
WANDSWORTH COUNCIL,ASC,SOCIAL SERVICES,CUSTOMER & CLIENT RECPTS - EXT,CL CONT EXTERNAL RESIDENTIAL,1025826,130280720,22-Aug-16,(443.52),Revenue,THE REGARD PARTNERSHIP,SP0000588
WANDSWORTH COUNCIL,ASC,SOCIAL SERVICES,CUSTOMER & CLIENT RECPTS - EXT,CL CONT EXTERNAL RESIDENTIAL,1025827,130280720,22-Aug-16,(443.52),Revenue,THE REGARD PARTNERSHIP,SP0000588
WANDSWORTH COUNCIL,ASC,SOCIAL SERVICES,CUSTOMER & CLIENT RECPTS - EXT,CL CONT EXTERNAL RESIDENTIAL,1019517,130280720,12-Aug-16,(261.80),Revenue,LAETUS LODGE,SP0000600
WANDSWORTH COUNCIL,ASC,SOCIAL SERVICES,CUSTOMER & CLIENT RECPTS - EXT,CL CONT EXTERNAL RESIDENTIAL,1019518,130280720,12-Aug-16,(321.80),Revenue,LAETUS LODGE,SP0000600
WANDSWORTH COUNCIL,ASC,SOCIAL SERVICES,CUSTOMER & CLIENT RECPTS - EXT,CL CONT EXTERNAL RESIDENTIAL,1019519,130280720,12-Aug-16,(366.40),Revenue,LAETUS LODGE,SP0000600
WANDSWORTH COUNCIL,ASC,SOCIAL SERVICES,CUSTOMER & CLIENT RECPTS - EXT,CL CONT EXTERNAL RESIDENTIAL,1019520,130280720,12-Aug-16,(261.80),Revenue,LAETUS LODGE,SP0000600
WANDSWORTH COUNCIL,ASC,SOCIAL SERVICES,CUSTOMER & CLIENT RECPTS - EXT,CL CONT EXTERNAL RESIDENTIAL,1019521,130280720,12-Aug-16,(274.37),Revenue,LAETUS LODGE,SP0000600
WANDSWORTH COUNCIL,ASC,SOCIAL SERVICES,CUSTOMER & CLIENT RECPTS - EXT,CL CONT EXTERNAL RESIDENTIAL,1025848,130280720,22-Aug-16,(321.80),Revenue,LIVABILITY,SP0000669
WANDSWORTH COUNCIL,ASC,SOCIAL SERVICES,CUSTOMER & CLIENT RECPTS - EXT,CL CONT EXTERNAL RESIDENTIAL,1019524,130280720,12-Aug-16,(577.48),Revenue,LOVING CARE LTD,SP0000670
WANDSWORTH COUNCIL,ASC,SOCIAL SERVICES,CUSTOMER & CLIENT RECPTS - EXT,CL CONT EXTERNAL RESIDENTIAL,1019525,130280720,12-Aug-16,(321.80),Revenue,LOVING CARE LTD,SP0000670
WANDSWORTH COUNCIL,ASC,SOCIAL SERVICES,CUSTOMER & CLIENT RECPTS - EXT,CL CONT EXTERNAL RESIDENTIAL,1019526,130280720,12-Aug-16,(400.60),Revenue,LOVING CARE LTD,SP0000670
WANDSWORTH COUNCIL,ASC,SOCIAL SERVICES,CUSTOMER & CLIENT RECPTS - EXT,CL CONT EXTERNAL RESIDENTIAL,1019527,130280720,12-Aug-16,(400.60),Revenue,LOVING CARE LTD,SP0000670
WANDSWORTH COUNCIL,ASC,SOCIAL SERVICES,CUSTOMER & CLIENT RECPTS - EXT,CL CONT EXTERNAL RESIDENTIAL,1019528,130280720,12-Aug-16,(321.80),Revenue,LOVING CARE LTD,SP0000670
WANDSWORTH COUNCIL,ASC,SOCIAL SERVICES,CUSTOMER & CLIENT RECPTS - EXT,CL CONT EXTERNAL RESIDENTIAL,1019529,130280720,12-Aug-16,(321.80),Revenue,LOVING CARE LTD,SP0000670
WANDSWORTH COUNCIL,ASC,SOCIAL SERVICES,CUSTOMER & CLIENT RECPTS - EXT,CL CONT EXTERNAL RESIDENTIAL,1019604,130280720,12-Aug-16,(321.80),Revenue,LOVING CARE LTD,SP0000670
WANDSWORTH COUNCIL,ASC,SOCIAL SERVICES,CUSTOMER & CLIENT RECPTS - EXT,CL CONT EXTERNAL RESIDENTIAL,1018047,130280720,10-Aug-16,(65.13),Revenue,WHITMORE VALE HOUSING ASSOCIATION LTD,SP0000694
WANDSWORTH COUNCIL,ASC,SOCIAL SERVICES,CUSTOMER & CLIENT RECPTS - EXT,CL CONT EXTERNAL RESIDENTIAL,1018048,130280720,10-Aug-16,(505.20),Revenue,WHITMORE VALE HOUSING ASSOCIATION LTD,SP0000694
WANDSWORTH COUNCIL,ASC,SOCIAL SERVICES,CUSTOMER & CLIENT RECPTS - EXT,CL CONT EXTERNAL RESIDENTIAL,1018049,130280720,10-Aug-16,(518.40),Revenue,WHITMORE VALE HOUSING ASSOCIATION LTD,SP0000694
WANDSWORTH COUNCIL,ASC,SOCIAL SERVICES,CUSTOMER & CLIENT RECPTS - EXT,CL CONT EXTERNAL RESIDENTIAL,1018050,130280720,10-Aug-16,(522.80),Revenue,WHITMORE VALE HOUSING ASSOCIATION LTD,SP0000694
WANDSWORTH COUNCIL,ASC,SOCIAL SERVICES,CUSTOMER & CLIENT RECPTS - EXT,CL CONT EXTERNAL RESIDENTIAL,1018051,130280720,10-Aug-16,(522.80),Revenue,WHITMORE VALE HOUSING ASSOCIATION LTD,SP0000694
WANDSWORTH COUNCIL,ASC,SOCIAL SERVICES,CUSTOMER & CLIENT RECPTS - EXT,CL CONT EXTERNAL RESIDENTIAL,1018685,130280720,11-Aug-16,(522.80),Revenue,WHITMORE VALE HOUSING ASSOCIATION LTD,SP0000694
WANDSWORTH COUNCIL,ASC,SOCIAL SERVICES,CUSTOMER & CLIENT RECPTS - EXT,CL CONT EXTERNAL RESIDENTIAL,1027056,130280720,23-Aug-16,(373.99),Revenue,THE MANOR HOUSE,SP0000728
WANDSWORTH COUNCIL,ASC,SOCIAL SERVICES,CUSTOMER & CLIENT RECPTS - EXT,CL CONT EXTERNAL RESIDENTIAL,1027021,130280720,23-Aug-16,(578.81),Revenue,RALEIGH HOUSE LTD,SP0000760
WANDSWORTH COUNCIL,ASC,SOCIAL SERVICES,CUSTOMER & CLIENT RECPTS - EXT,CL CONT EXTERNAL RESIDENTIAL,1018509,130280720,11-Aug-16,(337.80),Revenue,GLENCARE GROUP,SP0000791
WANDSWORTH COUNCIL,ASC,SOCIAL SERVICES,CUSTOMER & CLIENT RECPTS - EXT,CL CONT EXTERNAL RESIDENTIAL,1018510,130280720,11-Aug-16,(506.88),Revenue,GLENCARE GROUP,SP0000791
WANDSWORTH COUNCIL,ASC,SOCIAL SERVICES,CUSTOMER & CLIENT RECPTS - EXT,CL CONT EXTERNAL RESIDENTIAL,1018511,130280720,11-Aug-16,(337.80),Revenue,GLENCARE GROUP,SP0000791
WANDSWORTH COUNCIL,ASC,SOCIAL SERVICES,CUSTOMER & CLIENT RECPTS - EXT,CL CONT EXTERNAL RESIDENTIAL,1012698,130280720,04-Aug-16,(400.60),Revenue,UNITED RESPONSE,SP0000797
WANDSWORTH COUNCIL,ASC,SOCIAL SERVICES,CUSTOMER & CLIENT RECPTS - EXT,CL CONT EXTERNAL RESIDENTIAL,1013569,130280720,08-Aug-16,(356.28),Revenue,BEECH LODGE,SP0000807
WANDSWORTH COUNCIL,ASC,SOCIAL SERVICES,CUSTOMER & CLIENT RECPTS - EXT,CL CONT EXTERNAL RESIDENTIAL,1013570,130280720,08-Aug-16,(373.99),Revenue,BEECH LODGE,SP0000807
WANDSWORTH COUNCIL,ASC,SOCIAL SERVICES,CUSTOMER & CLIENT RECPTS - EXT,CL CONT EXTERNAL RESIDENTIAL,1013571,130280720,08-Aug-16,(373.99),Revenue,BEECH LODGE,SP0000807
WANDSWORTH COUNCIL,ASC,SOCIAL SERVICES,CUSTOMER & CLIENT RECPTS - EXT,CL CONT EXTERNAL RESIDENTIAL,1032297,130280720,31-Aug-16,(356.28),Revenue,BEECH LODGE,SP0000807
WANDSWORTH COUNCIL,ASC,SOCIAL SERVICES,CUSTOMER & CLIENT RECPTS - EXT,CL CONT EXTERNAL RESIDENTIAL,1032298,130280720,31-Aug-16,(373.99),Revenue,BEECH LODGE,SP0000807
WANDSWORTH COUNCIL,ASC,SOCIAL SERVICES,CUSTOMER & CLIENT RECPTS - EXT,CL CONT EXTERNAL RESIDENTIAL,1032299,130280720,31-Aug-16,(373.99),Revenue,BEECH LODGE,SP0000807
WANDSWORTH COUNCIL,ASC,SOCIAL SERVICES,CUSTOMER & CLIENT RECPTS - EXT,CL CONT EXTERNAL RESIDENTIAL,1027055,130280720,23-Aug-16,(356.61),Revenue,FIRCROFT,SP0000840
WANDSWORTH COUNCIL,ASC,SOCIAL SERVICES,CUSTOMER & CLIENT RECPTS - EXT,CL CONT EXTERNAL RESIDENTIAL,1019839,130280720,15-Aug-16,(321.80),Revenue,ROYAL MENCAP SOCIETY,SP0000842
WANDSWORTH COUNCIL,ASC,SOCIAL SERVICES,CUSTOMER & CLIENT RECPTS - EXT,CL CONT EXTERNAL RESIDENTIAL,1009581,130280720,02-Aug-16,(373.99),Revenue,STALLCOMBE HOUSE,SP0000843
WANDSWORTH COUNCIL,ASC,SOCIAL SERVICES,CUSTOMER & CLIENT RECPTS - EXT,CL CONT EXTERNAL RESIDENTIAL,1009582,130280720,02-Aug-16,(373.99),Revenue,STALLCOMBE HOUSE,SP0000843
WANDSWORTH COUNCIL,ASC,SOCIAL SERVICES,CUSTOMER & CLIENT RECPTS - EXT,CL CONT EXTERNAL RESIDENTIAL,1027079,130280720,23-Aug-16,(373.99),Revenue,STALLCOMBE HOUSE,SP0000843
WANDSWORTH COUNCIL,ASC,SOCIAL SERVICES,CUSTOMER & CLIENT RECPTS - EXT,CL CONT EXTERNAL RESIDENTIAL,1027080,130280720,23-Aug-16,(443.52),Revenue,STALLCOMBE HOUSE,SP0000843
WANDSWORTH COUNCIL,ASC,SOCIAL SERVICES,CUSTOMER & CLIENT RECPTS - EXT,CL CONT EXTERNAL RESIDENTIAL,1027081,130280720,23-Aug-16,(373.99),Revenue,STALLCOMBE HOUSE,SP0000843
WANDSWORTH COUNCIL,ASC,SOCIAL SERVICES,CUSTOMER & CLIENT RECPTS - EXT,CL CONT EXTERNAL RESIDENTIAL,1027022,130280720,23-Aug-16,(443.52),Revenue,SCOPE,SP0000852
WANDSWORTH COUNCIL,ASC,SOCIAL SERVICES,CUSTOMER & CLIENT RECPTS - EXT,CL CONT EXTERNAL RESIDENTIAL,1027023,130280720,23-Aug-16,(380.64),Revenue,SCOPE,SP0000852
WANDSWORTH COUNCIL,ASC,SOCIAL SERVICES,CUSTOMER & CLIENT RECPTS - EXT,CL CONT EXTERNAL RESIDENTIAL,1012963,130280720,04-Aug-16,(337.80),Revenue,WINSLOW COURT,SP0000886
WANDSWORTH COUNCIL,ASC,SOCIAL SERVICES,CUSTOMER & CLIENT RECPTS - EXT,CL CONT EXTERNAL RESIDENTIAL,1012700,130280720,04-Aug-16,(321.80),Revenue,THE LEO TRUST,SP0000908
WANDSWORTH COUNCIL,ASC,SOCIAL SERVICES,CUSTOMER & CLIENT RECPTS - EXT,CL CONT EXTERNAL RESIDENTIAL,1012701,130280720,04-Aug-16,(392.57),Revenue,TRACS,SP0000914
WANDSWORTH COUNCIL,ASC,SOCIAL SERVICES,CUSTOMER & CLIENT RECPTS - EXT,CL CONT EXTERNAL RESIDENTIAL,1025829,130280720,22-Aug-16,(405.66),Revenue,TRACS,SP0000914
WANDSWORTH COUNCIL,ASC,SOCIAL SERVICES,CUSTOMER & CLIENT RECPTS - EXT,CL CONT EXTERNAL RESIDENTIAL,1027025,130280720,23-Aug-16,(356.28),Revenue,PROGRESS HOUSING MARLOW,SP0000952
WANDSWORTH COUNCIL,ASC,SOCIAL SERVICES,CUSTOMER & CLIENT RECPTS - EXT,CL CONT EXTERNAL RESIDENTIAL,1013572,130280720,08-Aug-16,(356.28),Revenue,CHERRY LODGE,SP0000965
WANDSWORTH COUNCIL,ASC,SOCIAL SERVICES,CUSTOMER & CLIENT RECPTS - EXT,CL CONT EXTERNAL RESIDENTIAL,1032300,130280720,31-Aug-16,(356.28),Revenue,CHERRY LODGE,SP0000965
WANDSWORTH COUNCIL,ASC,SOCIAL SERVICES,CUSTOMER & CLIENT RECPTS - EXT,CL CONT EXTERNAL RESIDENTIAL,1018686,130280720,11-Aug-16,(321.80),Revenue,RIDGEWOOD CARE SERVICES LTD,SP0000969
WANDSWORTH COUNCIL,ASC,SOCIAL SERVICES,CUSTOMER & CLIENT RECPTS - EXT,CL CONT EXTERNAL RESIDENTIAL,1028395,130280720,25-Aug-16,(321.80),Revenue,RIDGEWOOD CARE SERVICES LTD,SP0000969
WANDSWORTH COUNCIL,ASC,SOCIAL SERVICES,CUSTOMER & CLIENT RECPTS - EXT,CL CONT EXTERNAL RESIDENTIAL,1028396,130280720,25-Aug-16,(400.60),Revenue,RIDGEWOOD CARE SERVICES LTD,SP0000969
WANDSWORTH COUNCIL,ASC,SOCIAL SERVICES,CUSTOMER & CLIENT RECPTS - EXT,CL CONT EXTERNAL RESIDENTIAL,1016288,130280720,09-Aug-16,(373.99),Revenue,LEONARD CHESHIRE,SP0000976
WANDSWORTH COUNCIL,ASC,SOCIAL SERVICES,CUSTOMER & CLIENT RECPTS - EXT,CL CONT EXTERNAL RESIDENTIAL,1028397,130280720,25-Aug-16,(321.80),Revenue,LOTUS CARE HOME LTD,SP0001006
WANDSWORTH COUNCIL,ASC,SOCIAL SERVICES,CUSTOMER & CLIENT RECPTS - EXT,CL CONT EXTERNAL RESIDENTIAL,1019851,130280720,15-Aug-16,(559.33),Revenue,LIVING AMBITIONS LIMITED,SP0001039
WANDSWORTH COUNCIL,ASC,SOCIAL SERVICES,CUSTOMER & CLIENT RECPTS - EXT,CL CONT EXTERNAL RESIDENTIAL,1019848,130280720,15-Aug-16,(321.80),Revenue,THE HOME FARM TRUST LTD,SP0001048
WANDSWORTH COUNCIL,ASC,SOCIAL SERVICES,CUSTOMER & CLIENT RECPTS - EXT,CL CONT EXTERNAL RESIDENTIAL,1022143,130280720,17-Aug-16,(321.80),Revenue,THE HOME FARM TRUST LTD,SP0001048
WANDSWORTH COUNCIL,ASC,SOCIAL SERVICES,CUSTOMER & CLIENT RECPTS - EXT,CL CONT EXTERNAL RESIDENTIAL,1022144,130280720,17-Aug-16,(522.80),Revenue,THE HOME FARM TRUST LTD,SP0001048
WANDSWORTH COUNCIL,ASC,SOCIAL SERVICES,CUSTOMER & CLIENT RECPTS - EXT,CL CONT EXTERNAL RESIDENTIAL,1022145,130280720,17-Aug-16,(522.80),Revenue,THE HOME FARM TRUST LTD,SP0001048
WANDSWORTH COUNCIL,ASC,SOCIAL SERVICES,CUSTOMER & CLIENT RECPTS - EXT,CL CONT EXTERNAL RESIDENTIAL,1013566,130280720,08-Aug-16,(321.80),Revenue,ALLIED CARE (MHS) LTD,SP0001069
WANDSWORTH COUNCIL,ASC,SOCIAL SERVICES,CUSTOMER & CLIENT RECPTS - EXT,CL CONT EXTERNAL RESIDENTIAL,1026992,130280720,23-Aug-16,(275.50),Revenue,ALLIED CARE (MHS) LTD,SP0001069
WANDSWORTH COUNCIL,ASC,SOCIAL SERVICES,CUSTOMER & CLIENT RECPTS - EXT,CL CONT EXTERNAL RESIDENTIAL,1025828,130280720,22-Aug-16,(373.99),Revenue,SAXON COURT,SP0001100
WANDSWORTH COUNCIL,ASC,SOCIAL SERVICES,CUSTOMER & CLIENT RECPTS - EXT,CL CONT EXTERNAL RESIDENTIAL,1016745,130280720,09-Aug-16,(373.99),Revenue,ILG LTD,SP0001103
WANDSWORTH COUNCIL,ASC,SOCIAL SERVICES,CUSTOMER & CLIENT RECPTS - EXT,CL CONT EXTERNAL RESIDENTIAL,1019603,130280720,12-Aug-16,(348.60),Revenue,TOTTERDOWN,SP0001113
WANDSWORTH COUNCIL,ASC,SOCIAL SERVICES,CUSTOMER & CLIENT RECPTS - EXT,CL CONT EXTERNAL RESIDENTIAL,1022149,130280720,17-Aug-16,(443.52),Revenue,SUSSEX HEALTH CARE,SP0001115
WANDSWORTH COUNCIL,ASC,SOCIAL SERVICES,CUSTOMER & CLIENT RECPTS - EXT,CL CONT EXTERNAL RESIDENTIAL,1022151,130280720,17-Aug-16,157.38,Revenue,SUSSEX HEALTH CARE,SP0001115
WANDSWORTH COUNCIL,ASC,SOCIAL SERVICES,CUSTOMER & CLIENT RECPTS - EXT,CL CONT EXTERNAL RESIDENTIAL,1026986,130280720,23-Aug-16,(443.52),Revenue,SUSSEX HEALTH CARE,SP0001115
WANDSWORTH COUNCIL,ASC,SOCIAL SERVICES,CUSTOMER & CLIENT RECPTS - EXT,CL CONT EXTERNAL RESIDENTIAL,1016757,130280720,09-Aug-16,(405.66),Revenue,LONDON CARE PARTNERSHIP LTD,SP0001138
WANDSWORTH COUNCIL,ASC,SOCIAL SERVICES,CUSTOMER & CLIENT RECPTS - EXT,CL CONT EXTERNAL RESIDENTIAL,1018514,130280720,11-Aug-16,(356.28),Revenue,LONDON CARE PARTNERSHIP LTD,SP0001138
WANDSWORTH COUNCIL,ASC,SOCIAL SERVICES,CUSTOMER & CLIENT RECPTS - EXT,CL CONT EXTERNAL RESIDENTIAL,1027082,130280720,23-Aug-16,(405.66),Revenue,LONDON CARE PARTNERSHIP LTD,SP0001138
WANDSWORTH COUNCIL,ASC,SOCIAL SERVICES,CUSTOMER & CLIENT RECPTS - EXT,CL CONT EXTERNAL RESIDENTIAL,1027028,130280720,23-Aug-16,(373.99),Revenue,HOME FROM HOME CARE LIMITED,SP0001373
WANDSWORTH COUNCIL,ASC,SOCIAL SERVICES,CUSTOMER & CLIENT RECPTS - EXT,CL CONT EXTERNAL RESIDENTIAL,1013579,130280720,08-Aug-16,(366.40),Revenue,LARKFIELD HALL LTD T/A PEPENBURY,SP0001378
WANDSWORTH COUNCIL,ASC,SOCIAL SERVICES,CUSTOMER & CLIENT RECPTS - EXT,CL CONT EXTERNAL RESIDENTIAL,1025838,130280720,22-Aug-16,(366.40),Revenue,LARKFIELD HALL LTD T/A PEPENBURY,SP0001378
WANDSWORTH COUNCIL,ASC,SOCIAL SERVICES,CUSTOMER & CLIENT RECPTS - EXT,CL CONT EXTERNAL RESIDENTIAL,1016278,130280720,09-Aug-16,(215.89),Revenue,THE WEST OF ENGLAND SCHOOL & COLLEGE,SP0001486
WANDSWORTH COUNCIL,ASC,SOCIAL SERVICES,CUSTOMER & CLIENT RECPTS - EXT,CL CONT EXTERNAL RESIDENTIAL,1016279,130280720,09-Aug-16,(215.89),Revenue,THE WEST OF ENGLAND SCHOOL & COLLEGE,SP0001486
WANDSWORTH COUNCIL,ASC,SOCIAL SERVICES,CUSTOMER & CLIENT RECPTS - EXT,CL CONT EXTERNAL RESIDENTIAL,1026991,130280720,23-Aug-16,(405.66),Revenue,ROOKERY HOVE PRIORY,SP0001498
WANDSWORTH COUNCIL,ASC,SOCIAL SERVICES,CUSTOMER & CLIENT RECPTS - EXT,CL CONT EXTERNAL RESIDENTIAL,1016291,130280720,09-Aug-16,(400.60),Revenue,MCCH SOCIETY LIMITED,SP0001531
WANDSWORTH COUNCIL,ASC,SOCIAL SERVICES,CUSTOMER & CLIENT RECPTS - EXT,CL CONT EXTERNAL RESIDENTIAL,1016292,130280720,09-Aug-16,(337.80),Revenue,MCCH SOCIETY LIMITED,SP0001531
WANDSWORTH COUNCIL,ASC,SOCIAL SERVICES,CUSTOMER & CLIENT RECPTS - EXT,CL CONT EXTERNAL RESIDENTIAL,1012697,130280720,04-Aug-16,(287.60),Revenue,CRAEGMOOR OLD RECTORY BREDE PRIORY,SP0001621
WANDSWORTH COUNCIL,ASC,SOCIAL SERVICES,CUSTOMER & CLIENT RECPTS - EXT,CL CONT EXTERNAL RESIDENTIAL,1032752,130280720,31-Aug-16,(287.60),Revenue,CRAEGMOOR OLD RECTORY BREDE PRIORY,SP0001621
WANDSWORTH COUNCIL,ASC,SOCIAL SERVICES,CUSTOMER & CLIENT RECPTS - EXT,CL CONT EXTERNAL RESIDENTIAL,1027015,130280720,23-Aug-16,(356.28),Revenue,PATHWAY HEALTHCARE,SP0001779
WANDSWORTH COUNCIL,ASC,SOCIAL SERVICES,CUSTOMER & CLIENT RECPTS - EXT,CL CONT EXTERNAL RESIDENTIAL,1013564,130280720,08-Aug-16,(337.80),Revenue,C.H.O.I.C.E LIMITED,SP0010438
WANDSWORTH COUNCIL,ASC,SOCIAL SERVICES,CUSTOMER & CLIENT RECPTS - EXT,CL CONT EXTERNAL RESIDENTIAL,1012695,130280720,04-Aug-16,(132.00),Revenue,"CRAEGMOOR, PARKCARE HOMES (NO2) LTD TA W",SP0010529
WANDSWORTH COUNCIL,ASC,SOCIAL SERVICES,CUSTOMER & CLIENT RECPTS - EXT,CL CONT EXTERNAL RESIDENTIAL,1013574,130280720,08-Aug-16,(141.22),Revenue,CAMBIAN LEARNING DISABILITIES MIDLANDS,SP0010672
WANDSWORTH COUNCIL,ASC,SOCIAL SERVICES,CUSTOMER & CLIENT RECPTS - EXT,CL CONT EXTERNAL RESIDENTIAL,1013576,130280720,08-Aug-16,(145.92),Revenue,CAMBIAN LEARNING DISABILITIES MIDLANDS,SP0010672
WANDSWORTH COUNCIL,ASC,SOCIAL SERVICES,CUSTOMER & CLIENT RECPTS - EXT,CL CONT EXTERNAL RESIDENTIAL,1013577,130280720,08-Aug-16,(145.92),Revenue,CAMBIAN LEARNING DISABILITIES MIDLANDS,SP0010672
WANDSWORTH COUNCIL,ASC,SOCIAL SERVICES,CUSTOMER & CLIENT RECPTS - EXT,CLIENT CONTS - DIRECT PAYMENTS,1015195,130280790,08-Aug-16,(38.80),Revenue,HESTIA HOUSING & SUPPORT,SP0000258
WANDSWORTH COUNCIL,ASC,SOCIAL SERVICES,CUSTOMER & CLIENT RECPTS - EXT,CLIENT CONTS - DIRECT PAYMENTS,1015490,130280790,08-Aug-16,(235.40),Revenue,VIBRANCE,SP0005489
WANDSWORTH COUNCIL,ASC,SOCIAL SERVICES,CUSTOMER & CLIENT RECPTS - EXT,CLIENT CONTS - DIRECT PAYMENTS,1015150,130280790,08-Aug-16,(74.80),Revenue,EPAYROLLUK LTD,SP0009092
WANDSWORTH COUNCIL,ASC,SOCIAL SERVICES,CUSTOMER & CLIENT RECPTS - EXT,CLIENT CONTS EXTERNAL NURSING,1027058,130280820,23-Aug-16,(337.80),Revenue,WINGHAM COURT,SP0000025
WANDSWORTH COUNCIL,ASC,SOCIAL SERVICES,CUSTOMER & CLIENT RECPTS - EXT,CLIENT CONTS EXTERNAL NURSING,1019443,130280820,12-Aug-16,(423.66),Revenue,ROSEDENE NURSING HOME,SP0000316
WANDSWORTH COUNCIL,ASC,SOCIAL SERVICES,CUSTOMER & CLIENT RECPTS - EXT,CLIENT CONTS EXTERNAL NURSING,1033208,130280820,31-Aug-16,(564.88),Revenue,ROSEDENE NURSING HOME,SP0000316
WANDSWORTH COUNCIL,ASC,SOCIAL SERVICES,CUSTOMER & CLIENT RECPTS - EXT,CLIENT CONTS EXTERNAL NURSING,1016742,130280820,09-Aug-16,(205.95),Revenue,VOYAGE CARE LTD,SP0000366
WANDSWORTH COUNCIL,ASC,SOCIAL SERVICES,CUSTOMER & CLIENT RECPTS - EXT,CLIENT CONTS EXTERNAL NURSING,1016746,130280820,09-Aug-16,(400.60),Revenue,VOYAGE CARE LTD,SP0000366
WANDSWORTH COUNCIL,ASC,SOCIAL SERVICES,CUSTOMER & CLIENT RECPTS - EXT,CLIENT CONTS EXTERNAL NURSING,1019553,130280820,12-Aug-16,(889.84),Revenue,BUPA CARE SERVICES BACS RECEIPTS,SP0000644
WANDSWORTH COUNCIL,ASC,SOCIAL SERVICES,CUSTOMER & CLIENT RECPTS - EXT,CLIENT CONTS EXTERNAL NURSING,1019572,130280820,12-Aug-16,(522.80),Revenue,BUPA CARE SERVICES BACS RECEIPTS,SP0000644
WANDSWORTH COUNCIL,ASC,SOCIAL SERVICES,CUSTOMER & CLIENT RECPTS - EXT,CLIENT CONTS EXTERNAL NURSING,1016283,130280820,09-Aug-16,(343.80),Revenue,HIGH HURLANDS HOMES,SP0000668
WANDSWORTH COUNCIL,ASC,SOCIAL SERVICES,CUSTOMER & CLIENT RECPTS - EXT,CLIENT CONTS EXTERNAL NURSING,1016285,130280820,09-Aug-16,(343.80),Revenue,HIGH HURLANDS HOMES,SP0000668
WANDSWORTH COUNCIL,ASC,SOCIAL SERVICES,CUSTOMER & CLIENT RECPTS - EXT,CLIENT CONTS EXTERNAL NURSING,1026987,130280820,23-Aug-16,(310.53),Revenue,SUSSEX HEALTH CARE,SP0001115
WANDSWORTH COUNCIL,ASC,SOCIAL SERVICES,CUSTOMER & CLIENT RECPTS - EXT,RNCC,1027058,130284120,23-Aug-16,(625.00),Revenue,WINGHAM COURT,SP0000025
WANDSWORTH COUNCIL,ASC,SOCIAL SERVICES,CUSTOMER & CLIENT RECPTS - EXT,RNCC,1019443,130284120,12-Aug-16,(336.00),Revenue,ROSEDENE NURSING HOME,SP0000316
WANDSWORTH COUNCIL,ASC,SOCIAL SERVICES,CUSTOMER & CLIENT RECPTS - EXT,RNCC,1033208,130284120,31-Aug-16,(625.00),Revenue,ROSEDENE NURSING HOME,SP0000316
WANDSWORTH COUNCIL,ASC,SOCIAL SERVICES,CUSTOMER & CLIENT RECPTS - EXT,RNCC,1016742,130284120,09-Aug-16,(625.00),Revenue,VOYAGE CARE LTD,SP0000366
WANDSWORTH COUNCIL,ASC,SOCIAL SERVICES,CUSTOMER & CLIENT RECPTS - EXT,RNCC,1016746,130284120,09-Aug-16,(625.00),Revenue,VOYAGE CARE LTD,SP0000366
WANDSWORTH COUNCIL,ASC,SOCIAL SERVICES,CUSTOMER & CLIENT RECPTS - EXT,RNCC,1019553,130284120,12-Aug-16,(448.00),Revenue,BUPA CARE SERVICES BACS RECEIPTS,SP0000644
WANDSWORTH COUNCIL,ASC,SOCIAL SERVICES,CUSTOMER & CLIENT RECPTS - EXT,RNCC,1019572,130284120,12-Aug-16,(448.00),Revenue,BUPA CARE SERVICES BACS RECEIPTS,SP0000644
WANDSWORTH COUNCIL,ASC,SOCIAL SERVICES,CUSTOMER & CLIENT RECPTS - EXT,RNCC,1016283,130284120,09-Aug-16,(860.16),Revenue,HIGH HURLANDS HOMES,SP0000668
WANDSWORTH COUNCIL,ASC,SOCIAL SERVICES,CUSTOMER & CLIENT RECPTS - EXT,RNCC,1016285,130284120,09-Aug-16,(860.16),Revenue,HIGH HURLANDS HOMES,SP0000668
WANDSWORTH COUNCIL,ASC,SOCIAL SERVICES,CUSTOMER & CLIENT RECPTS - EXT,RNCC,1026987,130284120,23-Aug-16,(496.00),Revenue,SUSSEX HEALTH CARE,SP0001115
WANDSWORTH COUNCIL,PH,SOCIAL SERVICES,PRIVATE,EXTERNAL RESIDENTIAL CARE,1013578,140145330,08-Aug-16,"1,847.79",Revenue,SOME WHERE HOUSE LTD,SP0001584
WANDSWORTH COUNCIL,PH,SOCIAL SERVICES,PRIVATE,EXTERNAL RESIDENTIAL CARE,1025853,140145330,22-Aug-16,942.14,Revenue,WESTERN COUNSELLING SERVICES,SP0001629
WANDSWORTH COUNCIL,PH,SOCIAL SERVICES,CUSTOMER & CLIENT RECPTS - EXT,CL CONT EXTERNAL RESIDENTIAL,1013578,140180720,08-Aug-16,(177.82),Revenue,SOME WHERE HOUSE LTD,SP0001584
WANDSWORTH COUNCIL,PH,SOCIAL SERVICES,CUSTOMER & CLIENT RECPTS - EXT,CL CONT EXTERNAL RESIDENTIAL,1025853,140180720,22-Aug-16,(132.14),Revenue,WESTERN COUNSELLING SERVICES,SP0001629
WANDSWORTH COUNCIL,ASC,SOCIAL SERVICES,OTHER AGENCIES,EXTERNAL OUTREACH,1021085,140543330,16-Aug-16,919.44,Revenue,ACTION ON HEARING LOSS,SP0001359
WANDSWORTH COUNCIL,ASC,SOCIAL SERVICES,PRIVATE,EXTERNAL RESIDENTIAL CARE,1027059,140545330,23-Aug-16,"6,038.36",Revenue,SIGNHEALTH,SP0000496
WANDSWORTH COUNCIL,ASC,SOCIAL SERVICES,PRIVATE,EXTERNAL RESIDENTIAL CARE,1027061,140545330,23-Aug-16,"5,950.76",Revenue,SIGNHEALTH,SP0000496
WANDSWORTH COUNCIL,ASC,SOCIAL SERVICES,PRIVATE,EXTERNAL RESIDENTIAL CARE,1025852,140545330,22-Aug-16,"3,679.96",Revenue,ACTION ON HEARING LOSS,SP0001359
WANDSWORTH COUNCIL,ASC,SOCIAL SERVICES,OTHER AGENCIES,EXTERNAL LODGINGS,1018513,142043320,11-Aug-16,840.00,Revenue,EURO HOTELS (GILROY COURT) LTD,SP0000897
WANDSWORTH COUNCIL,ASC,SOCIAL SERVICES,OTHER AGENCIES,EXTERNAL OUTREACH,1016564,142043330,09-Aug-16,533.18,Revenue,NAS SERVICES LIMITED,SP0000217
WANDSWORTH COUNCIL,ASC,SOCIAL SERVICES,OTHER AGENCIES,EXTERNAL OUTREACH,1018600,142043330,11-Aug-16,560.00,Revenue,SIGNHEALTH,SP0000496
WANDSWORTH COUNCIL,ASC,SOCIAL SERVICES,OTHER AGENCIES,EXTERNAL OUTREACH,1021084,142043330,16-Aug-16,940.56,Revenue,ACTION ON HEARING LOSS,SP0001359
WANDSWORTH COUNCIL,ASC,SOCIAL SERVICES,OTHER AGENCIES,EXTERNAL OUTREACH,1021085,142043330,16-Aug-16,0.16,Revenue,ACTION ON HEARING LOSS,SP0001359
WANDSWORTH COUNCIL,ASC,SOCIAL SERVICES,PRIVATE,EXTERNAL DAYCARE,1019156,142045290,12-Aug-16,515.88,Revenue,NAS SERVICES LIMITED,SP0000217
WANDSWORTH COUNCIL,ASC,SOCIAL SERVICES,PRIVATE,EXTERNAL DAYCARE,1019158,142045290,12-Aug-16,515.88,Revenue,NAS SERVICES LIMITED,SP0000217
WANDSWORTH COUNCIL,ASC,SOCIAL SERVICES,PRIVATE,EXTERNAL DAYCARE,1016494,142045290,09-Aug-16,897.65,Revenue,SHARE COMMUNITY,SP0000329
WANDSWORTH COUNCIL,ASC,SOCIAL SERVICES,PRIVATE,EXTERNAL DAYCARE,1016496,142045290,09-Aug-16,891.60,Revenue,SHARE COMMUNITY,SP0000329
WANDSWORTH COUNCIL,ASC,SOCIAL SERVICES,PRIVATE,EXTERNAL DAYCARE,1026960,142045290,23-Aug-16,867.00,Revenue,WANDSWORTH BENGALI WELFARE ASSOCIATION,SP0000479
WANDSWORTH COUNCIL,ASC,SOCIAL SERVICES,PRIVATE,EXTERNAL DAYCARE,1028568,142045290,25-Aug-16,867.00,Revenue,WANDSWORTH BENGALI WELFARE ASSOCIATION,SP0000479
WANDSWORTH COUNCIL,ASC,SOCIAL SERVICES,PRIVATE,EXTERNAL DAYCARE,1016808,142045290,09-Aug-16,536.00,Revenue,SOUND MINDS,SP0000721
WANDSWORTH COUNCIL,ASC,SOCIAL SERVICES,PRIVATE,EXTERNAL DAYCARE,1019934,142045290,15-Aug-16,715.00,Revenue,WESTMINSTER MIND,SP0005471
WANDSWORTH COUNCIL,ASC,SOCIAL SERVICES,PRIVATE,EXTERNAL DAYCARE,1027111,142045290,23-Aug-16,800.00,Revenue,MOSAIC CLUBHOUSE,SP0008847
WANDSWORTH COUNCIL,ASC,SOCIAL SERVICES,PRIVATE,EXTERNAL HOMECARE,1030747,142045300,26-Aug-16,622.37,Revenue,HOLISTIC COMMUNITY CARE LTD,SP0000032
WANDSWORTH COUNCIL,ASC,SOCIAL SERVICES,PRIVATE,EXTERNAL HOMECARE,1009590,142045300,02-Aug-16,"1,285.62",Revenue,ASIAN ELDERS SUPPORT SCHEME,SP0000190
WANDSWORTH COUNCIL,ASC,SOCIAL SERVICES,PRIVATE,EXTERNAL HOMECARE,1019912,142045300,15-Aug-16,523.11,Revenue,ASIAN ELDERS SUPPORT SCHEME,SP0000190
WANDSWORTH COUNCIL,ASC,SOCIAL SERVICES,PRIVATE,EXTERNAL HOMECARE,1019928,142045300,15-Aug-16,"1,360.21",Revenue,ASIAN ELDERS SUPPORT SCHEME,SP0000190
WANDSWORTH COUNCIL,ASC,SOCIAL SERVICES,PRIVATE,EXTERNAL HOMECARE,1030640,142045300,26-Aug-16,552.43,Revenue,GOLDSBOROUGH HOMECARE & NURSING SERVICES,SP0000505
WANDSWORTH COUNCIL,ASC,SOCIAL SERVICES,PRIVATE,EXTERNAL HOMECARE,1025986,142045300,22-Aug-16,"1,066.60",Revenue,PARKGATE NURSING AGENCY,SP0000607
WANDSWORTH COUNCIL,ASC,SOCIAL SERVICES,PRIVATE,EXTERNAL HOMECARE,1019093,142045300,12-Aug-16,"1,704.48",Revenue,MUSHKIL AASAAN LTD,SP0000978
WANDSWORTH COUNCIL,ASC,SOCIAL SERVICES,PRIVATE,EXTERNAL HOMECARE,1012992,142045300,04-Aug-16,"1,170.00",Revenue,SOMA HEALTHCARE LTD,SP0001116
WANDSWORTH COUNCIL,ASC,SOCIAL SERVICES,PRIVATE,EXTERNAL HOMECARE,1012997,142045300,04-Aug-16,984.00,Revenue,SOMA HEALTHCARE LTD,SP0001116
WANDSWORTH COUNCIL,ASC,SOCIAL SERVICES,PRIVATE,EXTERNAL HOMECARE,1026819,142045300,23-Aug-16,669.93,Revenue,SUPREME CARE SERVICE LTD,SP0001600
WANDSWORTH COUNCIL,ASC,SOCIAL SERVICES,PRIVATE,EXTERNAL HOMECARE,1012972,142045300,04-Aug-16,636.80,Revenue,HOME INSTEAD SENIOR CARE LTD,SP0005355
WANDSWORTH COUNCIL,ASC,SOCIAL SERVICES,PRIVATE,EXTERNAL HOMECARE,1026776,142045300,23-Aug-16,537.30,Revenue,HOME INSTEAD SENIOR CARE LTD,SP0005355
WANDSWORTH COUNCIL,ASC,SOCIAL SERVICES,PRIVATE,EXTERNAL HOMECARE,1012976,142045300,04-Aug-16,618.02,Revenue,STOCKWELLCARE SUPPORT SERVICES,SP0006011
WANDSWORTH COUNCIL,ASC,SOCIAL SERVICES,PRIVATE,EXTERNAL HOMECARE,1019904,142045300,15-Aug-16,785.82,Revenue,STOCKWELLCARE SUPPORT SERVICES,SP0006011
WANDSWORTH COUNCIL,ASC,SOCIAL SERVICES,PRIVATE,EXTERNAL HOMECARE,1019905,142045300,15-Aug-16,735.12,Revenue,STOCKWELLCARE SUPPORT SERVICES,SP0006011
WANDSWORTH COUNCIL,ASC,SOCIAL SERVICES,PRIVATE,EXTERNAL HOMECARE,1025987,142045300,22-Aug-16,735.12,Revenue,STOCKWELLCARE SUPPORT SERVICES,SP0006011
WANDSWORTH COUNCIL,ASC,SOCIAL SERVICES,PRIVATE,EXTERNAL HOMECARE,1025988,142045300,22-Aug-16,735.12,Revenue,STOCKWELLCARE SUPPORT SERVICES,SP0006011
WANDSWORTH COUNCIL,ASC,SOCIAL SERVICES,PRIVATE,EXTERNAL HOMECARE,1026143,142045300,22-Aug-16,618.02,Revenue,STOCKWELLCARE SUPPORT SERVICES,SP0006011
WANDSWORTH COUNCIL,ASC,SOCIAL SERVICES,PRIVATE,EXTERNAL HOMECARE,1026920,142045300,23-Aug-16,513.31,Revenue,STOCKWELLCARE SUPPORT SERVICES,SP0006011
WANDSWORTH COUNCIL,ASC,SOCIAL SERVICES,PRIVATE,EXTERNAL HOMECARE,1022169,142045300,17-Aug-16,"1,677.68",Revenue,MCCALLUM CARE LTD CAREMARK (WANDSWORTH),SP0006036
WANDSWORTH COUNCIL,ASC,SOCIAL SERVICES,PRIVATE,EXTERNAL HOMECARE,1009762,142045300,02-Aug-16,515.00,Revenue,AOCS PROPERTY MAINTENANCE LTD,SP0008169
WANDSWORTH COUNCIL,ASC,SOCIAL SERVICES,PRIVATE,EXTERNAL HOMECARE,1016377,142045300,09-Aug-16,"1,087.60",Revenue,LONDON HOMECARE LTD,SP0009029
WANDSWORTH COUNCIL,ASC,SOCIAL SERVICES,PRIVATE,EXTERNAL HOMECARE,1026912,142045300,23-Aug-16,"1,254.57",Revenue,PROFESSIONAL CARE SUPPORT SERVICES LTD,SP0010033
WANDSWORTH COUNCIL,ASC,SOCIAL SERVICES,PRIVATE,EXTERNAL HOMECARE,1026915,142045300,23-Aug-16,731.88,Revenue,PROFESSIONAL CARE SUPPORT SERVICES LTD,SP0010033
WANDSWORTH COUNCIL,ASC,SOCIAL SERVICES,PRIVATE,EXTERNAL NURSING CARE,1012711,142045310,04-Aug-16,"3,476.88",Revenue,HAVELOCK COURT NURSING HOME,SP0000024
WANDSWORTH COUNCIL,ASC,SOCIAL SERVICES,PRIVATE,EXTERNAL NURSING CARE,1012951,142045310,04-Aug-16,"1,928.57",Revenue,ST JOHNS NURSING HOME LTD,SP0000143
WANDSWORTH COUNCIL,ASC,SOCIAL SERVICES,PRIVATE,EXTERNAL NURSING CARE,1026765,142045310,23-Aug-16,"3,342.85",Revenue,ST JOHNS NURSING HOME LTD,SP0000143
WANDSWORTH COUNCIL,ASC,SOCIAL SERVICES,PRIVATE,EXTERNAL NURSING CARE,1026766,142045310,23-Aug-16,"4,045.70",Revenue,ST JOHNS NURSING HOME LTD,SP0000143
WANDSWORTH COUNCIL,ASC,SOCIAL SERVICES,PRIVATE,EXTERNAL NURSING CARE,1019437,142045310,12-Aug-16,"2,716.60",Revenue,GEORGE POTTER CARE HOME LTD,SP0000276
WANDSWORTH COUNCIL,ASC,SOCIAL SERVICES,PRIVATE,EXTERNAL NURSING CARE,1033202,142045310,31-Aug-16,"2,716.60",Revenue,GEORGE POTTER CARE HOME LTD,SP0000276
WANDSWORTH COUNCIL,ASC,SOCIAL SERVICES,PRIVATE,EXTERNAL NURSING CARE,1019447,142045310,12-Aug-16,"2,527.35",Revenue,ROSEDENE NURSING HOME,SP0000316
WANDSWORTH COUNCIL,ASC,SOCIAL SERVICES,PRIVATE,EXTERNAL NURSING CARE,1019450,142045310,12-Aug-16,"2,550.00",Revenue,ROSEDENE NURSING HOME,SP0000316
WANDSWORTH COUNCIL,ASC,SOCIAL SERVICES,PRIVATE,EXTERNAL NURSING CARE,1019451,142045310,12-Aug-16,"2,575.50",Revenue,ROSEDENE NURSING HOME,SP0000316
WANDSWORTH COUNCIL,ASC,SOCIAL SERVICES,PRIVATE,EXTERNAL NURSING CARE,1019454,142045310,12-Aug-16,"2,670.00",Revenue,ROSEDENE NURSING HOME,SP0000316
WANDSWORTH COUNCIL,ASC,SOCIAL SERVICES,PRIVATE,EXTERNAL NURSING CARE,1019455,142045310,12-Aug-16,"2,835.00",Revenue,ROSEDENE NURSING HOME,SP0000316
WANDSWORTH COUNCIL,ASC,SOCIAL SERVICES,PRIVATE,EXTERNAL NURSING CARE,1019457,142045310,12-Aug-16,"2,550.00",Revenue,ROSEDENE NURSING HOME,SP0000316
WANDSWORTH COUNCIL,ASC,SOCIAL SERVICES,PRIVATE,EXTERNAL NURSING CARE,1033207,142045310,31-Aug-16,"9,722.86",Revenue,ROSEDENE NURSING HOME,SP0000316
WANDSWORTH COUNCIL,ASC,SOCIAL SERVICES,PRIVATE,EXTERNAL NURSING CARE,1033211,142045310,31-Aug-16,"3,546.80",Revenue,ROSEDENE NURSING HOME,SP0000316
WANDSWORTH COUNCIL,ASC,SOCIAL SERVICES,PRIVATE,EXTERNAL NURSING CARE,1033212,142045310,31-Aug-16,"3,624.14",Revenue,ROSEDENE NURSING HOME,SP0000316
WANDSWORTH COUNCIL,ASC,SOCIAL SERVICES,PRIVATE,EXTERNAL NURSING CARE,1033213,142045310,31-Aug-16,"3,546.80",Revenue,ROSEDENE NURSING HOME,SP0000316
WANDSWORTH COUNCIL,ASC,SOCIAL SERVICES,PRIVATE,EXTERNAL NURSING CARE,1033215,142045310,31-Aug-16,"3,400.00",Revenue,ROSEDENE NURSING HOME,SP0000316
WANDSWORTH COUNCIL,ASC,SOCIAL SERVICES,PRIVATE,EXTERNAL NURSING CARE,1033219,142045310,31-Aug-16,"3,577.00",Revenue,ROSEDENE NURSING HOME,SP0000316
WANDSWORTH COUNCIL,ASC,SOCIAL SERVICES,PRIVATE,EXTERNAL NURSING CARE,1033222,142045310,31-Aug-16,"3,957.00",Revenue,ROSEDENE NURSING HOME,SP0000316
WANDSWORTH COUNCIL,ASC,SOCIAL SERVICES,PRIVATE,EXTERNAL NURSING CARE,1033223,142045310,31-Aug-16,"3,434.00",Revenue,ROSEDENE NURSING HOME,SP0000316
WANDSWORTH COUNCIL,ASC,SOCIAL SERVICES,PRIVATE,EXTERNAL NURSING CARE,1033224,142045310,31-Aug-16,"3,560.00",Revenue,ROSEDENE NURSING HOME,SP0000316
WANDSWORTH COUNCIL,ASC,SOCIAL SERVICES,PRIVATE,EXTERNAL NURSING CARE,1033225,142045310,31-Aug-16,"3,369.80",Revenue,ROSEDENE NURSING HOME,SP0000316
WANDSWORTH COUNCIL,ASC,SOCIAL SERVICES,PRIVATE,EXTERNAL NURSING CARE,1019490,142045310,12-Aug-16,"4,225.32",Revenue,TRINITY COURT NURSING HOME,SP0001001
WANDSWORTH COUNCIL,ASC,SOCIAL SERVICES,PRIVATE,EXTERNAL NURSING CARE,1019497,142045310,12-Aug-16,"3,406.68",Revenue,TRINITY COURT NURSING HOME,SP0001001
WANDSWORTH COUNCIL,ASC,SOCIAL SERVICES,PRIVATE,EXTERNAL NURSING CARE,1019498,142045310,12-Aug-16,"2,919.44",Revenue,TRINITY COURT NURSING HOME,SP0001001
WANDSWORTH COUNCIL,ASC,SOCIAL SERVICES,PRIVATE,EXTERNAL NURSING CARE,1019500,142045310,12-Aug-16,"3,239.52",Revenue,TRINITY COURT NURSING HOME,SP0001001
WANDSWORTH COUNCIL,ASC,SOCIAL SERVICES,PRIVATE,EXTERNAL NURSING CARE,1019501,142045310,12-Aug-16,"2,969.44",Revenue,TRINITY COURT NURSING HOME,SP0001001
WANDSWORTH COUNCIL,ASC,SOCIAL SERVICES,PRIVATE,EXTERNAL NURSING CARE,1019502,142045310,12-Aug-16,"2,973.12",Revenue,TRINITY COURT NURSING HOME,SP0001001
WANDSWORTH COUNCIL,ASC,SOCIAL SERVICES,PRIVATE,EXTERNAL NURSING CARE,1019504,142045310,12-Aug-16,"2,969.44",Revenue,TRINITY COURT NURSING HOME,SP0001001
WANDSWORTH COUNCIL,ASC,SOCIAL SERVICES,PRIVATE,EXTERNAL NURSING CARE,1019505,142045310,12-Aug-16,"2,877.72",Revenue,TRINITY COURT NURSING HOME,SP0001001
WANDSWORTH COUNCIL,ASC,SOCIAL SERVICES,PRIVATE,EXTERNAL NURSING CARE,1019510,142045310,12-Aug-16,"4,266.53",Revenue,TRINITY COURT NURSING HOME,SP0001001
WANDSWORTH COUNCIL,ASC,SOCIAL SERVICES,PRIVATE,EXTERNAL NURSING CARE,1027032,142045310,23-Aug-16,"3,579.34",Revenue,TRILODGE LTD,SP0001156
WANDSWORTH COUNCIL,ASC,SOCIAL SERVICES,PRIVATE,EXTERNAL NURSING CARE,1027033,142045310,23-Aug-16,"3,774.29",Revenue,TRILODGE LTD,SP0001156
WANDSWORTH COUNCIL,ASC,SOCIAL SERVICES,PRIVATE,EXTERNAL NURSING CARE,1019488,142045310,12-Aug-16,"2,877.72",Revenue,HYDEFALL LTD,SP0001248
WANDSWORTH COUNCIL,ASC,SOCIAL SERVICES,PRIVATE,EXTERNAL NURSING CARE,1019364,142045310,12-Aug-16,"11,394.75",Revenue,LIFE STYLE CARE (2011) PLC,SP0001580
WANDSWORTH COUNCIL,ASC,SOCIAL SERVICES,PRIVATE,EXTERNAL NURSING CARE,1019407,142045310,12-Aug-16,"2,615.52",Revenue,LIFE STYLE CARE (2011) PLC,SP0001580
WANDSWORTH COUNCIL,ASC,SOCIAL SERVICES,PRIVATE,EXTERNAL NURSING CARE,1019411,142045310,12-Aug-16,"2,703.84",Revenue,LIFE STYLE CARE (2011) PLC,SP0001580
WANDSWORTH COUNCIL,ASC,SOCIAL SERVICES,PRIVATE,EXTERNAL RESIDENTIAL CARE,1012956,142045330,04-Aug-16,"3,985.72",Revenue,OWNLIFE LIMITED,SP0000034
WANDSWORTH COUNCIL,ASC,SOCIAL SERVICES,PRIVATE,EXTERNAL RESIDENTIAL CARE,1011751,142045330,03-Aug-16,"7,840.44",Revenue,CMG HOMES LTD,SP0000075
WANDSWORTH COUNCIL,ASC,SOCIAL SERVICES,PRIVATE,EXTERNAL RESIDENTIAL CARE,1030615,142045330,26-Aug-16,"2,421.00",Revenue,SANCTUARY CARE LTD,SP0000121
WANDSWORTH COUNCIL,ASC,SOCIAL SERVICES,PRIVATE,EXTERNAL RESIDENTIAL CARE,1019349,142045330,12-Aug-16,"2,545.20",Revenue,JOYCARE HOME SERVICES LTD,SP0000339
WANDSWORTH COUNCIL,ASC,SOCIAL SERVICES,PRIVATE,EXTERNAL RESIDENTIAL CARE,1033257,142045330,31-Aug-16,"2,545.20",Revenue,JOYCARE HOME SERVICES LTD,SP0000339
WANDSWORTH COUNCIL,ASC,SOCIAL SERVICES,PRIVATE,EXTERNAL RESIDENTIAL CARE,1016754,142045330,09-Aug-16,"2,423.66",Revenue,ASTRA HOMES LTD,SP0000374
WANDSWORTH COUNCIL,ASC,SOCIAL SERVICES,PRIVATE,EXTERNAL RESIDENTIAL CARE,1016755,142045330,09-Aug-16,"2,795.54",Revenue,ASTRA HOMES LTD,SP0000374
WANDSWORTH COUNCIL,ASC,SOCIAL SERVICES,PRIVATE,EXTERNAL RESIDENTIAL CARE,1027037,142045330,23-Aug-16,"2,423.66",Revenue,ASTRA HOMES LTD,SP0000374
WANDSWORTH COUNCIL,ASC,SOCIAL SERVICES,PRIVATE,EXTERNAL RESIDENTIAL CARE,1027038,142045330,23-Aug-16,"2,795.54",Revenue,ASTRA HOMES LTD,SP0000374
WANDSWORTH COUNCIL,ASC,SOCIAL SERVICES,PRIVATE,EXTERNAL RESIDENTIAL CARE,1027001,142045330,23-Aug-16,"3,131.00",Revenue,REDACTED PERSONAL DATA,SP0000408
WANDSWORTH COUNCIL,ASC,SOCIAL SERVICES,PRIVATE,EXTERNAL RESIDENTIAL CARE,1027060,142045330,23-Aug-16,"7,041.92",Revenue,SIGNHEALTH,SP0000496
WANDSWORTH COUNCIL,ASC,SOCIAL SERVICES,PRIVATE,EXTERNAL RESIDENTIAL CARE,1025822,142045330,22-Aug-16,"2,951.11",Revenue,THE REGARD PARTNERSHIP,SP0000588
WANDSWORTH COUNCIL,ASC,SOCIAL SERVICES,PRIVATE,EXTERNAL RESIDENTIAL CARE,1012960,142045330,04-Aug-16,"2,731.36",Revenue,ROSCLARE,SP0000663
WANDSWORTH COUNCIL,ASC,SOCIAL SERVICES,PRIVATE,EXTERNAL RESIDENTIAL CARE,1032756,142045330,31-Aug-16,"2,731.36",Revenue,ROSCLARE,SP0000663
WANDSWORTH COUNCIL,ASC,SOCIAL SERVICES,PRIVATE,EXTERNAL RESIDENTIAL CARE,1030624,142045330,26-Aug-16,"5,092.99",Revenue,229 MITCHAM LANE LTD,SP0000884
WANDSWORTH COUNCIL,ASC,SOCIAL SERVICES,PRIVATE,EXTERNAL RESIDENTIAL CARE,1030625,142045330,26-Aug-16,"5,143.70",Revenue,229 MITCHAM LANE LTD,SP0000884
WANDSWORTH COUNCIL,ASC,SOCIAL SERVICES,PRIVATE,EXTERNAL RESIDENTIAL CARE,1032742,142045330,31-Aug-16,"5,625.00",Revenue,TOGETHER WORKING FOR WELLBEING,SP0000950
WANDSWORTH COUNCIL,ASC,SOCIAL SERVICES,PRIVATE,EXTERNAL RESIDENTIAL CARE,1019016,142045330,12-Aug-16,"2,504.80",Revenue,QUANTUM CARE LTD,SP0001151
WANDSWORTH COUNCIL,ASC,SOCIAL SERVICES,PRIVATE,EXTERNAL RESIDENTIAL CARE,1027085,142045330,23-Aug-16,"2,524.29",Revenue,THORNTON LODGE,SP0001197
WANDSWORTH COUNCIL,ASC,SOCIAL SERVICES,PRIVATE,EXTERNAL RESIDENTIAL CARE,1027086,142045330,23-Aug-16,"2,418.00",Revenue,THORNTON LODGE,SP0001197
WANDSWORTH COUNCIL,ASC,SOCIAL SERVICES,PRIVATE,EXTERNAL RESIDENTIAL CARE,1027087,142045330,23-Aug-16,"2,250.56",Revenue,THORNTON LODGE,SP0001197
WANDSWORTH COUNCIL,ASC,SOCIAL SERVICES,PRIVATE,EXTERNAL RESIDENTIAL CARE,1012949,142045330,04-Aug-16,"2,228.72",Revenue,DEEPDENE CARE LTD,SP0001199
WANDSWORTH COUNCIL,ASC,SOCIAL SERVICES,PRIVATE,EXTERNAL RESIDENTIAL CARE,1027012,142045330,23-Aug-16,"2,724.24",Revenue,DEEPDENE CARE LTD,SP0001199
WANDSWORTH COUNCIL,ASC,SOCIAL SERVICES,PRIVATE,EXTERNAL RESIDENTIAL CARE,1027013,142045330,23-Aug-16,"2,228.72",Revenue,DEEPDENE CARE LTD,SP0001199
WANDSWORTH COUNCIL,ASC,SOCIAL SERVICES,PRIVATE,EXTERNAL RESIDENTIAL CARE,1027014,142045330,23-Aug-16,"2,460.07",Revenue,DEEPDENE CARE LTD,SP0001199
WANDSWORTH COUNCIL,ASC,SOCIAL SERVICES,PRIVATE,EXTERNAL RESIDENTIAL CARE,1027017,142045330,23-Aug-16,"3,058.99",Revenue,DEEPDENE CARE LTD,SP0001199
WANDSWORTH COUNCIL,ASC,SOCIAL SERVICES,PRIVATE,EXTERNAL RESIDENTIAL CARE,1027018,142045330,23-Aug-16,"3,136.67",Revenue,DEEPDENE CARE LTD,SP0001199
WANDSWORTH COUNCIL,ASC,SOCIAL SERVICES,PRIVATE,EXTERNAL RESIDENTIAL CARE,1027019,142045330,23-Aug-16,"2,228.68",Revenue,DEEPDENE CARE LTD,SP0001199
WANDSWORTH COUNCIL,ASC,SOCIAL SERVICES,PRIVATE,EXTERNAL RESIDENTIAL CARE,1027083,142045330,23-Aug-16,"2,625.04",Revenue,REDACTED PERSONAL DATA,SP0001200
WANDSWORTH COUNCIL,ASC,SOCIAL SERVICES,PRIVATE,EXTERNAL RESIDENTIAL CARE,1027084,142045330,23-Aug-16,"2,714.40",Revenue,REDACTED PERSONAL DATA,SP0001200
WANDSWORTH COUNCIL,ASC,SOCIAL SERVICES,PRIVATE,EXTERNAL RESIDENTIAL CARE,1027011,142045330,23-Aug-16,"3,525.01",Revenue,CHRIST THE KING RESIDENTIAL CARE,SP0001203
WANDSWORTH COUNCIL,ASC,SOCIAL SERVICES,PRIVATE,EXTERNAL RESIDENTIAL CARE,1009238,142045330,01-Aug-16,"6,800.00",Revenue,ADMIRAL HEALTHCARE LTD,SP0001227
WANDSWORTH COUNCIL,ASC,SOCIAL SERVICES,PRIVATE,EXTERNAL RESIDENTIAL CARE,1016284,142045330,09-Aug-16,"12,050.13",Revenue,ADMIRAL HEALTHCARE LTD,SP0001227
WANDSWORTH COUNCIL,ASC,SOCIAL SERVICES,PRIVATE,EXTERNAL RESIDENTIAL CARE,1027029,142045330,23-Aug-16,"3,628.00",Revenue,ADMIRAL HEALTHCARE LTD,SP0001227
WANDSWORTH COUNCIL,ASC,SOCIAL SERVICES,PRIVATE,EXTERNAL RESIDENTIAL CARE,1027030,142045330,23-Aug-16,"3,400.00",Revenue,ADMIRAL HEALTHCARE LTD,SP0001227
WANDSWORTH COUNCIL,ASC,SOCIAL SERVICES,PRIVATE,EXTERNAL RESIDENTIAL CARE,1027031,142045330,23-Aug-16,"3,400.00",Revenue,ADMIRAL HEALTHCARE LTD,SP0001227
WANDSWORTH COUNCIL,ASC,SOCIAL SERVICES,PRIVATE,EXTERNAL RESIDENTIAL CARE,1030627,142045330,26-Aug-16,"3,400.00",Revenue,ADMIRAL HEALTHCARE LTD,SP0001227
WANDSWORTH COUNCIL,ASC,SOCIAL SERVICES,PRIVATE,EXTERNAL RESIDENTIAL CARE,1030628,142045330,26-Aug-16,"4,702.00",Revenue,ADMIRAL HEALTHCARE LTD,SP0001227
WANDSWORTH COUNCIL,ASC,SOCIAL SERVICES,PRIVATE,EXTERNAL RESIDENTIAL CARE,1025846,142045330,22-Aug-16,"2,284.43",Revenue,JEWISH CARE,SP0001229
WANDSWORTH COUNCIL,ASC,SOCIAL SERVICES,PRIVATE,EXTERNAL RESIDENTIAL CARE,1021039,142045330,16-Aug-16,"3,398.72",Revenue,ACTION ON HEARING LOSS,SP0001359
WANDSWORTH COUNCIL,ASC,SOCIAL SERVICES,PRIVATE,EXTERNAL RESIDENTIAL CARE,1021040,142045330,16-Aug-16,"3,984.80",Revenue,ACTION ON HEARING LOSS,SP0001359
WANDSWORTH COUNCIL,ASC,SOCIAL SERVICES,PRIVATE,EXTERNAL RESIDENTIAL CARE,1021042,142045330,16-Aug-16,"3,480.00",Revenue,ACTION ON HEARING LOSS,SP0001359
WANDSWORTH COUNCIL,ASC,SOCIAL SERVICES,PRIVATE,EXTERNAL RESIDENTIAL CARE,1021043,142045330,16-Aug-16,"3,480.00",Revenue,ACTION ON HEARING LOSS,SP0001359
WANDSWORTH COUNCIL,ASC,SOCIAL SERVICES,PRIVATE,EXTERNAL RESIDENTIAL CARE,1021044,142045330,16-Aug-16,"3,480.00",Revenue,ACTION ON HEARING LOSS,SP0001359
WANDSWORTH COUNCIL,ASC,SOCIAL SERVICES,PRIVATE,EXTERNAL RESIDENTIAL CARE,1021045,142045330,16-Aug-16,"3,480.00",Revenue,ACTION ON HEARING LOSS,SP0001359
WANDSWORTH COUNCIL,ASC,SOCIAL SERVICES,PRIVATE,EXTERNAL RESIDENTIAL CARE,1025849,142045330,22-Aug-16,"3,984.80",Revenue,ACTION ON HEARING LOSS,SP0001359
WANDSWORTH COUNCIL,ASC,SOCIAL SERVICES,PRIVATE,EXTERNAL RESIDENTIAL CARE,1025851,142045330,22-Aug-16,"3,480.00",Revenue,ACTION ON HEARING LOSS,SP0001359
WANDSWORTH COUNCIL,ASC,SOCIAL SERVICES,PRIVATE,EXTERNAL RESIDENTIAL CARE,1012946,142045330,04-Aug-16,"4,500.00",Revenue,COMMUNITY HOUSING & THERAPY,SP0001366
WANDSWORTH COUNCIL,ASC,SOCIAL SERVICES,PRIVATE,EXTERNAL RESIDENTIAL CARE,1012947,142045330,04-Aug-16,"4,300.00",Revenue,COMMUNITY HOUSING & THERAPY,SP0001366
WANDSWORTH COUNCIL,ASC,SOCIAL SERVICES,PRIVATE,EXTERNAL RESIDENTIAL CARE,1012948,142045330,04-Aug-16,"4,300.00",Revenue,COMMUNITY HOUSING & THERAPY,SP0001366
WANDSWORTH COUNCIL,ASC,SOCIAL SERVICES,PRIVATE,EXTERNAL RESIDENTIAL CARE,1023557,142045330,18-Aug-16,"3,720.00",Revenue,ABBEY HOUSE,SP0001434
WANDSWORTH COUNCIL,ASC,SOCIAL SERVICES,PRIVATE,EXTERNAL RESIDENTIAL CARE,1023558,142045330,18-Aug-16,"3,000.00",Revenue,ABBEY HOUSE,SP0001434
WANDSWORTH COUNCIL,ASC,SOCIAL SERVICES,PRIVATE,EXTERNAL RESIDENTIAL CARE,1023559,142045330,18-Aug-16,"3,400.00",Revenue,ABBEY HOUSE,SP0001434
WANDSWORTH COUNCIL,ASC,SOCIAL SERVICES,PRIVATE,EXTERNAL RESIDENTIAL CARE,1023560,142045330,18-Aug-16,"2,440.00",Revenue,ABBEY HOUSE,SP0001434
WANDSWORTH COUNCIL,ASC,SOCIAL SERVICES,PRIVATE,EXTERNAL RESIDENTIAL CARE,1027039,142045330,23-Aug-16,"2,989.29",Revenue,ROSENMANOR LTD,SP0001457
WANDSWORTH COUNCIL,ASC,SOCIAL SERVICES,PRIVATE,EXTERNAL RESIDENTIAL CARE,1027040,142045330,23-Aug-16,"3,100.00",Revenue,ROSENMANOR LTD,SP0001457
WANDSWORTH COUNCIL,ASC,SOCIAL SERVICES,PRIVATE,EXTERNAL RESIDENTIAL CARE,1027042,142045330,23-Aug-16,"3,493.04",Revenue,ROSENMANOR LTD,SP0001457
WANDSWORTH COUNCIL,ASC,SOCIAL SERVICES,PRIVATE,EXTERNAL RESIDENTIAL CARE,1018692,142045330,11-Aug-16,"5,400.00",Revenue,LONA LODGE,SP0001570
WANDSWORTH COUNCIL,ASC,SOCIAL SERVICES,PRIVATE,EXTERNAL RESIDENTIAL CARE,1018693,142045330,11-Aug-16,"8,000.00",Revenue,LONA LODGE,SP0001570
WANDSWORTH COUNCIL,ASC,SOCIAL SERVICES,PRIVATE,EXTERNAL RESIDENTIAL CARE,1030629,142045330,26-Aug-16,"5,200.00",Revenue,LONA LODGE,SP0001570
WANDSWORTH COUNCIL,ASC,SOCIAL SERVICES,PRIVATE,EXTERNAL RESIDENTIAL CARE,1030630,142045330,26-Aug-16,"5,428.57",Revenue,LONA LODGE,SP0001570
WANDSWORTH COUNCIL,ASC,SOCIAL SERVICES,PRIVATE,EXTERNAL RESIDENTIAL CARE,1019855,142045330,15-Aug-16,"2,205.00",Revenue,COMFORT CARE SERVICES (UK) LTD,SP0005792
WANDSWORTH COUNCIL,ASC,SOCIAL SERVICES,PRIVATE,EXTERNAL RESIDENTIAL CARE,1027043,142045330,23-Aug-16,"3,475.32",Revenue,SIGNATURE HEALTH AND LIVING LTD,SP0006162
WANDSWORTH COUNCIL,ASC,SOCIAL SERVICES,PRIVATE,EXTERNAL RESIDENTIAL CARE,1027044,142045330,23-Aug-16,"3,320.32",Revenue,SIGNATURE HEALTH AND LIVING LTD,SP0006162
WANDSWORTH COUNCIL,ASC,SOCIAL SERVICES,PRIVATE,EXTERNAL RESIDENTIAL CARE,1027045,142045330,23-Aug-16,"3,321.43",Revenue,SIGNATURE HEALTH AND LIVING LTD,SP0006162
WANDSWORTH COUNCIL,ASC,SOCIAL SERVICES,PRIVATE,EXTERNAL RESIDENTIAL CARE,1027046,142045330,23-Aug-16,"5,978.57",Revenue,SIGNATURE HEALTH AND LIVING LTD,SP0006162
WANDSWORTH COUNCIL,ASC,SOCIAL SERVICES,PRIVATE,EXTERNAL RESIDENTIAL CARE,1012952,142045330,04-Aug-16,"3,525.01",Revenue,ASSURANCE CARE SERVICES LTD,SP0006652
WANDSWORTH COUNCIL,ASC,SOCIAL SERVICES,PRIVATE,EXTERNAL RESIDENTIAL CARE,1027007,142045330,23-Aug-16,"3,675.67",Revenue,ASSURANCE CARE SERVICES LTD,SP0006652
WANDSWORTH COUNCIL,ASC,SOCIAL SERVICES,PRIVATE,EXTERNAL RESIDENTIAL CARE,1027008,142045330,23-Aug-16,"3,454.02",Revenue,ASSURANCE CARE SERVICES LTD,SP0006652
WANDSWORTH COUNCIL,ASC,SOCIAL SERVICES,PRIVATE,EXTERNAL RESIDENTIAL CARE,1027010,142045330,23-Aug-16,"3,525.01",Revenue,ASSURANCE CARE SERVICES LTD,SP0006652
WANDSWORTH COUNCIL,ASC,SOCIAL SERVICES,PRIVATE,EXTERNAL RESIDENTIAL CARE,1018694,142045330,11-Aug-16,"18,523.05",Revenue,BUTTERFLYS CARE HOMES LTD,SP0008006
WANDSWORTH COUNCIL,ASC,SOCIAL SERVICES,PRIVATE,EXTERNAL RESIDENTIAL CARE,1026999,142045330,23-Aug-16,"2,435.67",Revenue,MINSA CARE LTD,SP0008012
WANDSWORTH COUNCIL,ASC,SOCIAL SERVICES,PRIVATE,EXTERNAL RESIDENTIAL CARE,1027000,142045330,23-Aug-16,"2,546.43",Revenue,MINSA CARE LTD,SP0008012
WANDSWORTH COUNCIL,ASC,SOCIAL SERVICES,PRIVATE,EXTERNAL RESIDENTIAL CARE,1019310,142045330,12-Aug-16,"2,601.28",Revenue,COUNTRY COURT CARE,SP0009215
WANDSWORTH COUNCIL,ASC,SOCIAL SERVICES,PRIVATE,EXTERNAL RESIDENTIAL CARE,1033235,142045330,31-Aug-16,"2,601.28",Revenue,COUNTRY COURT CARE,SP0009215
WANDSWORTH COUNCIL,ASC,SOCIAL SERVICES,PRIVATE,EXTERNAL RESIDENTIAL CARE,1026998,142045330,23-Aug-16,"4,413.73",Revenue,FIRST CARE LODGE,SP0009965
WANDSWORTH COUNCIL,ASC,SOCIAL SERVICES,PRIVATE,EXTERNAL RESIDENTIAL CARE,1026767,142045330,23-Aug-16,(3.20),Revenue,ORCHID HOMES T/A LA ROSA 2,SP0010542
WANDSWORTH COUNCIL,ASC,SOCIAL SERVICES,PRIVATE,EXTERNAL RESIDENTIAL CARE,1027034,142045330,23-Aug-16,"3,675.71",Revenue,ORCHID HOMES T/A LA ROSA 2,SP0010542
WANDSWORTH COUNCIL,ASC,SOCIAL SERVICES,PRIVATE,EXTERNAL RESIDENTIAL CARE,1027035,142045330,23-Aug-16,"2,400.86",Revenue,ORCHID HOMES T/A LA ROSA 2,SP0010542
WANDSWORTH COUNCIL,ASC,SOCIAL SERVICES,PRIVATE,EXTERNAL RESIDENTIAL CARE,1027036,142045330,23-Aug-16,"2,907.36",Revenue,ORCHID HOMES T/A LA ROSA 2,SP0010542
WANDSWORTH COUNCIL,ASC,SOCIAL SERVICES,PRIVATE,EXTERNAL RESIDENTIAL CARE,1009239,142045330,01-Aug-16,"3,200.00",Revenue,EVERSLEIGH CARE HOME,SP0010748
WANDSWORTH COUNCIL,ASC,SOCIAL SERVICES,PRIVATE,EXTERNAL RESIDENTIAL CARE,1030626,142045330,26-Aug-16,"3,722.80",Revenue,EVERSLEIGH CARE HOME,SP0010748
WANDSWORTH COUNCIL,ASC,SOCIAL SERVICES,PRIVATE,EXTERNAL RESIDENTIAL CARE,1031618,142045330,30-Aug-16,"3,722.80",Revenue,EVERSLEIGH CARE HOME,SP0010748
WANDSWORTH COUNCIL,ASC,SOCIAL SERVICES,PRIVATE,EXTERNAL RESIDENTIAL CARE,1031619,142045330,30-Aug-16,522.80,Revenue,EVERSLEIGH CARE HOME,SP0010748
WANDSWORTH COUNCIL,ASC,SOCIAL SERVICES,PRIVATE,EXTERNAL RESIDENTIAL CARE,1032743,142045330,31-Aug-16,"3,722.80",Revenue,EVERSLEIGH CARE HOME,SP0010748
WANDSWORTH COUNCIL,ASC,SOCIAL SERVICES,PRIVATE,EXTERNAL RESIDENTIAL CARE,1025850,142045330,22-Aug-16,"5,425.00",Revenue,AGENCY ASSISTANCE,SP0010858
WANDSWORTH COUNCIL,ASC,SOCIAL SERVICES,VOL ASS,SUPPORTED HOUSING PROGRAMME,1016827,142048030,09-Aug-16,"1,550.00",Revenue,ASTRA HOMES LTD,SP0000374
WANDSWORTH COUNCIL,ASC,SOCIAL SERVICES,VOL ASS,SUPPORTED HOUSING PROGRAMME,1016828,142048030,09-Aug-16,"1,545.57",Revenue,ASTRA HOMES LTD,SP0000374
WANDSWORTH COUNCIL,ASC,SOCIAL SERVICES,VOL ASS,SUPPORTED HOUSING PROGRAMME,1027130,142048030,23-Aug-16,"1,550.00",Revenue,ASTRA HOMES LTD,SP0000374
WANDSWORTH COUNCIL,ASC,SOCIAL SERVICES,VOL ASS,SUPPORTED HOUSING PROGRAMME,1027131,142048030,23-Aug-16,"1,545.57",Revenue,ASTRA HOMES LTD,SP0000374
WANDSWORTH COUNCIL,ASC,SOCIAL SERVICES,VOL ASS,SUPPORTED HOUSING PROGRAMME,1029399,142048030,25-Aug-16,"1,516.56",Revenue,C M CARE LTD,SP0000455
WANDSWORTH COUNCIL,ASC,SOCIAL SERVICES,VOL ASS,SUPPORTED HOUSING PROGRAMME,1029400,142048030,25-Aug-16,983.76,Revenue,C M CARE LTD,SP0000455
WANDSWORTH COUNCIL,ASC,SOCIAL SERVICES,VOL ASS,SUPPORTED HOUSING PROGRAMME,1029401,142048030,25-Aug-16,473.20,Revenue,C M CARE LTD,SP0000455
WANDSWORTH COUNCIL,ASC,SOCIAL SERVICES,VOL ASS,SUPPORTED HOUSING PROGRAMME,1029403,142048030,25-Aug-16,"1,583.16",Revenue,C M CARE LTD,SP0000455
WANDSWORTH COUNCIL,ASC,SOCIAL SERVICES,VOL ASS,SUPPORTED HOUSING PROGRAMME,1029404,142048030,25-Aug-16,"1,516.56",Revenue,C M CARE LTD,SP0000455
WANDSWORTH COUNCIL,ASC,SOCIAL SERVICES,VOL ASS,SUPPORTED HOUSING PROGRAMME,1029408,142048030,25-Aug-16,432.00,Revenue,C M CARE LTD,SP0000455
WANDSWORTH COUNCIL,ASC,SOCIAL SERVICES,VOL ASS,SUPPORTED HOUSING PROGRAMME,1029409,142048030,25-Aug-16,"1,896.36",Revenue,C M CARE LTD,SP0000455
WANDSWORTH COUNCIL,ASC,SOCIAL SERVICES,VOL ASS,SUPPORTED HOUSING PROGRAMME,1029411,142048030,25-Aug-16,"1,803.00",Revenue,C M CARE LTD,SP0000455
WANDSWORTH COUNCIL,ASC,SOCIAL SERVICES,VOL ASS,SUPPORTED HOUSING PROGRAMME,1029412,142048030,25-Aug-16,"2,281.64",Revenue,C M CARE LTD,SP0000455
WANDSWORTH COUNCIL,ASC,SOCIAL SERVICES,VOL ASS,SUPPORTED HOUSING PROGRAMME,1029413,142048030,25-Aug-16,"1,803.00",Revenue,C M CARE LTD,SP0000455
WANDSWORTH COUNCIL,ASC,SOCIAL SERVICES,VOL ASS,SUPPORTED HOUSING PROGRAMME,1029414,142048030,25-Aug-16,"1,692.00",Revenue,C M CARE LTD,SP0000455
WANDSWORTH COUNCIL,ASC,SOCIAL SERVICES,VOL ASS,SUPPORTED HOUSING PROGRAMME,1029415,142048030,25-Aug-16,"1,692.00",Revenue,C M CARE LTD,SP0000455
WANDSWORTH COUNCIL,ASC,SOCIAL SERVICES,VOL ASS,SUPPORTED HOUSING PROGRAMME,1029416,142048030,25-Aug-16,"1,803.00",Revenue,C M CARE LTD,SP0000455
WANDSWORTH COUNCIL,ASC,SOCIAL SERVICES,VOL ASS,SUPPORTED HOUSING PROGRAMME,1029417,142048030,25-Aug-16,"1,803.00",Revenue,C M CARE LTD,SP0000455
WANDSWORTH COUNCIL,ASC,SOCIAL SERVICES,VOL ASS,SUPPORTED HOUSING PROGRAMME,1029418,142048030,25-Aug-16,"1,803.00",Revenue,C M CARE LTD,SP0000455
WANDSWORTH COUNCIL,ASC,SOCIAL SERVICES,VOL ASS,SUPPORTED HOUSING PROGRAMME,1021086,142048030,16-Aug-16,"1,573.45",Revenue,SERVOL COMMUNITY TRUST,SP0000539
WANDSWORTH COUNCIL,ASC,SOCIAL SERVICES,VOL ASS,SUPPORTED HOUSING PROGRAMME,1027091,142048030,23-Aug-16,745.90,Revenue,SERVOL COMMUNITY TRUST,SP0000539
WANDSWORTH COUNCIL,ASC,SOCIAL SERVICES,VOL ASS,SUPPORTED HOUSING PROGRAMME,1027092,142048030,23-Aug-16,745.90,Revenue,SERVOL COMMUNITY TRUST,SP0000539
WANDSWORTH COUNCIL,ASC,SOCIAL SERVICES,VOL ASS,SUPPORTED HOUSING PROGRAMME,1027093,142048030,23-Aug-16,678.19,Revenue,SERVOL COMMUNITY TRUST,SP0000539
WANDSWORTH COUNCIL,ASC,SOCIAL SERVICES,VOL ASS,SUPPORTED HOUSING PROGRAMME,1027094,142048030,23-Aug-16,745.90,Revenue,SERVOL COMMUNITY TRUST,SP0000539
WANDSWORTH COUNCIL,ASC,SOCIAL SERVICES,VOL ASS,SUPPORTED HOUSING PROGRAMME,1027095,142048030,23-Aug-16,678.19,Revenue,SERVOL COMMUNITY TRUST,SP0000539
WANDSWORTH COUNCIL,ASC,SOCIAL SERVICES,VOL ASS,SUPPORTED HOUSING PROGRAMME,1027096,142048030,23-Aug-16,659.86,Revenue,SERVOL COMMUNITY TRUST,SP0000539
WANDSWORTH COUNCIL,ASC,SOCIAL SERVICES,VOL ASS,SUPPORTED HOUSING PROGRAMME,1027097,142048030,23-Aug-16,655.25,Revenue,SERVOL COMMUNITY TRUST,SP0000539
WANDSWORTH COUNCIL,ASC,SOCIAL SERVICES,VOL ASS,SUPPORTED HOUSING PROGRAMME,1027098,142048030,23-Aug-16,682.97,Revenue,SERVOL COMMUNITY TRUST,SP0000539
WANDSWORTH COUNCIL,ASC,SOCIAL SERVICES,VOL ASS,SUPPORTED HOUSING PROGRAMME,1027100,142048030,23-Aug-16,873.31,Revenue,SERVOL COMMUNITY TRUST,SP0000539
WANDSWORTH COUNCIL,ASC,SOCIAL SERVICES,VOL ASS,SUPPORTED HOUSING PROGRAMME,1027101,142048030,23-Aug-16,932.97,Revenue,SERVOL COMMUNITY TRUST,SP0000539
WANDSWORTH COUNCIL,ASC,SOCIAL SERVICES,VOL ASS,SUPPORTED HOUSING PROGRAMME,1027102,142048030,23-Aug-16,932.97,Revenue,SERVOL COMMUNITY TRUST,SP0000539
WANDSWORTH COUNCIL,ASC,SOCIAL SERVICES,VOL ASS,SUPPORTED HOUSING PROGRAMME,1027103,142048030,23-Aug-16,932.97,Revenue,SERVOL COMMUNITY TRUST,SP0000539
WANDSWORTH COUNCIL,ASC,SOCIAL SERVICES,VOL ASS,SUPPORTED HOUSING PROGRAMME,1027104,142048030,23-Aug-16,932.97,Revenue,SERVOL COMMUNITY TRUST,SP0000539
WANDSWORTH COUNCIL,ASC,SOCIAL SERVICES,VOL ASS,SUPPORTED HOUSING PROGRAMME,1027105,142048030,23-Aug-16,932.97,Revenue,SERVOL COMMUNITY TRUST,SP0000539
WANDSWORTH COUNCIL,ASC,SOCIAL SERVICES,VOL ASS,SUPPORTED HOUSING PROGRAMME,1027106,142048030,23-Aug-16,879.43,Revenue,SERVOL COMMUNITY TRUST,SP0000539
WANDSWORTH COUNCIL,ASC,SOCIAL SERVICES,VOL ASS,SUPPORTED HOUSING PROGRAMME,1027107,142048030,23-Aug-16,932.97,Revenue,SERVOL COMMUNITY TRUST,SP0000539
WANDSWORTH COUNCIL,ASC,SOCIAL SERVICES,VOL ASS,SUPPORTED HOUSING PROGRAMME,1027108,142048030,23-Aug-16,932.97,Revenue,SERVOL COMMUNITY TRUST,SP0000539
WANDSWORTH COUNCIL,ASC,SOCIAL SERVICES,VOL ASS,SUPPORTED HOUSING PROGRAMME,1027109,142048030,23-Aug-16,932.97,Revenue,SERVOL COMMUNITY TRUST,SP0000539
WANDSWORTH COUNCIL,ASC,SOCIAL SERVICES,VOL ASS,SUPPORTED HOUSING PROGRAMME,1018687,142048030,11-Aug-16,535.80,Revenue,VIRIDIAN HOUSING,SP0001289
WANDSWORTH COUNCIL,ASC,SOCIAL SERVICES,VOL ASS,SUPPORTED HOUSING PROGRAMME,1012950,142048030,04-Aug-16,"2,425.00",Revenue,COMMUNITY HOUSING & THERAPY,SP0001366
WANDSWORTH COUNCIL,ASC,SOCIAL SERVICES,VOL ASS,SUPPORTED HOUSING PROGRAMME,1013020,142048030,04-Aug-16,"4,340.00",Revenue,COMMUNITY HOUSING & THERAPY,SP0001366
WANDSWORTH COUNCIL,ASC,SOCIAL SERVICES,VOL ASS,SUPPORTED HOUSING PROGRAMME,1013021,142048030,04-Aug-16,"3,427.50",Revenue,COMMUNITY HOUSING & THERAPY,SP0001366
WANDSWORTH COUNCIL,ASC,SOCIAL SERVICES,VOL ASS,SUPPORTED HOUSING PROGRAMME,1013628,142048030,08-Aug-16,"2,957.15",Revenue,SUMMIT LODGE,SP0010790
WANDSWORTH COUNCIL,ASC,SOCIAL SERVICES,VOL ASS,SUPPORTED HOUSING PROGRAMME,1018602,142048030,11-Aug-16,"3,055.71",Revenue,SUMMIT LODGE,SP0010790
WANDSWORTH COUNCIL,ASC,SOCIAL SERVICES,DIRECT,DIRECT PAYMENTS,1015519,142050380,08-Aug-16,760.16,Revenue,VIBRANCE,SP0005489
WANDSWORTH COUNCIL,ASC,SOCIAL SERVICES,DIRECT,DIRECT PAYMENTS,1015528,142050380,08-Aug-16,535.44,Revenue,VIBRANCE,SP0005489
WANDSWORTH COUNCIL,ASC,SOCIAL SERVICES,DIRECT,DIRECT PAYMENTS,1015563,142050380,08-Aug-16,"1,002.80",Revenue,VIBRANCE,SP0005489
WANDSWORTH COUNCIL,ASC,SOCIAL SERVICES,DIRECT,DIRECT PAYMENTS,1015585,142050380,08-Aug-16,969.28,Revenue,VIBRANCE,SP0005489
WANDSWORTH COUNCIL,ASC,SOCIAL SERVICES,CUSTOMER & CLIENT RECPTS - EXT,CL CONT EXTERNAL RESIDENTIAL,1016754,142080720,09-Aug-16,(301.71),Revenue,ASTRA HOMES LTD,SP0000374
WANDSWORTH COUNCIL,ASC,SOCIAL SERVICES,CUSTOMER & CLIENT RECPTS - EXT,CL CONT EXTERNAL RESIDENTIAL,1016755,142080720,09-Aug-16,(559.33),Revenue,ASTRA HOMES LTD,SP0000374
WANDSWORTH COUNCIL,ASC,SOCIAL SERVICES,CUSTOMER & CLIENT RECPTS - EXT,CL CONT EXTERNAL RESIDENTIAL,1027037,142080720,23-Aug-16,(301.71),Revenue,ASTRA HOMES LTD,SP0000374
WANDSWORTH COUNCIL,ASC,SOCIAL SERVICES,CUSTOMER & CLIENT RECPTS - EXT,CL CONT EXTERNAL RESIDENTIAL,1027038,142080720,23-Aug-16,(559.33),Revenue,ASTRA HOMES LTD,SP0000374
WANDSWORTH COUNCIL,ASC,SOCIAL SERVICES,CUSTOMER & CLIENT RECPTS - EXT,CL CONT EXTERNAL RESIDENTIAL,1027001,142080720,23-Aug-16,(578.81),Revenue,REDACTED PERSONAL DATA,SP0000408
WANDSWORTH COUNCIL,ASC,SOCIAL SERVICES,CUSTOMER & CLIENT RECPTS - EXT,CL CONT EXTERNAL RESIDENTIAL,1019016,142080720,12-Aug-16,(578.81),Revenue,QUANTUM CARE LTD,SP0001151
WANDSWORTH COUNCIL,ASC,SOCIAL SERVICES,CUSTOMER & CLIENT RECPTS - EXT,CL CONT EXTERNAL RESIDENTIAL,1012949,142080720,04-Aug-16,(559.33),Revenue,DEEPDENE CARE LTD,SP0001199
WANDSWORTH COUNCIL,ASC,SOCIAL SERVICES,CUSTOMER & CLIENT RECPTS - EXT,CL CONT EXTERNAL RESIDENTIAL,1027013,142080720,23-Aug-16,(578.81),Revenue,DEEPDENE CARE LTD,SP0001199
WANDSWORTH COUNCIL,ASC,SOCIAL SERVICES,CUSTOMER & CLIENT RECPTS - EXT,CL CONT EXTERNAL RESIDENTIAL,1027014,142080720,23-Aug-16,(578.81),Revenue,DEEPDENE CARE LTD,SP0001199
WANDSWORTH COUNCIL,ASC,SOCIAL SERVICES,CUSTOMER & CLIENT RECPTS - EXT,CL CONT EXTERNAL RESIDENTIAL,1027018,142080720,23-Aug-16,(559.33),Revenue,DEEPDENE CARE LTD,SP0001199
WANDSWORTH COUNCIL,ASC,SOCIAL SERVICES,CUSTOMER & CLIENT RECPTS - EXT,CL CONT EXTERNAL RESIDENTIAL,1027083,142080720,23-Aug-16,(522.80),Revenue,REDACTED PERSONAL DATA,SP0001200
WANDSWORTH COUNCIL,ASC,SOCIAL SERVICES,CUSTOMER & CLIENT RECPTS - EXT,CL CONT EXTERNAL RESIDENTIAL,1021040,142080720,16-Aug-16,(321.80),Revenue,ACTION ON HEARING LOSS,SP0001359
WANDSWORTH COUNCIL,ASC,SOCIAL SERVICES,CUSTOMER & CLIENT RECPTS - EXT,CL CONT EXTERNAL RESIDENTIAL,1021042,142080720,16-Aug-16,(418.32),Revenue,ACTION ON HEARING LOSS,SP0001359
WANDSWORTH COUNCIL,ASC,SOCIAL SERVICES,CUSTOMER & CLIENT RECPTS - EXT,CL CONT EXTERNAL RESIDENTIAL,1021043,142080720,16-Aug-16,(418.32),Revenue,ACTION ON HEARING LOSS,SP0001359
WANDSWORTH COUNCIL,ASC,SOCIAL SERVICES,CUSTOMER & CLIENT RECPTS - EXT,CL CONT EXTERNAL RESIDENTIAL,1021044,142080720,16-Aug-16,(418.32),Revenue,ACTION ON HEARING LOSS,SP0001359
WANDSWORTH COUNCIL,ASC,SOCIAL SERVICES,CUSTOMER & CLIENT RECPTS - EXT,CL CONT EXTERNAL RESIDENTIAL,1021045,142080720,16-Aug-16,(418.32),Revenue,ACTION ON HEARING LOSS,SP0001359
WANDSWORTH COUNCIL,ASC,SOCIAL SERVICES,CUSTOMER & CLIENT RECPTS - EXT,CL CONT EXTERNAL RESIDENTIAL,1025849,142080720,22-Aug-16,(321.80),Revenue,ACTION ON HEARING LOSS,SP0001359
WANDSWORTH COUNCIL,ASC,SOCIAL SERVICES,CUSTOMER & CLIENT RECPTS - EXT,CL CONT EXTERNAL RESIDENTIAL,1025851,142080720,22-Aug-16,(418.32),Revenue,ACTION ON HEARING LOSS,SP0001359
WANDSWORTH COUNCIL,ASC,SOCIAL SERVICES,CUSTOMER & CLIENT RECPTS - EXT,CL CONT EXTERNAL RESIDENTIAL,1012947,142080720,04-Aug-16,(500.75),Revenue,COMMUNITY HOUSING & THERAPY,SP0001366
WANDSWORTH COUNCIL,ASC,SOCIAL SERVICES,CUSTOMER & CLIENT RECPTS - EXT,CL CONT EXTERNAL RESIDENTIAL,1019310,142080720,12-Aug-16,(505.20),Revenue,COUNTRY COURT CARE,SP0009215
WANDSWORTH COUNCIL,ASC,SOCIAL SERVICES,CUSTOMER & CLIENT RECPTS - EXT,CL CONT EXTERNAL RESIDENTIAL,1033235,142080720,31-Aug-16,(505.20),Revenue,COUNTRY COURT CARE,SP0009215
WANDSWORTH COUNCIL,ASC,SOCIAL SERVICES,CUSTOMER & CLIENT RECPTS - EXT,CL CONT EXTERNAL RESIDENTIAL,1026767,142080720,23-Aug-16,661.80,Revenue,ORCHID HOMES T/A LA ROSA 2,SP0010542
WANDSWORTH COUNCIL,ASC,SOCIAL SERVICES,CUSTOMER & CLIENT RECPTS - EXT,CL CONT EXTERNAL RESIDENTIAL,1027034,142080720,23-Aug-16,(443.52),Revenue,ORCHID HOMES T/A LA ROSA 2,SP0010542
WANDSWORTH COUNCIL,ASC,SOCIAL SERVICES,CUSTOMER & CLIENT RECPTS - EXT,CL CONT EXTERNAL RESIDENTIAL,1027035,142080720,23-Aug-16,(373.77),Revenue,ORCHID HOMES T/A LA ROSA 2,SP0010542
WANDSWORTH COUNCIL,ASC,SOCIAL SERVICES,CUSTOMER & CLIENT RECPTS - EXT,CL CONT EXTERNAL RESIDENTIAL,1009239,142080720,01-Aug-16,(522.80),Revenue,EVERSLEIGH CARE HOME,SP0010748
WANDSWORTH COUNCIL,ASC,SOCIAL SERVICES,CUSTOMER & CLIENT RECPTS - EXT,CL CONT EXTERNAL RESIDENTIAL,1030626,142080720,26-Aug-16,(522.80),Revenue,EVERSLEIGH CARE HOME,SP0010748
WANDSWORTH COUNCIL,ASC,SOCIAL SERVICES,CUSTOMER & CLIENT RECPTS - EXT,CL CONT EXTERNAL RESIDENTIAL,1031618,142080720,30-Aug-16,(522.80),Revenue,EVERSLEIGH CARE HOME,SP0010748
WANDSWORTH COUNCIL,ASC,SOCIAL SERVICES,CUSTOMER & CLIENT RECPTS - EXT,CL CONT EXTERNAL RESIDENTIAL,1032743,142080720,31-Aug-16,(522.80),Revenue,EVERSLEIGH CARE HOME,SP0010748
WANDSWORTH COUNCIL,ASC,SOCIAL SERVICES,CUSTOMER & CLIENT RECPTS - EXT,CLIENT CONTS EXTERNAL NURSING,1019447,142080820,12-Aug-16,(444.69),Revenue,ROSEDENE NURSING HOME,SP0000316
WANDSWORTH COUNCIL,ASC,SOCIAL SERVICES,CUSTOMER & CLIENT RECPTS - EXT,CLIENT CONTS EXTERNAL NURSING,1033213,142080820,31-Aug-16,(592.92),Revenue,ROSEDENE NURSING HOME,SP0000316
WANDSWORTH COUNCIL,ASC,SOCIAL SERVICES,CUSTOMER & CLIENT RECPTS - EXT,CLIENT CONTS EXTERNAL NURSING,1019490,142080820,12-Aug-16,(515.04),Revenue,TRINITY COURT NURSING HOME,SP0001001
WANDSWORTH COUNCIL,ASC,SOCIAL SERVICES,CUSTOMER & CLIENT RECPTS - EXT,CLIENT CONTS EXTERNAL NURSING,1019505,142080820,12-Aug-16,(696.32),Revenue,TRINITY COURT NURSING HOME,SP0001001
WANDSWORTH COUNCIL,ASC,SOCIAL SERVICES,CUSTOMER & CLIENT RECPTS - EXT,CLIENT CONTS EXTERNAL NURSING,1019510,142080820,12-Aug-16,(511.48),Revenue,TRINITY COURT NURSING HOME,SP0001001
WANDSWORTH COUNCIL,ASC,SOCIAL SERVICES,CUSTOMER & CLIENT RECPTS - EXT,CLIENT CONTS EXTERNAL NURSING,1027032,142080820,23-Aug-16,(882.92),Revenue,TRILODGE LTD,SP0001156
WANDSWORTH COUNCIL,ASC,SOCIAL SERVICES,CUSTOMER & CLIENT RECPTS - EXT,CLIENT CONTS EXTERNAL NURSING,1019488,142080820,12-Aug-16,(522.80),Revenue,HYDEFALL LTD,SP0001248
WANDSWORTH COUNCIL,ASC,SOCIAL SERVICES,CUSTOMER & CLIENT RECPTS - EXT,CLIENT CONTS EXTERNAL NURSING,1019407,142080820,12-Aug-16,(512.52),Revenue,LIFE STYLE CARE (2011) PLC,SP0001580
WANDSWORTH COUNCIL,ASC,SOCIAL SERVICES,CUSTOMER & CLIENT RECPTS - EXT,RNCC,1012711,142084120,04-Aug-16,(426.92),Revenue,HAVELOCK COURT NURSING HOME,SP0000024
WANDSWORTH COUNCIL,ASC,SOCIAL SERVICES,CUSTOMER & CLIENT RECPTS - EXT,RNCC,1019437,142084120,12-Aug-16,(448.00),Revenue,GEORGE POTTER CARE HOME LTD,SP0000276
WANDSWORTH COUNCIL,ASC,SOCIAL SERVICES,CUSTOMER & CLIENT RECPTS - EXT,RNCC,1033202,142084120,31-Aug-16,(625.00),Revenue,GEORGE POTTER CARE HOME LTD,SP0000276
WANDSWORTH COUNCIL,ASC,SOCIAL SERVICES,CUSTOMER & CLIENT RECPTS - EXT,RNCC,1019447,142084120,12-Aug-16,(336.00),Revenue,ROSEDENE NURSING HOME,SP0000316
WANDSWORTH COUNCIL,ASC,SOCIAL SERVICES,CUSTOMER & CLIENT RECPTS - EXT,RNCC,1019455,142084120,12-Aug-16,(336.00),Revenue,ROSEDENE NURSING HOME,SP0000316
WANDSWORTH COUNCIL,ASC,SOCIAL SERVICES,CUSTOMER & CLIENT RECPTS - EXT,RNCC,1019457,142084120,12-Aug-16,(336.00),Revenue,ROSEDENE NURSING HOME,SP0000316
WANDSWORTH COUNCIL,ASC,SOCIAL SERVICES,CUSTOMER & CLIENT RECPTS - EXT,RNCC,1033207,142084120,31-Aug-16,"(1,312.00)",Revenue,ROSEDENE NURSING HOME,SP0000316
WANDSWORTH COUNCIL,ASC,SOCIAL SERVICES,CUSTOMER & CLIENT RECPTS - EXT,RNCC,1033211,142084120,31-Aug-16,(625.00),Revenue,ROSEDENE NURSING HOME,SP0000316
WANDSWORTH COUNCIL,ASC,SOCIAL SERVICES,CUSTOMER & CLIENT RECPTS - EXT,RNCC,1033212,142084120,31-Aug-16,(625.00),Revenue,ROSEDENE NURSING HOME,SP0000316
WANDSWORTH COUNCIL,ASC,SOCIAL SERVICES,CUSTOMER & CLIENT RECPTS - EXT,RNCC,1033213,142084120,31-Aug-16,(625.00),Revenue,ROSEDENE NURSING HOME,SP0000316
